Workbook

Sheet 1. Info and Instructions
AB1: Alectra Utilities Corporation-Brampton Rate Zone
AB2: Alectra Utilities Corporation-Enersource Rate Zone
AB3: Alectra Utilities Corporation-Horizon Utilities Rate Zone
AB4: Alectra Utilities Corporation-PowerStream Rate Zone
AB5: Alectra Utilities Corporation-Guelph Rate Zone
AB6: Algoma Power Inc.
AB7: Atikokan Hydro Inc.
AB8: Bluewater Power Distribution Corporation
AB9: Burlington Hydro Inc.
AB10: Canadian Niagara Power Inc.
A11: Modified PILS TAX MODEL for 2026 – 2030 Test Years | AB11: Centre Wellington Hydro Ltd.
A12: Original Submission | F12: Version | G12: 1 | AB12: Chapleau Public Utilities Corporation
AB13: Cooperative Hydro Embrun Inc.
C14: Utility Name | D14: Hydro Ottawa Limited | AB14: E.L.K. Energy Inc.
AB15: Elexicon Energy Inc.-Whitby Rate Zone
C16: Assigned EB Number | D16: EB-2024-0115 | AB16: Elexicon Energy Inc.-Veridian Rate Zone
AB17: Enova Power Corp.-Kitchener-Wilmot Hydro Rate Zone
C18: Name and Title | D18: April Barrie, Director, Regulatory Affairs | AB18: Enova Power Corp.-Waterloo North Rate Zone
AB19: Entegrus Powerlines Inc.-For Entegrus-Main Rate Zone
C20: Phone Number | D20: 613-738-5499 | AB20: Entegrus Powerlines Inc.-For Former St. Thomas Energy Rate Zone
AB21: ENWIN Utilities Ltd.
C22: Email Address | D22: RegulatoryAffairs@hydroottawa.com | AB22: EPCOR Electricity Distribution Ontario Inc.
AB23: ERTH Power Corporation - ERTH Power Main Rate Zone
C24: Date | D24: 2026-05-13 | AB24: ERTH POWER CORPORATION – GODERICH RATE ZONE
AB25: Essex Powerlines Corporation
C26: Last COS Re-based Year | AB26: Festival Hydro Inc.
AB27: Fort Frances Power Corporation
AB28: GrandBridge Energy Inc.-Brantford Power Rate Zone
A29: Note: Drop-down lists are shaded blue; Input cells are shaded green. | AB29: GrandBridge Energy Inc.-Energy+ Rate Zone
AB30: Greater Sudbury Hydro Inc.
AB31: Grimsby Power Incorporated
AB32: Halton Hills Hydro Inc.
AB33: Hearst Power Distribution Co. Ltd.
AB34: Hydro 2000 Inc.
AB35: Hydro Hawkesbury Inc.
AB36: Hydro One Networks Inc.
AB37: Hydro One Networks Inc.-Former Orillia Power Distribution Corporation Service Area
AB38: Hydro One Networks Inc.-Former Peterborough Distribution Inc. Service Area
AB39: Hydro One Networks Inc.-Former Haldimand County Hydro Inc. Service Area
AB40: Hydro One Networks Inc.-Former Norfolk Power Distribution Inc. Service Area
AB41: Hydro One Networks Inc.-Former Woodstock Hydro Services Inc. Service Area
AB42: Hydro One Remote Communites Inc.
AB43: Hydro Ottawa Limited
AB44: InnPower Corporation
AB45: Kingston Hydro Corporation
AB46: Lakefront Utilities Inc.
AB47: Lakeland Power Distribution Ltd.
AB48: London Hydro Inc.
AB49: Milton Hydro Distribution Inc.
AB50: Newmarket-Tay Power Distribution Ltd.-For Former Midland Power Utility Rate Zone
AB51: Newmarket-Tay Power Distribution Ltd.-For Newmarket-Tay Power Main Rate Zone
AB52: Niagara Peninsula Energy Inc.
AB53: Niagara-on-the-Lake Hydro Inc.
AB54: North Bay Hydro Distribution Limited
AB55: Northern Ontario Wires Inc.
AB56: Oakville Hydro Electricity Distribution Inc.
AB57: Orangeville Hydro Limited
AB58: Oshawa PUC Networks Inc.
AB59: Ottawa River Power Corporation
AB60: PUC Distribution Inc.
AB61: Renfrew Hydro Inc.
AB62: Rideau St. Lawrence Distribution Inc.
AB63: Sioux Lookout Hydro Inc.
AB64: Synergy North Corporation-Kenora Rate Zone
AB65: Synergy North Corporation-Thunder Bay Rate Zone
AB66: Tillsonburg Hydro Inc.
AB67: Toronto Hydro-Electric System Limited
AB68: Wasaga Distribution Inc.
AB69: Welland Hydro-Electric System Corp.
AB70: Wellington North Power Inc.
AB71: Westario Power Inc.

Sheet Table of Contents
AA1: 1
AA2: 2012
AA3: 2013
AA4: 2014
AA5: 2015
AA6: 2016
A7: Modified PILS TAX MODEL for 2026 – 2030 Test Years
D10: 1. Info and Instructions
D11: S. Summary
D12: A. Data Input Sheet 26-30
D13: B. Tax Rates & Exemptions
C16: Historical Year 2023 | D16: H0 PILs,Tax Provision Hist 23
D17: H1 Sch 1 Taxable Income Hist 23
D18: H4 Sch 4 Loss Cfwd Hist 23
D19: H8 Sch 8 CCA Hist 23
D20: H13 Sch 13 Reserves Hist 23
C22: Historical Year 2024 | D22: A0 PILs,Tax Provision Hist 24
D23: A1 Taxable Income Hist 24
D24: A4 Sch 4 Loss Hist 24
D25: A8 Sch 8 CCA Hist 24
D26: A13 Sch 13 Reserves Hist 24
C28: Bridge Year 2025 | D28: B0 PILs,Tax Provision Bridge 25
D29: B1 Taxable Income Bridge 25
D30: B4 Sch 4 Loss Cfwd Bridge 25
D31: B8 Sch 8 CCA Bridge 25
D32: B13 Sch 13 Reserves Bridge 25
C34: Test Year 2026 | D34: T0 PILs,Tax Provision Test 26
D35: T1 Sch 1 Taxable Income Test 26
D36: T4 Sch 4 Loss Cfwd Test 26
D37: T8 Sch 8 CCA Test 26
D38: T13 Sch 13 Reserves Test 26
C41: Test Year 2027 - 2030 | D41: C1 PIL Tax Provision Test 27-30
D42: C2 Sch 8 CCA Test 27
D43: C3 Sch 8 CCA Test 28
D44: C4 Sch 8 CCA Test 29
D45: C5 Sch 8 CCA Test 30

Sheet S. Summary
A6: Modified PILS TAX MODEL for 2026 – 2030 Test Years
B7: No inputs required on this worksheet.
D9: Inputs on Service Revenue Requirement Worksheet
D10: The Service Revenue Requirement is in the 'Revenue Requirement Workform' - Tab 3.
D12: Item | G12: Working Paper Reference | H12: 2026 | J12: 2027 | L12: 2028 | N12: 2029 | P12: 2030
D14: Adjustments required to arrive at taxable income | G14: as below | H14: =+H25 -> -33498574.57 | I14: as below | J14: =J25 -> -44790390.61 | K14: as below | L14: =L25 -> -32943338.38 | M14: as below | N14: -34967926.17 | O14: as below | P14: -31470994.46
D15: Test Year - Payments in Lieu of Taxes (PILs) | G15: T0 | H15: =+'T0 PILs,Tax Provision Test 26'!J26 -> 5632505.97 | I15: C1 | J15: ='C1 PIL Tax Provision Test 27-30'!F136 -> 4139983.52 | K15: C1 | L15: ='C1 PIL Tax Provision Test 27-30'!G136 -> 9055061.609 | M15: C1 | N15: ='C1 PIL Tax Provision Test 27-30'!H136 -> 9854762.478 | O15: C1 | P15: ='C1 PIL Tax Provision Test 27-30'!I136 -> 11723881.58
D16: Test Year - Grossed-up PILs | G16: T0 | H16: =+'T0 PILs,Tax Provision Test 26'!J31 -> 7663273.428 | I16: C1 | J16: ='C1 PIL Tax Provision Test 27-30'!F140 -> 5632630.639 | K16: C1 | L16: ='C1 PIL Tax Provision Test 27-30'!G140 -> 12319811.71 | M16: C1 | N16: ='C1 PIL Tax Provision Test 27-30'!H140 -> 13407840.11 | O16: C1 | P16: ='C1 PIL Tax Provision Test 27-30'!I140 -> 15950859.29
D17: Effective Federal Tax Rate | G17: T0 | H17: =+'T0 PILs,Tax Provision Test 26'!G15 -> 0.15 | I17: C1 | J17: 0.15 | K17: C1 | L17: 0.15 | M17: C1 | N17: 0.15 | O17: C1 | P17: 0.15
D18: Effective Ontario Tax Rate | G18: T0 | H18: =+'T0 PILs,Tax Provision Test 26'!G14 -> 0.115 | I18: C1 | J18: 0.115 | K18: C1 | L18: 0.115 | M18: C1 | N18: 0.115 | O18: C1 | P18: 0.115
D22: Calculation of Adjustments required to arrive at Taxable Income
D23: Regulatory Income (before income taxes) | G23: T1 | H23: ='T1 Sch 1 Taxable Income Test 26'!F12 -> 55187276.34 | I23: C1 | J23: ='C1 PIL Tax Provision Test 27-30'!F13 -> 60884668.05 | K23: C1 | L23: ='C1 PIL Tax Provision Test 27-30'!G13 -> 67547344.45 | M23: C1 | N23: ='C1 PIL Tax Provision Test 27-30'!H13 -> 72551935.53 | O23: C1 | P23: ='C1 PIL Tax Provision Test 27-30'!I13 -> 76108283.44
D24: Taxable Income | G24: T1 | H24: ='T1 Sch 1 Taxable Income Test 26'!F122 -> 21688701.77 | I24: C1 | J24: ='C1 PIL Tax Provision Test 27-30'!F123 -> 16094277.43 | K24: C1 | L24: ='C1 PIL Tax Provision Test 27-30'!G123 -> 34604006.07 | M24: C1 | N24: ='C1 PIL Tax Provision Test 27-30'!H123 -> 37584009.35 | O24: C1 | P24: ='C1 PIL Tax Provision Test 27-30'!I123 -> 44637288.98
D25: Difference | G25: calculated | H25: =+H24-H23 -> -33498574.57 | J25: =+J24-J23 -> -44790390.61 | L25: -32943338.38 | N25: -34967926.17 | P25: -31470994.46

Sheet S1. Integrity Checks
A9: Modified PILS TAX MODEL for 2026 – 2030 Test Years
A11: Integrity Checks
A13: The applicant must ensure the following integrity checks have been completed and confirm this is the case in the table below, or provide an explanation if this is not the case:
B15: Item | C15: Utility Confirmation (Y/N) | D15: Notes
A16: 1 | B16: The depreciation and amortization added back in the application’s PILs model agree with the numbers disclosed in the rate base section of the application | C16: Y
A17: 2 | B17: The capital additions and deductions in the CCA Schedule 8 agree with the rate base section for historical, bridge and test years | C17: Y
A18: 3 | B18: Schedule 8 of the most recent federal T2 tax return filed with the application has a closing December 31 historical year UCC that agrees with the opening (January 1) bridge year UCC. If the amounts do not agree, then the applicant must provide a reconciliation with explanations. Distributors must segregate non-distribution tax amounts on Schedule 8. | C18: Y
A19: 4 | B19: The CCA deductions in the application’s PILs tax model for historical, bridge and test years (as applicable) agree with the numbers in the CCA Schedule 8 for the same years filed in the application | C19: Y
A20: 5 | B20: Loss carry-forwards, if any, from prior year tax returns' Schedule 4 agree with those disclosed in the application | C20: NA
A21: 6 | B21: A discussion is included in the application as to when the loss carry-forwards, if any, will be fully utilized | C21: NA
A22: 7 | B22: CCA is maximized even if there are tax loss carry-forwards | C22: Y
A23: 8 | B23: Other post-employment benefits and pension expenses that are added back on Schedule 1 to reconcile accounting income to net income for tax purposes agree with the OM&A analysis for compensation. The amounts deducted are reasonable when compared with the notes to the audited financial statements, Financial Services Commission of Ontario reports, and actuarial valuations. | C23: Y
A24: 9 | B24: The income tax rate used to calculate the tax expense is consistent with the utility’s actual tax facts and evidence filed in the application | C24: Y

Sheet A. Data Input Sheet 26-30
A6: Modified PILS TAX MODEL for 2026 – 2030 Test Years
G7: Test Year | H7: Bridge Year | I7: Historical Year | N7: Test Year | S7: Test Year | X7: Test Year | AC7: Test Year
G8: 2026 | H8: 2025 | I8: 2024 | N8: 2027 | S8: 2028 | X8: 2029 | AC8: 2030
C9: Rate Base | F9: S | G9: 1514469713 | H9: 1421205585 | I9: 1366543744 | K9: Rate Base | M9: S | N9: 1670819650 | P9: Rate Base | R9: S | S9: 1853659288 | U9: Rate Base | W9: S | X9: 1990997133 | Z9: Rate Base | AB9: S | AC9: 2088591752
C11: Return on Ratebase | K11: Return on Ratebase | P11: Return on Ratebase | U11: Return on Ratebase | Z11: Return on Ratebase
C12: Deemed ShortTerm Debt % | E12: 0.04 | F12: T | G12: =G9*$E$12 -> 60578788.52 | H12: W = S * T | K12: Deemed ShortTerm Debt % | L12: 0.04 | M12: T | N12: =N9*L12 -> 66832786 | P12: Deemed ShortTerm Debt % | Q12: 0.04 | R12: T | S12: =S9*Q12 -> 74146371.52 | U12: Deemed ShortTerm Debt % | V12: 0.04 | W12: T | X12: =X9*V12 -> 79639885.32 | Z12: Deemed ShortTerm Debt % | AA12: 0.04 | AB12: T | AC12: =AC9*AA12 -> 83543670.08
C13: Deemed Long Term Debt % | E13: 0.56 | F13: U | G13: =G9*$E$13 -> 848103039.3 | H13: X = S * U | K13: Deemed Long Term Debt % | L13: 0.56 | M13: U | N13: =N9*L13 -> 935659004 | P13: Deemed Long Term Debt % | Q13: 0.56 | R13: U | S13: =S9*Q13 -> 1038049201 | U13: Deemed Long Term Debt % | V13: 0.56 | W13: U | X13: =X9*V13 -> 1114958394 | Z13: Deemed Long Term Debt % | AA13: 0.56 | AB13: U | AC13: =AC9*AA13 -> 1169611381
C14: Deemed Equity % | E14: 0.4 | F14: V | G14: =G9*$E$14 -> 605787885.2 | H14: Y = S * V | K14: Deemed Equity % | L14: 0.4 | M14: V | N14: =N9*L14 -> 668327860 | P14: Deemed Equity % | Q14: 0.4 | R14: V | S14: =S9*Q14 -> 741463715.2 | U14: Deemed Equity % | V14: 0.4 | W14: V | X14: =X9*V14 -> 796398853.2 | Z14: Deemed Equity % | AA14: 0.4 | AB14: V | AC14: =AC9*AA14 -> 835436700.8
C16: Short Term Interest Rate | E16: 0.0272 | F16: Z | G16: =G12*$E$16 -> 1647743.048 | H16: AC = W * Z | K16: Short Term Interest Rate | L16: =E16 -> 0.0272 | M16: Z | N16: =N12*L16 -> 1817851.779 | P16: Short Term Interest Rate | Q16: =L16 -> 0.0272 | R16: Z | S16: =S12*Q16 -> 2016781.305 | U16: Short Term Interest Rate | V16: =Q16 -> 0.0272 | W16: Z | X16: =X12*V16 -> 2166204.881 | Z16: Short Term Interest Rate | AA16: =V16 -> 0.0272 | AB16: Z | AC16: =AC12*AA16 -> 2272387.826
C17: Long Term Interest | E17: 0.0398 | F17: AA | G17: =G13*$E$17 -> 33754500.96 | H17: AD = X * AA | K17: Long Term Interest | L17: =E17 -> 0.0398 | M17: AA | N17: =N13*L17 -> 37239228.36 | P17: Long Term Interest | Q17: =L17 -> 0.0398 | R17: AA | S17: =S13*Q17 -> 41314358.21 | U17: Long Term Interest | V17: =Q17 -> 0.0398 | W17: AA | X17: =X13*V17 -> 44375344.1 | Z17: Long Term Interest | AA17: =V17 -> 0.0398 | AB17: AA | AC17: =AC13*AA17 -> 46550532.97
C18: Return on Equity (Regulatory Income) | E18: 0.0911 | F18: AB | G18: =G14*$E$18 -> 55187276.34 | H18: AE = Y * AB | K18: Return on Equity (Regulatory Income) | L18: 0.0911 | M18: AB | N18: =N14*L18 -> 60884668.05 | P18: Return on Equity (Regulatory Income) | Q18: 0.0911 | R18: AB | S18: =S14*Q18 -> 67547344.45 | U18: Return on Equity (Regulatory Income) | V18: 0.0911 | W18: AB | X18: =X14*V18 -> 72551935.53 | Z18: Return on Equity (Regulatory Income) | AA18: 0.0911 | AB18: AB | AC18: =AC14*AA18 -> 76108283.44
C19: Return on Rate Base | G19: =SUM(G16:G18) -> 90589520.35 | H19: AF = AC + AD + AE | K19: Return on Rate Base | N19: =SUM(N16:N18) -> 99941748.18 | P19: Return on Rate Base | S19: =SUM(S16:S18) -> 110878484 | U19: Return on Rate Base | X19: =SUM(X16:X18) -> 119093484.5 | Z19: Return on Rate Base | AC19: =SUM(AC16:AC18) -> 124931204.2
C24: Questions that must be answered | G24: Historical Year | H24: Historical Year | I24: Bridge Year | J24: Test Year
G25: 2023 | H25: 2024 | I25: 2025 | J25: 2026 - 2030
C26: 1. Does the applicant have any Investment Tax Credits (ITC)? | G26: Yes | H26: Yes | I26: Yes | J26: Yes
C28: 2. Does the applicant have any SRED Expenditures? | G28: Yes | H28: Yes | I28: Yes | J28: Yes
C30: 3. Does the applicant have any Capital Gains or Losses for tax purposes? | G30: No | H30: Yes | I30: No | J30: No
C32: 4. Does the applicant have any Capital Leases? | G32: No | H32: No | I32: No | J32: No
C34: 5. Does the applicant have any Loss Carry-Forwards (non-capital or net capital)? | G34: No | H34: No | I34: No | J34: No
C36: 6. Since 1999, has the applicant acquired another regulated applicant's assets? | G36: No | H36: No | I36: No | J36: No
C38: 7. Did the applicant pay dividends? | G38: No | H38: Yes | I38: Yes | J38: No
C39: If Yes, please describe the tax treatment in the manager's summary.
C41: 8. Did the applicant elect to capitalize interest incurred on CWIP for tax purposes? | G41: No | H41: No | I41: No | J41: No

Sheet B. Tax Rates & Exemptions
A5: Modified PILS TAX MODEL for 2026 – 2030 Test Years
C9: Tax Rates
C10: Federal & Provincial | E10: Effective | F10: Effective | G10: Effective | H10: Effective | I10: Effective | J10: Effective | K10: Effective
C11: As of MMM XX, 2019 | E11: 2018-01-01 | F11: =DATE(YEAR(E11) + 1, MONTH(E11), DAY(E11)) -> 2019-01-01 | G11: =DATE(YEAR(F11) + 1, MONTH(F11), DAY(F11)) -> 2020-01-01 | H11: 2021-01-01 | I11: 2022-01-01 | J11: 2023-01-01 | K11: 2024-01-01
C13: Federal income tax
C14: General Corporate Rate | E14: 0.38 | F14: 0.38 | G14: 0.38 | H14: 0.38 | I14: 0.38 | J14: 0.38 | K14: 0.38
C15: Federal Tax Abatement | E15: -0.1 | F15: -0.1 | G15: -0.1 | H15: -0.1 | I15: -0.1 | J15: -0.1 | K15: -0.1
C16: Adjusted Federal Rate | E16: =SUM(E14:E15) -> 0.28 | F16: 0.28 | G16: 0.28 | H16: 0.28 | I16: 0.28 | J16: =SUM(J14:J15) -> 0.28 | K16: 0.28
C18: Rate Reduction | E18: -0.13 | F18: -0.13 | G18: -0.13 | H18: -0.13 | I18: -0.13 | J18: -0.13 | K18: -0.13
C19: Federal Income Tax | E19: =E16+E18 -> 0.15 | F19: 0.15 | G19: 0.15 | H19: 0.15 | I19: 0.15 | J19: =J16+J18 -> 0.15 | K19: 0.15
C21: Ontario Income Tax | E21: 0.115 | F21: 0.115 | G21: 0.115 | H21: 0.115 | I21: 0.115 | J21: 0.115 | K21: 0.115
C23: Combined Federal and Ontario | E23: =E19+E21 -> 0.265 | F23: 0.265 | G23: 0.265 | H23: =H19+H21 -> 0.265 | I23: 0.265 | J23: =J19+J21 -> 0.265 | K23: 0.265
C25: Federal & Ontario Small Business
C26: Federal Small Business Limit | E26: 500000 | F26: 500000 | G26: 500000 | H26: 500000 | I26: 500000 | J26: 500000 | K26: 500000
C27: Ontario Small Business Limit | E27: 500000 | F27: 500000 | G27: 500000 | H27: 500000 | I27: 500000 | J27: 500000 | K27: 500000
C29: Federal Small Business Rate | E29: 0.11 | F29: 0.105 | G29: 0.105 | H29: 0.1 | I29: 0.09 | J29: 0.09 | K29: 0.09
C31: Ontario Small Business Rate | E31: 0.045 | F31: 0.045 | G31: 0.035 | H31: 0.035 | I31: 0.032 | J31: 0.032 | K31: 0.032
C34: Notes
C35: 1. The Ontario Energy Board's proxy for taxable capital is rate base.
C36: 2. The appropriate Federal and Ontario small business rates are calculated in the Income/PILs Workform. The Federal and Ontario small business deduction:
C37: a. is applicable if taxable capital is below $10 million.
C38: b. is phased out with taxable capital of more than $10 million.
C39: c. is completely eliminated when the taxable capital is $15 million or more. Effective for the 2022 taxation year, the Federal small business deduction is revised to be completely eliminated when the taxable capital is $50 million or more.

Sheet H0 PILs,Tax Provision Hist 23
A5: Modified PILS TAX MODEL for 2026 – 2030 Test Years
C7: PILs Tax Provision - Historical Year 2023
C9: Note: Input the actual information from the tax returns for the historical year. | I9: Wires Only
C11: Regulatory Taxable Income | H11: H1 | I11: ='H1 Sch 1 Taxable Income Hist 23'!G119 -> 0 | J11: A
C13: Ontario Income Taxes
C14: Income tax payable | D14: Ontario Income Tax | F14: B | H14: C = A * B
C16: Small business credit | D16: Ontario Small Business Threshold | E16: =IF(I11>'B. Tax Rates & Exemptions'!E27,'B. Tax Rates & Exemptions'!E27,0) -> 0 | F16: D
D17: Rate reduction (negative) | F17: E | H17: F = D * E
C21: Ontario Income tax | I21: =SUM(G14:G20) -> 0 | J21: J = C + F
C24: Combined Tax Rate and PILs | D24: Ontario Tax Rate (Maximum 11.5%) | G24: 0.115 | H24: B
D25: Federal tax rate (Maximum 15%) | G25: 0.15 | H25: C
D26: Combined tax rate (Maximum 26.5%) | I26: =SUM(G24:G25) -> 0.265 | J26: D = B+C
C29: Total Income Taxes | I29: =I11*I26 -> 0 | J29: E = A * D
C31: Investment Tax Credits | J31: F
C32: Miscellaneous Tax Credits | I32: 0 | J32: G
C33: Total Tax Credits | I33: =SUM(I31:I32) -> 0 | J33: H = F + G
C35: Corporate PILs/Income Tax Provision for Historical Year | I35: =IF(I29-I33<0,0,I29-I33) -> 0 | J35: I = E - H
C37: Corporate PILs/Income Tax Provision Gross Up 1 | G37: =1-I26 -> 0.735 | H37: J = 1-D | I37: =+I35/G37-I35 -> 0 | J37: K = I/J-I
C39: Income Tax (grossed-up) | I39: =I35+I37 -> 0 | J39: L = K + I
C41: Note:
C42: 1. This is for the derivation of revenue requirement and should not be used for sufficiency/deficiency calculations.

Sheet H1 Sch 1 Taxable Income Hist 23
A8: Modified PILS TAX MODEL for 2026 – 2030 Test Years
C10: Adjusted Taxable Income - Historical Year 2023
D13: T2S1 line # | E13: Total for Legal Entity | F13: Non-Distribution Eliminations | G13: Historic Wires Only
C14: Income before PILs/Taxes | D14: (A + 101 + 102) | E14: 28618334 | G14: =+E14-F14 -> 28618334
C15: Additions:
C16: Interest and penalties on taxes | D16: 103 | E16: 10037 | G16: =+E16-F16 -> 10037
C17: Amortization of tangible assets | D17: 104 | E17: 55441000 | G17: 55441000
C18: Amortization of intangible assets | D18: 106 | E18: 8646000 | G18: 8646000
C19: Recapture of capital cost allowance from Schedule 8 | D19: 107 | G19: 0
C20: Income inclusion under subparagraph 13(38)(d)(iii) from Schedule 10 | D20: 108 | G20: 0
C21: Loss in equity of subsidiaries and affiliates | D21: 110 | G21: 0
C22: Loss on disposal of assets | D22: 111 | E22: 635382 | G22: 635382
C23: Charitable donations and gifts from Schedule 2 | D23: 112 | E23: 59554 | G23: 59554
C24: Taxable capital gains from Schedule 6 | D24: 113 | G24: 0
C25: Political contributions | D25: 114 | G25: 0
C26: Deferred and prepaid expenses | D26: 116 | G26: 0
C27: Scientific research expenditures deducted on financial statements | D27: 118 | E27: 5408723 | G27: 5408723
C28: Capitalized interest | D28: 119 | G28: 0
C29: Non-deductible club dues and fees | D29: 120 | G29: 0
C30: Non-deductible meals and entertainment expense | D30: 121 | E30: 106683 | G30: 106683
C31: Non-deductible automobile expenses | D31: 122 | G31: 0
C32: Non-deductible life insurance premiums | D32: 123 | G32: 0
C33: Non-deductible company pension plans | D33: 124 | G33: 0
C34: Tax reserves deducted in prior year | D34: 125 | E34: 6796232 | G34: 6796232
C35: Reserves from financial statements – balance at the end of the year | D35: 126 | E35: ='H13 Sch 13 Reserves Hist 23'!F53 -> 4140541 | G35: 4140541
C36: Soft costs on construction and renovation of buildings | D36: 127 | G36: 0
C37: Capital items expensed | D37: 206 | G37: 0
C38: Debt issue expense | D38: 208 | G38: 0
C39: Development expenses claimed in current year | D39: 212 | G39: 0
C40: Financing fees deducted in books | D40: 216 | G40: 0
C41: Gain on settlement of debt | D41: 220 | G41: 0
C42: Non-deductible advertising | D42: 226 | G42: 0
C43: Non-deductible interest | D43: 227 | G43: 0
C44: Non-deductible legal and accounting fees | D44: 228 | G44: 0
C45: Recapture of SR&ED expenditures | D45: 231 | G45: 0
C46: Share issue expense | D46: 235 | G46: 0
C47: Write down of capital property | D47: 236 | G47: 0
C48: Amounts received in respect of qualifying environment trust per paragraphs 12(1)(z.1) and 12(1)(z.2) | D48: 237 | G48: 0
C49: Other additions
C50: Interest Expensed on Capital Leases | D50: 295 | G50: 0
C51: Realized Income from Deferred Credit Accounts | D51: 295 | G51: 0
C52: Pensions | D52: 295 | G52: 0
C53: Non-deductible penalties | D53: 295 | G53: 0
C54: Employee Future Benefit Accounting Expense | D54: 295 | E54: 877700 | G54: 877700
C55: Current year investment tax credit received | D55: 295 | G55: =+E55-F55 -> 0
C56: ARO Accretion expense | G56: 0
C57: Capital Contributions Received (ITA 12(1)(x)) | G57: 0
C58: Lease Inducements Received (ITA 12(1)(x)) | G58: 0
C59: Deferred Revenue (ITA 12(1)(a)) | G59: 0
C60: Prior Year Investment Tax Credits received | E60: 23673 | G60: 23673
C61: Bonus not paid in 180 days after the YE | E61: 65272 | G61: 65272
C62: Capital lease payment expensed in P&L | E62: 28930 | G62: 28930
G63: 0
G64: 0
G65: 0
G66: 0
G67: 0
G68: 0
G69: 0
G70: 0
C71: Total Additions | E71: =SUM(E15:E70) -> 82239727 | F71: =SUM(F15:F70) -> 0 | G71: =SUM(G15:G70) -> 82239727
C73: Deductions:
C74: Gain on disposal of assets per financial statements | D74: 401 | G74: =+E74-F74 -> 0
C75: Non-taxable dividends under section 83 | D75: 402 | G75: 0
C76: Capital cost allowance from Schedule 8 | D76: 403 | E76: 88812506 | G76: 88812506
C77: Terminal loss from Schedule 8 | D77: 404 | G77: 0
C78: Allowable business investment loss | D78: 406 | G78: 0
C79: Deferred and prepaid expenses | D79: 409 | G79: 0
C80: Scientific research expenses claimed in year | D80: 411 | G80: 0
C81: Tax reserves claimed in current year | D81: 413 | E81: ='H13 Sch 13 Reserves Hist 23'!F29 -> 6775541 | G81: 6775541
C82: Reserves from financial statements - balance at beginning of year | D82: 414 | E82: 4006232 | G82: 4006232
C83: Contributions to deferred income plans | D83: 416 | G83: 0
C84: Book income of joint venture or partnership | D84: 305 | G84: 0
C85: Equity in income from subsidiary or affiliates | D85: 306 | G85: 0
C86: Other deductions
C87: Interest capitalized for accounting deducted for tax | D87: 395 | G87: 0
C88: Capital Lease Payments | D88: 395 | G88: 0
C89: Non-taxable imputed interest income on deferral and variance accounts | D89: 395 | G89: 0
C90: Employee Future Benefit Benefits Paid | D90: 395 | E90: 842900 | G90: 842900
C91: SR&ED Exp Capitalized in Accounting | D91: 395 | E91: 4643539 | G91: 4643539
C92: ARO Payments - Deductible for Tax when Paid | G92: 0
C93: ITA 13(7.4) Election - Capital Contributions Received | G93: 0
C94: ITA 13(7.4) Election - Apply Lease Inducement to cost of Leaseholds | G94: 0
C95: Deferred Revenue - ITA 20(1)(m) reserve | G95: 0
C96: Principal portion of lease payments | G96: 0
C97: Lease Inducement Book Amortization credit to income | G97: 0
C98: Financing fees for tax ITA 20(1)(e) and (e.1) | G98: 0
C99: AFUDC | E99: 694333 | G99: 694333
C100: Deferred Revenue Amortization | E100: 7725415 | G100: 7725415
C101: IBM lease payment | E101: 102253 | G101: 102253
C102: ITC recorded in P&L | E102: 179986 | G102: 179986
C103: Prior year bonus true up - accounting | E103: 35872 | G103: 35872
G104: 0
G105: 0
G106: 0
C107: Total Deductions | E107: =SUM(E74:E106) -> 113818577 | F107: =SUM(F74:F106) -> 0 | G107: =SUM(G74:G106) -> 113818577
C109: Net Income for Tax Purposes | E109: =+E14+E71-E107 -> -2960516 | F109: =+F14+F71-F107 -> 0 | G109: =+G14+G71-G107 -> -2960516
C111: Charitable donations from Schedule 2 | D111: 311 | G111: =+E111-F111 -> 0
C112: Taxable dividends received under section 112 or 113 | D112: 320 | G112: =+E112-F112 -> 0
C113: Non-capital losses of previous tax years from Schedule 4 | D113: 331 | G113: =+E113-F113 -> 0
C114: Net capital losses of previous tax years from Schedule 4 | D114: 332 | G114: =+E114-F114 -> 0
C115: Limited partnership losses of previous tax years from Schedule 4 | D115: 335 | G115: =+E115-F115 -> 0
C117: TAXABLE INCOME (LOSS) | E117: =+E109-SUM(E111:E115) -> -2960516 | F117: =+F109-SUM(F111:F115) -> 0 | G117: =+G109-SUM(G111:G115) -> -2960516 | H117: H0
C118: Loss carryback to 2021 tax year | E118: 2960516 | G118: 2960516
C119: Taxable income (loss) | E119: =SUM(E117:E118) -> 0 | G119: =SUM(G117:G118) -> 0

Sheet H4 Sch 4 Loss Cfwd Hist 23
A7: Modified PILS TAX MODEL for 2026 – 2030 Test Years
C11: Schedule 4 Loss Carry Forward - Historical 2023
C13: Corporation Loss Continuity and Application
C15: Non-Capital Loss Carry Forward Deduction | F15: Total | G15: Non-Distribution Portion | H15: Utility Balance
C16: Actual Historical | H16: =F16-G16 -> 0 | I16: B4
C18: Net Capital Loss Carry Forward Deduction | F18: Total | G18: Non-Distribution Portion | H18: Utility Balance
C19: Actual Historical | H19: =F19-G19 -> 0 | I19: B4

Sheet H13 Sch 13 Reserves Hist 23
A7: Modified PILS TAX MODEL for 2026 – 2030 Test Years
C10: Schedule 13 Tax Reserves - Historical 2023
C12: Continuity of Reserves
C15: Description | D15: Historical Balance as per tax returns | E15: Non-Distribution Eliminations | F15: Utility Only
C17: Capital gains reserves ss.40(1) | F17: =D17-E17 -> 0 | G17: B13
C18: Tax reserves not deducted for accounting purposes
C19: Reserve for doubtful accounts ss. 20(1)(l) | D19: 4140541 | F19: =D19-E19 -> 4140541 | G19: B13
C20: Reserve for undelivered goods and services not rendered ss. 20(1)(m) | D20: 2635000 | F20: 2635000 | G20: B13
C21: Reserve for unpaid amounts ss. 20(1)(n) | F21: 0 | G21: B13
C22: Debt & share issue expenses ss. 20(1)(e) | F22: 0 | G22: B13
C23: Other tax reserves | F23: 0 | G23: B13
F24: 0
F25: 0
F26: 0
F27: 0
F28: 0
C29: Total | D29: =SUM(D19:D28) -> 6775541 | E29: =SUM(E19:E28) -> 0 | F29: =SUM(F19:F28) -> 6775541
C31: Financial Statement Reserves (not deductible for Tax Purposes)
C32: General reserve for inventory obsolescence (non-specific) | F32: =D32-E32 -> 0 | G32: B13
C33: General reserve for bad debts | D33: =D19 -> 4140541 | F33: 4140541 | G33: B13
C34: Accrued Employee Future Benefits: | F34: 0 | G34: B13
C35: - Medical and Life Insurance | F35: 0 | G35: B13
C36: -Short & Long-term Disability | F36: 0 | G36: B13
C37: -Accmulated Sick Leave | F37: 0 | G37: B13
C38: - Termination Cost | F38: 0 | G38: B13
C39: - Other Post-Employment Benefits | F39: 0 | G39: B13
C40: Provision for Environmental Costs | F40: 0 | G40: B13
C41: Restructuring Costs | F41: 0 | G41: B13
C42: Accrued Contingent Litigation Costs | F42: 0 | G42: B13
C43: Accrued Self-Insurance Costs | F43: 0 | G43: B13
C44: Other Contingent Liabilities | F44: 0 | G44: B13
C45: Bonuses Accrued and Not Paid Within 180 Days of Year-End ss. 78(4) | F45: 0 | G45: B13
C46: Unpaid Amounts to Related Person and Not Paid Within 3 Taxation Years ss. 78(1) | F46: 0 | G46: B13
C47: Other | F47: 0 | G47: B13
F51: 0
F52: 0
C53: Total | D53: =SUM(D32:D52) -> 4140541 | E53: =SUM(E32:E52) -> 0 | F53: =SUM(F32:F52) -> 4140541

Sheet H8 Sch 8 CCA Hist 23
A6: Modified PILS TAX MODEL for 2026 – 2030 Test Years
C8: Schedule 8 - Historical Year 2023
C11: Class | D11: Class Description | E11: UCC End of Year Historical per tax returns | F11: Less: Non-Distribution Portion | G11: UCC Regulated Historical Year | H11: Working Paper Reference
C12: 1 | D12: Buildings, Distribution System (acq'd post 1987) | E12: 128931245.8 | G12: =+E12-F12 -> 128931245.8 | H12: B8
C13: 1b | D13: Non-Residential Buildings [Reg. 1100(1)(a.1) election] | E13: 77606911.26 | F13: 3448067.48 | G13: =+E13-F13 -> 74158843.78 | H13: B8
C14: 2 | D14: Distribution System (acq'd pre 1988) | E14: 36385516.12 | G14: =+E14-F14 -> 36385516.12 | H14: B8
C15: 3 | D15: Buildings (acq'd pre 1988) | E15: 4335933.463 | G15: 4335933.463 | H15: B8
C16: 6 | D16: Certain Buildings; Fences | G16: =+E16-F16 -> 0 | H16: B8
C17: 8 | D17: General Office Equipment, Furniture, Fixtures | E17: 6060780.37 | F17: 160209.9832 | G17: 5900570.387 | H17: B8
C18: 10 | D18: Motor Vehicles, Fleet | E18: 4383825.468 | G18: 4383825.468 | H18: B8
C19: 10.1 | D19: Certain Automobiles | G19: 0 | H19: B8
C20: 12 | D20: Computer Application Software (Non-Systems) | G20: 0 | H20: B8
C21: 13 1 | D21: Lease # 1 | G21: 0 | H21: B8
C22: 13 2 | D22: Lease # 2 | G22: 0 | H22: B8
C23: 13 3 | D23: Lease # 3 | G23: 0 | H23: B8
C24: 13 4 | D24: Lease # 4 | G24: 0 | H24: B8
C25: 14 | D25: Limited Period Patents, Franchises, Concessions or Licences | G25: 0 | H25: B8
C26: 14.1 | D26: Eligible Capital Property (acq'd pre 2017) | E26: 7500206.939 | G26: =+E26-F26 -> 7500206.939 | H26: B8
C27: 14.1 | D27: Eligible Capital Property (acq'd post 2016) | E27: 47701007.46 | F27: 1657520.219 | G27: =+E27-F27 -> 46043487.24 | H27: B8
C28: 17 | D28: Elec. Generation Equip. (Non-Bldng, acq'd post Feb 27/00); Roads, Lots, Storage | E28: 1977598.553 | F28: 580089.7086 | G28: 1397508.844 | H28: B8
C29: 42 | D29: Fibre Optic Cable | E29: 3700302.098 | F29: 2486111.257 | G29: =+E29-F29 -> 1214190.841 | H29: B8
C30: 43.1 | D30: Certain Clean Energy/Energy-Efficient Generation Equipment | E30: 0 | G30: 0 | H30: B8
C31: 43.2 | D31: Certain Clean Energy/Energy-Efficient Generation Equipment | E31: 25299.49245 | F31: 167.1328125 | G31: 25132.35964 | H31: B8
C32: 45 | D32: Computers & System Software (acq'd post Mar 22/04 and pre Mar 19/07) | E32: 120.3763589 | G32: 120.3763589 | H32: B8
C33: 46 | D33: Data Network Infrastructure Equipment (acq'd post Mar 22/04) | G33: 0 | H33: B8
C34: 47 | D34: Distribution System (acq'd post Feb 22/05) | E34: 665887271.4 | G34: 665887271.4 | H34: B8
C35: 50 | D35: General Purpose Computer Hardware & Software (acq'd post Mar 18/07) | E35: 326282.5333 | F35: 3752.129343 | G35: 322530.404 | H35: B8
C36: 95 | D36: CWIP | G36: 0 | H36: B8
G37: 0
G38: 0
G39: 0
G40: 0
G41: 0
G42: 0
G43: 0
G44: 0
D45: SUB-TOTAL - UCC | E45: =SUM(E12:E44) -> 984822301.3 | F45: =SUM(F12:F44) -> 8335917.91 | G45: =SUM(G12:G44) -> 976486383.4

Sheet A0 PILs,Tax Provision Hist 24
A5: Modified PILS TAX MODEL for 2026 – 2030 Test Years
C7: PILS Tax Provision - Historical Year 2024
C9: Note: Input the actual information from the tax returns for the historical year. | I9: Wires Only
C11: Regulatory Taxable Income | H11: H1 | I11: ='A1 Taxable Income Hist 24'!G117 -> 2108802 | J11: A
C13: Ontario Income Taxes
C14: Income tax payable | D14: Ontario Income Tax | F14: B | H14: C = A * B
C16: Small business credit | D16: Ontario Small Business Threshold | E16: =IF(I11>'B. Tax Rates & Exemptions'!E27,'B. Tax Rates & Exemptions'!E27,0) -> 500000 | F16: D
D17: Rate reduction (negative) | F17: E | H17: F = D * E
C21: Ontario Income tax | I21: =SUM(G14:G20) -> 0 | J21: J = C + F
C24: Combined Tax Rate and PILs | D24: Ontario Tax Rate (Maximum 11.5%) | G24: 0.115 | H24: B
D25: Federal tax rate (Maximum 15%) | G25: 0.15 | H25: C
D26: Combined tax rate (Maximum 26.5%) | I26: =SUM(G24:G25) -> 0.265 | J26: D = B+C
D28: CMT | I28: 516965
C30: Total Income Taxes | I30: =I11*I26+I28 -> 1075797.53 | J30: E = A * D
C32: Investment Tax Credits | J32: F
C33: Miscellaneous Tax Credits | I33: 71241 | J33: G
C34: Total Tax Credits | I34: =SUM(I32:I33) -> 71241 | J34: H = F + G
C36: Corporate PILs/Income Tax Provision for Historical Year | I36: =IF(I30-I34<0,0,I30-I34) -> 1004556.53 | J36: I = E - H
C38: Corporate PILs/Income Tax Provision Gross Up 1 | G38: =1-I26 -> 0.735 | H38: J = 1-D | I38: =+I36/G38-I36 -> 362187.0482 | J38: K = I/J-I
C40: Income Tax (grossed-up) | I40: =I36+I38 -> 1366743.578 | J40: L = K + I
C43: Note:
C44: 1. This is for the derivation of revenue requirement and should not be used for sufficiency/deficiency calculations.

Sheet A1 Taxable Income Hist 24
A7: Modified PILS TAX MODEL for 2026 – 2030 Test Years
C10: Adjusted Taxable Income - Historical Year 2024
D13: T2S1 line # | E13: Total for Legal Entity | F13: Non-Distribution Eliminations | G13: Historic Wires Only
C14: Income before PILs/Taxes | D14: (A + 101 + 102) | E14: 39844382 | G14: =+E14-F14 -> 39844382
C15: Additions:
C16: Interest and penalties on taxes | D16: 103 | E16: 39474 | G16: =+E16-F16 -> 39474
C17: Amortization of tangible assets | D17: 104 | E17: 58852000 | G17: 58852000
C18: Amortization of intangible assets | D18: 106 | E18: 9348000 | G18: 9348000
C19: Recapture of capital cost allowance from Schedule 8 | D19: 107
C20: Income inclusion under subparagraph 13(38)(d)(iii) from Schedule 10 | D20: 108
C21: Loss in equity of subsidiaries and affiliates | D21: 110
C22: Loss on disposal of assets | D22: 111 | E22: 1059256 | G22: 1059256
C23: Charitable donations and gifts from Schedule 2 | D23: 112 | E23: 50152 | G23: 50152
C24: Taxable capital gains from Schedule 6 | D24: 113 | E24: 108524 | G24: 108524
C25: Political contributions | D25: 114
C26: Deferred and prepaid expenses | D26: 116
C27: Scientific research expenditures deducted on financial statements | D27: 118 | E27: 6152526 | G27: 6152526
C28: Capitalized interest | D28: 119
C29: Non-deductible club dues and fees | D29: 120
C30: Non-deductible meals and entertainment expense | D30: 121 | E30: 124634 | G30: 124634
C31: Non-deductible automobile expenses | D31: 122
C32: Non-deductible life insurance premiums | D32: 123
C33: Non-deductible company pension plans | D33: 124
C34: Tax reserves deducted in prior year | D34: 125 | E34: 6775541 | G34: 6775541
C35: Reserves from financial statements – balance at the end of the year | D35: 126 | E35: ='A13 Sch 13 Reserves Hist 24'!F53 -> 5102888 | G35: 5102888
C36: Soft costs on construction and renovation of buildings | D36: 127
C37: Capital items expensed | D37: 206
C38: Debt issue expense | D38: 208
C39: Development expenses claimed in current year | D39: 212
C40: Financing fees deducted in books | D40: 216
C41: Gain on settlement of debt | D41: 220
C42: Non-deductible advertising | D42: 226
C43: Non-deductible interest | D43: 227
C44: Non-deductible legal and accounting fees | D44: 228
C45: Recapture of SR&ED expenditures | D45: 231
C46: Share issue expense | D46: 235
C47: Write down of capital property | D47: 236
C48: Amounts received in respect of qualifying environment trust per paragraphs 12(1)(z.1) and 12(1)(z.2) | D48: 237
C49: Other additions
C50: Interest Expensed on Capital Leases | D50: 295
C51: Realized Income from Deferred Credit Accounts | D51: 295
C52: Pensions | D52: 295
C53: Non-deductible penalties | D53: 295
C54: Employee Future Benefit Accounting Expense | D54: 295 | E54: 843200 | G54: 843200
C55: Current year investment tax credit received | D55: 295
C56: ARO Accretion expense
C57: Capital Contributions Received (ITA 12(1)(x))
C58: Lease Inducements Received (ITA 12(1)(x))
C59: Deferred Revenue (ITA 12(1)(a))
C60: Prior Year Investment Tax Credits received | E60: 37993 | G60: 37993
C61: Bonus not paid in 180 days after the YE | E61: 102793 | G61: 102793
C62: Legal fees on land sales expensed for accounting | E62: 15613 | G62: 15613
C71: Total Additions | E71: =SUM(E15:E70) -> 88612594 | G71: =SUM(G15:G70) -> 88612594
C73: Deductions:
C74: Gain on disposal of assets per financial statements | D74: 401
C75: Non-taxable dividends under section 83 | D75: 402
C76: Capital cost allowance from Schedule 8 | D76: 403 | E76: 87994435 | G76: =+E76-F76 -> 87994435
C77: Terminal loss from Schedule 8 | D77: 404
C78: Allowable business investment loss | D78: 406
C79: Deferred and prepaid expenses | D79: 409
C80: Scientific research expenses claimed in year | D80: 411 | E80: 10950636 | G80: 10950636
C81: Tax reserves claimed in current year | D81: 413 | E81: ='A13 Sch 13 Reserves Hist 24'!F29 -> 7582888 | G81: 7582888
C82: Reserves from financial statements - balance at beginning of year | D82: 414 | E82: 4140541 | G82: 4140541
C83: Contributions to deferred income plans | D83: 416
C84: Book income of joint venture or partnership | D84: 305
C85: Equity in income from subsidiary or affiliates | D85: 306
C86: Other deductions
C87: Interest capitalized for accounting deducted for tax | D87: 395
C88: Capital Lease Payments | D88: 395
C89: Non-taxable imputed interest income on deferral and variance accounts | D89: 395
C90: Employee Future Benefit Benefits Paid | D90: 395 | E90: 719500 | G90: 719500
C91: SR&ED Claim and SR&ED Exp Capitalized in Accounting | D91: 395 | E91: 4540826 | G91: 4540826
C92: ARO Payments - Deductible for Tax when Paid
C93: ITA 13(7.4) Election - Capital Contributions Received
C94: ITA 13(7.4) Election - Apply Lease Inducement to cost of Leaseholds
C95: Deferred Revenue - ITA 20(1)(m) reserve
C96: Principal portion of lease payments
C97: Lease Inducement Book Amortization credit to income
C98: Financing fees for tax ITA 20(1)(e) and (e.1)
C99: AFUDC | E99: 964805 | G99: 964805
C100: Captial lease payment | E100: 98900 | G100: 98900
C101: Deferred Revenue Amortization (CC) | E101: 9006939 | G101: 9006939
C102: Prior year bonus true up - accounting | E102: 65272 | G102: 65272
C103: ITC recorded in P&L | E103: 146176 | G103: 146176
C107: Total Deductions | E107: =SUM(E74:E106) -> 126210918 | G107: =SUM(G74:G106) -> 126210918
C109: Net Income for Tax Purposes | E109: =+E14+E71-E107 -> 2246058 | G109: =+G14+G71-G107 -> 2246058
C111: Charitable donations from Schedule 2 | D111: 311 | E111: 137256 | G111: =+E111-F111 -> 137256
C112: Taxable dividends received under section 112 or 113 | D112: 320 | G112: =+E112-F112 -> 0
C113: Non-capital losses of previous tax years from Schedule 4 | D113: 331 | G113: =+E113-F113 -> 0
C114: Net capital losses of previous tax years from Schedule 4 | D114: 332 | G114: =+E114-F114 -> 0
C115: Limited partnership losses of previous tax years from Schedule 4 | D115: 335 | G115: =+E115-F115 -> 0
C117: TAXABLE INCOME | E117: =+E109-SUM(E111:E115) -> 2108802 | G117: =+G109-SUM(G111:G115) -> 2108802 | H117: H0

Sheet A4 Sch 4 Loss Hist 24
A8: Modified PILS TAX MODEL for 2026 – 2030 Test Years
C11: Schedule 4 Loss Carry Forward - Historical 2024
C13: Corporation Loss Continuity and Application
C15: Non-Capital Loss Carry Forward Deduction | F15: Total | G15: Non-Distribution Portion | H15: Utility Balance
C16: Actual Historical | H16: =F16-G16 -> 0 | I16: B4
C18: Net Capital Loss Carry Forward Deduction | F18: Total | G18: Non-Distribution Portion | H18: Utility Balance
C19: Actual Historical | H19: =F19-G19 -> 0 | I19: B4

Sheet A8 Sch 8 CCA Hist 24
A6: Modified PILS TAX MODEL for 2026 – 2030 Test Years
C8: Schedule 8 - Historical Year 2024
C11: Class | D11: Class Description | E11: UCC End of Year Historical per tax returns | F11: Less: Non-Distribution Portion | G11: UCC Regulated Historical Year | H11: Working Paper Reference
C12: 1 | D12: Buildings, Distribution System (acq'd post 1987) | E12: 123766109 | G12: =+E12-F12 -> 123766109 | H12: B8
C13: 1b | D13: Non-Residential Buildings [Reg. 1100(1)(a.1) election] | E13: 73498742 | F13: 3282109 | G13: =+E13-F13 -> 70216633 | H13: B8
C14: 2 | D14: Distribution System (acq'd pre 1988) | E14: 34202385 | G14: =+E14-F14 -> 34202385 | H14: B8
C15: 3 | D15: Buildings (acq'd pre 1988) | E15: 4111701 | G15: 4111701 | H15: B8
C16: 6 | D16: Certain Buildings; Fences | E16: 0 | G16: 0 | H16: B8
C17: 8 | D17: General Office Equipment, Furniture, Fixtures | E17: 5611564 | F17: 128168 | G17: 5483396 | H17: B8
C18: 10 | D18: Motor Vehicles, Fleet | E18: 4140094 | G18: 4140094 | H18: B8
C19: 10.1 | D19: Certain Automobiles | G19: 0 | H19: B8
C20: 12 | D20: Computer Application Software (Non-Systems) | G20: 0 | H20: B8
C21: 13 1 | D21: Lease # 1 | G21: 0 | H21: B8
C22: 13 2 | D22: Lease # 2 | G22: 0 | H22: B8
C23: 13 3 | D23: Lease # 3 | G23: 0 | H23: B8
C24: 13 4 | D24: Lease # 4 | G24: 0 | H24: B8
C25: 14 | D25: Limited Period Patents, Franchises, Concessions or Licences | G25: 0 | H25: B8
C26: 14.1 | D26: Eligible Capital Property (acq'd pre 2017) | E26: 6975193 | G26: =+E26-F26 -> 6975193 | H26: B8
C27: 14.1 | D27: Eligible Capital Property (acq'd post 2016) | E27: 45800084 | F27: 1574644 | G27: =+E27-F27 -> 44225440 | H27: B8
C28: 17 | D28: Elec. Generation Equip. (Non-Bldng, acq'd post Feb 27/00); Roads, Lots, Storage | E28: 1848642 | F28: 533683 | G28: 1314959 | H28: B8
C29: 42 | D29: Fibre Optic Cable | E29: 3338657 | F29: 2187778 | G29: 1150879 | H29: B8
C30: 43.1 | D30: Certain Clean Energy/Energy-Efficient Generation Equipment | E30: 296639 | G30: 296639 | H30: B8
C31: 43.2 | D31: Certain Clean Energy/Energy-Efficient Generation Equipment | E31: 198203 | F31: 84 | G31: 198119 | H31: B8
C32: 45 | D32: Computers & System Software (acq'd post Mar 22/04 and pre Mar 19/07) | E32: 66 | G32: 66 | H32: B8
C33: 46 | D33: Data Network Infrastructure Equipment (acq'd post Mar 22/04) | G33: 0 | H33: B8
C34: 47 | D34: Distribution System (acq'd post Feb 22/05) | E34: 691524129 | G34: 691524129 | H34: B8
C35: 50 | D35: General Purpose Computer Hardware & Software (acq'd post Mar 18/07) | E35: 2027571 | F35: 1688 | G35: 2025883 | H35: B8
C36: 95 | D36: CWIP | G36: 0 | H36: B8
G37: 0
G38: 0
G39: 0
G40: 0
G41: 0
G42: 0
G43: 0
G44: 0
D45: SUB-TOTAL - UCC | E45: =SUM(E12:E44) -> 997339779 | F45: =SUM(F12:F44) -> 7708154 | G45: =SUM(G12:G44) -> 989631625

Sheet A13 Sch 13 Reserves Hist 24
A7: Modified PILS TAX MODEL for 2026 – 2030 Test Years
C10: Schedule 13 Tax Reserves - Historical Year 2024
C12: Continuity of Reserves
C15: Description | D15: Historical Balance as per tax returns | E15: Non-Distribution Eliminations | F15: Utility Only
C17: Capital gains reserves ss.40(1) | F17: =D17-E17 -> 0 | G17: B13
C18: Tax reserves not deducted for accounting purposes
C19: Reserve for doubtful accounts ss. 20(1)(l) | D19: 5102888 | F19: =D19-E19 -> 5102888 | G19: B13
C20: Reserve for undelivered goods and services not rendered ss. 20(1)(m) | D20: 2480000 | F20: 2480000 | G20: B13
C21: Reserve for unpaid amounts ss. 20(1)(n) | F21: 0 | G21: B13
C22: Debt & share issue expenses ss. 20(1)(e) | F22: 0 | G22: B13
C23: Other tax reserves | F23: 0 | G23: B13
F24: 0
F25: 0
F26: 0
F27: 0
F28: 0
C29: Total | D29: =SUM(D19:D28) -> 7582888 | E29: =SUM(E19:E28) -> 0 | F29: =SUM(F19:F28) -> 7582888
C31: Financial Statement Reserves (not deductible for Tax Purposes)
C32: General reserve for inventory obsolescence (non-specific) | F32: =D32-E32 -> 0 | G32: B13
C33: General reserve for bad debts | D33: =D19 -> 5102888 | F33: 5102888 | G33: B13
C34: Accrued Employee Future Benefits: | F34: 0 | G34: B13
C35: - Medical and Life Insurance | F35: 0 | G35: B13
C36: -Short & Long-term Disability | F36: 0 | G36: B13
C37: -Accmulated Sick Leave | F37: 0 | G37: B13
C38: - Termination Cost | F38: 0 | G38: B13
C39: - Other Post-Employment Benefits | F39: 0 | G39: B13
C40: Provision for Environmental Costs | F40: 0 | G40: B13
C41: Restructuring Costs | F41: 0 | G41: B13
C42: Accrued Contingent Litigation Costs | F42: 0 | G42: B13
C43: Accrued Self-Insurance Costs | F43: 0 | G43: B13
C44: Other Contingent Liabilities | F44: 0 | G44: B13
C45: Bonuses Accrued and Not Paid Within 180 Days of Year-End ss. 78(4) | F45: 0 | G45: B13
C46: Unpaid Amounts to Related Person and Not Paid Within 3 Taxation Years ss. 78(1) | F46: 0 | G46: B13
C47: Other | F47: 0 | G47: B13
F51: 0
F52: 0
C53: Total | D53: =SUM(D32:D52) -> 5102888 | E53: =SUM(E32:E52) -> 0 | F53: =SUM(F32:F52) -> 5102888

Sheet B0 PILs,Tax Provision Bridge 25
A6: Modified PILS TAX MODEL for 2026 – 2030 Test Years
B8: PILS Tax Provision - Bridge Year 2025
J10: Wires Only
I11: Reference
C12: Regulatory Taxable Income | I12: B1 | J12: ='B1 Taxable Income Bridge 25'!F111 -> 27063383.58 | K12: A
D14: Tax Rate | E14: Small Business Rate (If Applicable) | F14: Taxes Payable | G14: Effective Tax Rate
C15: Ontario (Max 11.5%) | D15: 0.115 | E15: =IF('A. Data Input Sheet 26-30'!H9<=10000000, ontario_SB, IF('A. Data Input Sheet 26-30'!H9>=50000000, ontariotax, IF(AND('A. Data Input Sheet 26-30'!H9>10000000, 'A. Data Input Sheet 26-30'!H9<50000000), ontario_SB+ ('A. Data Input Sheet 26-30'!H9 - 10000000)*(ontariotax - ontario_SB)/(50000000-10000000)))) -> 0.115 | F15: =IF(J12<500000,J12,500000)*E15+IF(J12>500000,J12-500000,0)*D15 -> 3112289.112 | G15: =IF(F15=0,0,+F15/J12) -> 0.115 | H15: B
C16: Federal (Max 15%) | D16: 0.15 | E16: =IF('A. Data Input Sheet 26-30'!H9<=10000000, Fed_SB_Bridge, IF('A. Data Input Sheet 26-30'!H9>=50000000, FedTax, IF(AND('A. Data Input Sheet 26-30'!H9>10000000, 'A. Data Input Sheet 26-30'!H9<50000000), Fed_SB_Bridge+ ('A. Data Input Sheet 26-30'!H9 - 10000000)*(FedTax -Fed_SB_Bridge)/(50000000-10000000)))) -> 0.15 | F16: =E16*IF(J12<500000,J12,500000)+IF(J12>500000,J12-500000,0)*D16 -> 4059507.538 | G16: =IF(F16=0,0,+F16/J12) -> 0.15 | H16: C
C18: Combined effective tax rate (Max 26.5%) | J18: =SUM(G15:G16) -> 0.265 | K18: D = B + C
C21: Total Income Taxes | J21: =IF(J12*J18<0,0,J12*J18) -> 7171796.65 | K21: E = A * D
C23: Investment Tax Credits | J23: 119000 | K23: F
C24: Miscellaneous Tax Credits | K24: G
C25: Total Tax Credits | J25: =SUM(J23:J24) -> 119000 | K25: H = F + G
C27: Corporate PILs/Income Tax Provision for Bridge Year | J27: =IF(J21-J25<0,0,J21-J25) -> 7052796.65 | K27: I = E - H
C29: Corporate PILs/Income Tax Provision Gross Up 1 | H29: =1-J18 -> 0.735 | I29: J = 1-D | J29: =+J27/H29-J27 -> 2542845.051 | K29: K = I/J-I
C31: Income Tax (grossed-up) | J31: =J27+J29 -> 9595641.7 | K31: L = K + I
C34: Note:
C35: 1. This is for the derivation of Bridge year PILs income tax expense and should not be used for Test year revenue requirement calculations.

Sheet B1 Taxable Income Bridge 25
A3: Modified PILS TAX MODEL for 2026 – 2030 Test Years
B5: Adjusted Taxable Income - Bridge Year 2025
D7: T2S1 line # | E7: Working Paper Reference | F7: Total for Regulated Utility
C8: Income before PILs/Taxes | D8: (A + 101 + 102) | F8: 52357213.75
C10: Additions:
C11: Interest and penalties on taxes | D11: 103 | F11: 24000
C12: Amortization of tangible assets | D12: 104 | F12: 62115697.66
C13: Amortization of intangible assets | D13: 106
C14: Recapture of capital cost allowance from Schedule 8 | D14: 107 | E14: B8 | F14: ='B8 Sch 8 CCA Bridge 25'!Y45 -> 0
C15: Income inclusion under subparagraph 13(38)(d)(iii) | D15: 108
C16: Income or loss for tax purposes- joint ventures or partnerships | D16: 109
C17: Loss in equity of subsidiaries and affiliates | D17: 110
C18: Loss on disposal of assets | D18: 111 | F18: 1107000
C19: Charitable donations and gifts from Schedule 2 | D19: 112
C20: Taxable capital gains | D20: 113
C21: Political contributions | D21: 114
C22: Deferred and prepaid expenses | D22: 116
C23: Scientific research expenditures deducted on financial statements | D23: 118 | F23: 8753713.821
C24: Capitalized interest | D24: 119
C25: Non-deductible club dues and fees | D25: 120
C26: Non-deductible meals and entertainment expense | D26: 121 | F26: 64099
C27: Non-deductible automobile expenses | D27: 122
C28: Non-deductible life insurance premiums | D28: 123
C29: Non-deductible company pension plans | D29: 124
C30: Tax reserves deducted in prior year | D30: 125 | E30: B13 | F30: ='B13 Sch 13 Reserves Bridge 25'!E22 -> 7582888
C31: Reserves from financial statements- balance at end of year | D31: 126 | E31: B13 | F31: ='B13 Sch 13 Reserves Bridge 25'!K43 -> 5102888
C32: Soft costs on construction and renovation of buildings | D32: 127
C33: Capital items expensed | D33: 206
C34: Debt issue expense | D34: 208
C35: Development expenses claimed in current year | D35: 212
C36: Financing fees deducted in books | D36: 216
C37: Gain on settlement of debt | D37: 220
C38: Non-deductible advertising | D38: 226
C39: Non-deductible interest | D39: 227
C40: Non-deductible legal and accounting fees | D40: 228
C41: Recapture of SR&ED expenditures | D41: 231
C42: Share issue expense | D42: 235
C43: Write down of capital property | D43: 236
C44: Amounts received in respect of qualifying environment trust per paragraphs 12(1)(z.1) and 12(1)(z.2) | D44: 237
C45: Other Additions
C46: Interest Expensed on Capital Leases | D46: 295
C47: Realized Income from Deferred Credit Accounts | D47: 295
C48: Pensions | D48: 295
C49: Non-deductible penalties | D49: 295
C50: Employee Future Benefit Accounting Expense | D50: 295 | F50: 856698
C51: Current year investment tax credit received | D51: 295 | F51: 119000
C52: ARO Accretion expense
C53: Capital Contributions Received (ITA 12(1)(x))
C54: Lease Inducements Received (ITA 12(1)(x))
C55: Deferred Revenue (ITA 12(1)(a))
C56: Prior Year Investment Tax Credits received | F56: 52680.92356
C58: Donation expense | F58: 556500
C67: Total Additions | F67: =SUM(F10:F66) -> 86335165.4
C68: Deductions:
C69: Gain on disposal of assets per financial statements | D69: 401
C70: Dividends not taxable under section 83 | D70: 402
C71: Capital cost allowance from Schedule 8 | D71: 403 | E71: B8 | F71: ='B8 Sch 8 CCA Bridge 25'!AA45 -> 84320024.46
C72: Terminal loss from Schedule 8 | D72: 404 | E72: B8
C73: Allowable business investment loss | D73: 406
C74: Deferred and prepaid expenses | D74: 409
C75: Scientific research expenses claimed in year | D75: 411 | F75: 7006454.3
C76: Tax reserves claimed in current year | D76: 413 | E76: B13 | F76: ='B13 Sch 13 Reserves Bridge 25'!K22 -> 7582888
C77: Reserves from financial statements - balance at beginning of year | D77: 414 | E77: B13 | F77: ='B13 Sch 13 Reserves Bridge 25'!E43 -> 5102888
C78: Contributions to deferred income plans | D78: 416
C79: Book income of joint venture or partnership | D79: 305
C80: Equity in income from subsidiary or affiliates | D80: 306
C81: Other deductions
C82: Interest capitalized for accounting deducted for tax | D82: 395
C83: Capital Lease Payments | D83: 395
C84: Non-taxable imputed interest income on deferral and variance accounts | D84: 395
C85: Employee Future Benefit Benefits Paid | D85: 395 | F85: 806698
C86: SR&ED Claim and SR&ED Exp Capitalized in Accounting | D86: 395 | F86: 6495042.814
C87: ARO Payments - Deductible for Tax when Paid
C88: ITA 13(7.4) Election - Capital Contributions Received
C89: ITA 13(7.4) Election - Apply Lease Inducement to cost of Leaseholds
C90: Deferred Revenue - ITA 20(1)(m) reserve
C91: Principal portion of lease payments
C92: Lease Inducement Book Amortization credit to income
C93: Financing fees for tax ITA 20(1)(e) and (e.1)
C94: Donations - OEB Qualified | F94: 315000
C102: Total Deductions | E102: calculated | F102: =SUM(F69:F101) -> 111628995.6
C104: Net Income for Tax Purposes | E104: calculated | F104: =+F8+F67-F102 -> 27063383.58
C105: Charitable donations | D105: 311
C106: Taxable dividends received under section 112 or 113 | D106: 320
C107: Non-capital losses of previous tax years from Schedule 4 | D107: 331 | E107: B4 | F107: ='B4 Sch 4 Loss Cfwd Bridge 25'!G13*-1 -> 0
C108: Net capital losses of previous tax years from Schedule 4 | D108: 332 | E108: B4 | F108: ='B4 Sch 4 Loss Cfwd Bridge 25'!G20*-1 -> 0
C109: Limited partnership losses of previous tax years from Schedule 4 | D109: 335
C111: TAXABLE INCOME | E111: calculated | F111: =SUM(F104:F109) -> 27063383.58

Sheet B4 Sch 4 Loss Cfwd Bridge 25
A5: Modified PILS TAX MODEL for 2026 – 2030 Test Years
C7: Corporation Loss Continuity and Application
C9: Schedule 4 Loss Carry Forward - Bridge Year 2025
C11: Non-Capital Loss Carry Forward Deduction | G11: Total
C12: Actual Historical | F12: H4 | G12: ='H4 Sch 4 Loss Cfwd Hist 23'!H16 -> 0
C13: Amount to be used in Bridge Year | F13: B1 | G13: =IF('B1 Taxable Income Bridge 25'!F104<0,0,IF('B1 Taxable Income Bridge 25'!F104>G12,G12,'B1 Taxable Income Bridge 25'!F104)) -> 0
C14: Loss Carry Forward Generated in Bridge Year (if any) | F14: B1 | G14: =IF('B1 Taxable Income Bridge 25'!F104<0, 'B1 Taxable Income Bridge 25'!F104*-1, 0) -> 0
C15: Other Adjustments
C16: Balance available for use post Bridge Year | F16: calculated | G16: =G12-G13+G14+G15 -> 0 | H16: T4
C18: Net Capital Loss Carry Forward Deduction | G18: Total
C19: Actual Historical | F19: H4 | G19: ='H4 Sch 4 Loss Cfwd Hist 23'!H19 -> 0
C20: Amount to be used in Bridge Year
C21: Loss Carry Forward Generated in Bridge Year (if any) | F21: B1
C22: Other Adjustments
C23: Balance available for use post Bridge Year | F23: calculated | G23: =G19-G20+G21+G22 -> 0 | H23: T4

Sheet B8 Sch 8 CCA Bridge 25
A5: Modified PILS TAX MODEL for 2026 – 2030 Test Years
B9: Schedule 8 CCA - Bridge Year 2025
B11: (1) Class | C11: Class Description | D11: Working Paper Reference | E11: (2) Undepreciated capital cost (UCC) at the beginning of the bridge year | F11: (3) Cost of acquisitions during the year (new property must be available for use, except CWIP) | G11: (4) Cost of acquisitions from column 3 that are designated immediate expensing property (DIEP) | H11: (5) Adjustments and transfers (enter amounts that will reduce the UCC as negatives) | I11: (6) Amount from column 5 that is assistance received or receivable during the year for a property, subsequent to its disposition | J11: (7) Amount from column 5 that is repaid during the year for a property, subsequent to its disposition | K11: (8) Proceeds of dispositions | L11: (9) Proceeds of dispositions of the DIEP (enter amount from column 8 that relates to the DIEP reported in column 4) | M11: (10) UCC (column 2 plus column 3 plus or minus column 5 minus column 8) | N11: (11) UCC of the DIEP (enter the UCC amount that relates to the DIEP reported in column 4) | O11: (12) Immediate expensing | P11: (13) Cost of acquisitions on remainder of Class (column 3 minus column 4 plus column 11 minus column 12) | Q11: (14) Cost of acquisitions from column 13 that are accelerated investment incentive properties (AIIP) or properties included in Classes 54 to 56 | R11: (15) Remaining UCC (column 10 minus column 12) (if negative, enter "0") | S11: (16) Proceeds of disposition available to reduce the UCC of AIIP and property included in Classes 54 to 56 (column 8 minus column 9 plus column 6 minus column 13 plus column 14 minus column 7) (if negative, enter "0") | T11: (17) Net capital cost additions of AIIP and property included in Classes 54 to 56 acquired during the year (column 14 minus column 16) (if negative, enter "0") | U11: Relevant factor1 | V11: (18) UCC adjustment for AIIP and property included in Classes 54 to 56 acquired during the year (column 17 multiplied by the relevant factor) | W11: (19) UCC adjustment for non-AIIP and property included in Classes 54 to 56 (0.5 multiplied by the result of column 13 minus column 14 minus column 6 plus column 7 minus column 8 plus column 9) (if negative, enter "0") | X11: (20) CCA Rate % | Y11: (21) Recapture of CCA | Z11: (22) Terminal Loss | AA11: (23) CCA (for declining balance method, the result of column 15 plus column 18 minus column 19, multiplied by column 20 or a lower amount, plus column 12)) | AB11: (24) UCC at the end of the test year (column 10 minus column 23) | AC11: Working Paper Reference
B12: =IF(ISBLANK('H8 Sch 8 CCA Hist 23'!C12), "", 'H8 Sch 8 CCA Hist 23'!C12) -> 1 | C12: =IF(ISBLANK('H8 Sch 8 CCA Hist 23'!D12), "", 'H8 Sch 8 CCA Hist 23'!D12) -> Buildings, Distribution System (acq'd post 1987) | D12: H8 | E12: ='A8 Sch 8 CCA Hist 24'!G12 -> 123766109 | M12: =IFERROR(E12+F12+H12-K12,0) -> 123766109 | P12: =+F12-G12+N12-O12 -> 0 | R12: =IF((M12-O12)<0,0,M12-O12) -> 123766109 | S12: =IF((K12-L12+I12-P12+Q12-J12)<0,0,(K12-L12+I12-P12+Q12-J12)) -> 0 | T12: =IF((Q12-S12)<0,0,(Q12-S12)) -> 0 | U12: 0 | V12: =T12*U12 -> 0 | W12: =IF((0.5*(P12-Q12-I12+J12-K12+L12))<0,0,(0.5*(P12-Q12-I12+J12-K12+L12))) -> 0 | X12: 0.04 | AA12: =IF(OR(R12<=0,Z12>0),0,(R12+V12-W12)*X12) -> 4950644.36 | AB12: =IF(M12<0,0,M12-Z12-AA12) -> 118815464.6 | AC12: T8
B13: =IF(ISBLANK('H8 Sch 8 CCA Hist 23'!C13), "", 'H8 Sch 8 CCA Hist 23'!C13) -> 1b | C13: =IF(ISBLANK('H8 Sch 8 CCA Hist 23'!D13), "", 'H8 Sch 8 CCA Hist 23'!D13) -> Non-Residential Buildings [Reg. 1100(1)(a.1) election] | D13: H8 | E13: ='A8 Sch 8 CCA Hist 24'!G13 -> 70216633 | F13: 10169150.62 | M13: =IFERROR(E13+F13+H13-K13,0) -> 80385783.62 | P13: =+F13-G13+N13-O13 -> 10169150.62 | Q13: =F13 -> 10169150.62 | R13: =IF((M13-O13)<0,0,M13-O13) -> 80385783.62 | S13: =IF((K13-L13+I13-P13+Q13-J13)<0,0,(K13-L13+I13-P13+Q13-J13)) -> 0 | T13: =IF((Q13-S13)<0,0,(Q13-S13)) -> 10169150.62 | U13: 0 | V13: =T13*U13 -> 0 | W13: =IF((0.5*(P13-Q13-I13+J13-K13+L13))<0,0,(0.5*(P13-Q13-I13+J13-K13+L13))) -> 0 | X13: 0.06 | AA13: =IF(OR(R13<=0,Z13>0),0,(R13+V13-W13)*X13) -> 4823147.017 | AB13: =IF(M13<0,0,M13-Z13-AA13) -> 75562636.6 | AC13: T8
B14: =IF(ISBLANK('H8 Sch 8 CCA Hist 23'!C14), "", 'H8 Sch 8 CCA Hist 23'!C14) -> 2 | C14: =IF(ISBLANK('H8 Sch 8 CCA Hist 23'!D14), "", 'H8 Sch 8 CCA Hist 23'!D14) -> Distribution System (acq'd pre 1988) | D14: H8 | E14: ='A8 Sch 8 CCA Hist 24'!G14 -> 34202385 | M14: 34202385 | P14: 0 | Q14: =F14 -> 0 | R14: 34202385 | S14: 0 | T14: 0 | V14: 0 | W14: 0 | X14: 0.06 | AA14: 2052143.1 | AB14: 32150241.9 | AC14: T8
B15: =IF(ISBLANK('H8 Sch 8 CCA Hist 23'!C15), "", 'H8 Sch 8 CCA Hist 23'!C15) -> 3 | C15: =IF(ISBLANK('H8 Sch 8 CCA Hist 23'!D15), "", 'H8 Sch 8 CCA Hist 23'!D15) -> Buildings (acq'd pre 1988) | D15: H8 | E15: ='A8 Sch 8 CCA Hist 24'!G15 -> 4111701 | M15: 4111701 | P15: 0 | Q15: 0 | R15: 4111701 | S15: 0 | T15: 0 | V15: 0 | W15: 0 | X15: 0.05 | AA15: 205585.05 | AB15: 3906115.95 | AC15: T8
B16: =IF(ISBLANK('H8 Sch 8 CCA Hist 23'!C16), "", 'H8 Sch 8 CCA Hist 23'!C16) -> 6 | C16: =IF(ISBLANK('H8 Sch 8 CCA Hist 23'!D16), "", 'H8 Sch 8 CCA Hist 23'!D16) -> Certain Buildings; Fences | D16: H8 | E16: ='A8 Sch 8 CCA Hist 24'!G16 -> 0 | M16: 0 | P16: 0 | Q16: 0 | R16: 0 | S16: 0 | T16: 0 | U16: 0 | V16: 0 | W16: 0 | X16: 0.1 | AA16: 0 | AB16: 0 | AC16: T8
B17: =IF(ISBLANK('H8 Sch 8 CCA Hist 23'!C17), "", 'H8 Sch 8 CCA Hist 23'!C17) -> 8 | C17: =IF(ISBLANK('H8 Sch 8 CCA Hist 23'!D17), "", 'H8 Sch 8 CCA Hist 23'!D17) -> General Office Equipment, Furniture, Fixtures | D17: H8 | E17: ='A8 Sch 8 CCA Hist 24'!G17 -> 5483396 | F17: 1579229.48 | M17: 7062625.48 | P17: 1579229.48 | Q17: 1579229.48 | R17: 7062625.48 | S17: 0 | T17: 1579229.48 | U17: 0 | V17: 0 | W17: 0 | X17: 0.2 | AA17: 1412525.096 | AB17: 5650100.384 | AC17: T8
B18: =IF(ISBLANK('H8 Sch 8 CCA Hist 23'!C18), "", 'H8 Sch 8 CCA Hist 23'!C18) -> 10 | C18: =IF(ISBLANK('H8 Sch 8 CCA Hist 23'!D18), "", 'H8 Sch 8 CCA Hist 23'!D18) -> Motor Vehicles, Fleet | D18: H8 | E18: ='A8 Sch 8 CCA Hist 24'!G18 -> 4140094 | F18: 5780182.35 | K18: 132000 | M18: 9788276.35 | P18: 5780182.35 | Q18: 5780182.35 | R18: 9788276.35 | S18: 132000 | T18: 5648182.35 | U18: 0 | V18: 0 | W18: 0 | X18: 0.3 | AA18: =IF(OR(R18<=0,Z18>0),0,(R18+V18-W18)*X18) -> 2936482.905 | AB18: 6851793.445 | AC18: T8
B19: =IF(ISBLANK('H8 Sch 8 CCA Hist 23'!C19), "", 'H8 Sch 8 CCA Hist 23'!C19) -> 10.1 | C19: =IF(ISBLANK('H8 Sch 8 CCA Hist 23'!D19), "", 'H8 Sch 8 CCA Hist 23'!D19) -> Certain Automobiles | D19: H8 | E19: ='A8 Sch 8 CCA Hist 24'!G19 -> 0 | M19: 0 | P19: 0 | Q19: 0 | R19: 0 | S19: 0 | T19: 0 | U19: 0 | V19: 0 | W19: 0 | X19: 0.3 | AA19: 0 | AB19: 0 | AC19: T8
B20: =IF(ISBLANK('H8 Sch 8 CCA Hist 23'!C20), "", 'H8 Sch 8 CCA Hist 23'!C20) -> 12 | C20: =IF(ISBLANK('H8 Sch 8 CCA Hist 23'!D20), "", 'H8 Sch 8 CCA Hist 23'!D20) -> Computer Application Software (Non-Systems) | D20: H8 | E20: ='A8 Sch 8 CCA Hist 24'!G20 -> 0 | F20: 820297.99 | M20: 820297.99 | P20: 820297.99 | Q20: 820297.99 | R20: 820297.99 | S20: 0 | T20: 820297.99 | U20: 0 | V20: 0 | W20: 0 | X20: 1 | AA20: 820297.99 | AB20: 0 | AC20: T8
B21: 13 1 | C21: =IF(ISBLANK('H8 Sch 8 CCA Hist 23'!D21), "", 'H8 Sch 8 CCA Hist 23'!D21) -> Lease # 1 | D21: H8 | E21: ='A8 Sch 8 CCA Hist 24'!G21 -> 0 | M21: 0 | P21: 0 | Q21: 0 | R21: 0 | S21: 0 | T21: 0 | U21: 0 | V21: 0 | W21: 0 | X21: NA | AA21: 0 | AB21: 0 | AC21: T8
B22: 13 2 | C22: =IF(ISBLANK('H8 Sch 8 CCA Hist 23'!D22), "", 'H8 Sch 8 CCA Hist 23'!D22) -> Lease # 2 | D22: H8 | E22: ='A8 Sch 8 CCA Hist 24'!G22 -> 0 | M22: 0 | P22: 0 | Q22: 0 | R22: 0 | S22: 0 | T22: 0 | U22: 0 | V22: 0 | W22: 0 | X22: NA | AA22: 0 | AB22: 0 | AC22: T8
B23: 13 3 | C23: =IF(ISBLANK('H8 Sch 8 CCA Hist 23'!D23), "", 'H8 Sch 8 CCA Hist 23'!D23) -> Lease # 3 | D23: H8 | E23: ='A8 Sch 8 CCA Hist 24'!G23 -> 0 | M23: 0 | P23: 0 | Q23: 0 | R23: 0 | S23: 0 | T23: 0 | U23: 0 | V23: 0 | W23: 0 | X23: NA | AA23: 0 | AB23: 0 | AC23: T8
B24: 13 4 | C24: =IF(ISBLANK('H8 Sch 8 CCA Hist 23'!D24), "", 'H8 Sch 8 CCA Hist 23'!D24) -> Lease # 4 | D24: H8 | E24: ='A8 Sch 8 CCA Hist 24'!G24 -> 0 | M24: 0 | P24: 0 | Q24: 0 | R24: 0 | S24: 0 | T24: 0 | U24: 0 | V24: 0 | W24: 0 | X24: NA | AA24: 0 | AB24: 0 | AC24: T8
B25: =IF(ISBLANK('H8 Sch 8 CCA Hist 23'!C25), "", 'H8 Sch 8 CCA Hist 23'!C25) -> 14 | C25: =IF(ISBLANK('H8 Sch 8 CCA Hist 23'!D25), "", 'H8 Sch 8 CCA Hist 23'!D25) -> Limited Period Patents, Franchises, Concessions or Licences | D25: H8 | E25: ='A8 Sch 8 CCA Hist 24'!G25 -> 0 | M25: 0 | P25: 0 | Q25: 0 | R25: 0 | S25: 0 | T25: 0 | U25: 0 | V25: 0 | W25: 0 | X25: NA | AA25: 0 | AB25: 0 | AC25: T8
B26: 14.1 | C26: Eligible Capital Property (acq'd pre Jan 1, 2017) | D26: H8 | E26: ='A8 Sch 8 CCA Hist 24'!G26 -> 6975193 | M26: 6975193 | P26: 0 | Q26: 0 | R26: =IF((M26-O26)<0,0,M26-O26) -> 6975193 | S26: =IF((K26-L26+I26-P26+Q26-J26)<0,0,(K26-L26+I26-P26+Q26-J26)) -> 0 | T26: 0 | V26: 0 | W26: 0 | X26: 0.07 | AA26: 488263.51 | AB26: 6486929.49 | AC26: T8
B27: 14.1 | C27: Eligible Capital Property (acq'd post Jan 1, 2017) | D27: H8 | E27: ='A8 Sch 8 CCA Hist 24'!G27 -> 44225440 | F27: 946311.49 | M27: 45171751.49 | P27: 946311.49 | Q27: 946311.49 | R27: 45171751.49 | S27: 0 | T27: 946311.49 | U27: 0 | V27: 0 | W27: 0 | X27: 0.05 | AA27: 2258587.575 | AB27: 42913163.92 | AC27: T8
B28: =IF(ISBLANK('H8 Sch 8 CCA Hist 23'!C28), "", 'H8 Sch 8 CCA Hist 23'!C28) -> 17 | C28: =IF(ISBLANK('H8 Sch 8 CCA Hist 23'!D28), "", 'H8 Sch 8 CCA Hist 23'!D28) -> Elec. Generation Equip. (Non-Bldng, acq'd post Feb 27/00); Roads, Lots, Storage | D28: H8 | E28: ='A8 Sch 8 CCA Hist 24'!G28 -> 1314959 | M28: 1314959 | P28: 0 | Q28: 0 | R28: 1314959 | S28: 0 | T28: 0 | U28: 0 | V28: 0 | W28: 0 | X28: 0.08 | AA28: 105196.72 | AB28: 1209762.28 | AC28: T8
B29: =IF(ISBLANK('H8 Sch 8 CCA Hist 23'!C29), "", 'H8 Sch 8 CCA Hist 23'!C29) -> 42 | C29: =IF(ISBLANK('H8 Sch 8 CCA Hist 23'!D29), "", 'H8 Sch 8 CCA Hist 23'!D29) -> Fibre Optic Cable | D29: H8 | E29: ='A8 Sch 8 CCA Hist 24'!G29 -> 1150879 | F29: 13741.61 | M29: 1164620.61 | P29: 13741.61 | Q29: 13741.61 | R29: 1164620.61 | S29: 0 | T29: 13741.61 | U29: 0 | V29: 0 | W29: 0 | X29: 0.12 | AA29: 139754.4732 | AB29: 1024866.137 | AC29: T8
B30: =IF(ISBLANK('H8 Sch 8 CCA Hist 23'!C30), "", 'H8 Sch 8 CCA Hist 23'!C30) -> 43.1 | C30: =IF(ISBLANK('H8 Sch 8 CCA Hist 23'!D30), "", 'H8 Sch 8 CCA Hist 23'!D30) -> Certain Clean Energy/Energy-Efficient Generation Equipment | D30: H8 | E30: ='A8 Sch 8 CCA Hist 24'!G30 -> 296639 | H30: -2419.14 | M30: =IFERROR(E30+F30+H30-K30,0) -> 294219.86 | P30: 0 | Q30: 0 | R30: 294219.86 | S30: 0 | T30: 0 | U30: 1.5 | V30: 0 | W30: 0 | X30: 0.3 | AA30: =IF(OR(R30<=0,Z30>0),0,(R30+V30-W30)*X30) -> 88265.958 | AB30: 205953.902 | AC30: T8
B31: =IF(ISBLANK('H8 Sch 8 CCA Hist 23'!C31), "", 'H8 Sch 8 CCA Hist 23'!C31) -> 43.2 | C31: =IF(ISBLANK('H8 Sch 8 CCA Hist 23'!D31), "", 'H8 Sch 8 CCA Hist 23'!D31) -> Certain Clean Energy/Energy-Efficient Generation Equipment | D31: H8 | E31: ='A8 Sch 8 CCA Hist 24'!G31 -> 198119 | M31: 198119 | P31: 0 | Q31: 0 | R31: 198119 | S31: 0 | T31: 0 | U31: 0.5 | V31: 0 | W31: 0 | X31: 0.5 | AA31: 99059.5 | AB31: 99059.5 | AC31: T8
B32: =IF(ISBLANK('H8 Sch 8 CCA Hist 23'!C32), "", 'H8 Sch 8 CCA Hist 23'!C32) -> 45 | C32: =IF(ISBLANK('H8 Sch 8 CCA Hist 23'!D32), "", 'H8 Sch 8 CCA Hist 23'!D32) -> Computers & System Software (acq'd post Mar 22/04 and pre Mar 19/07) | D32: H8 | E32: ='A8 Sch 8 CCA Hist 24'!G32 -> 66 | M32: 66 | P32: 0 | Q32: 0 | R32: 66 | S32: 0 | T32: 0 | V32: 0 | W32: 0 | X32: 0.45 | AA32: 29.7 | AB32: 36.3 | AC32: T8
B33: =IF(ISBLANK('H8 Sch 8 CCA Hist 23'!C33), "", 'H8 Sch 8 CCA Hist 23'!C33) -> 46 | C33: =IF(ISBLANK('H8 Sch 8 CCA Hist 23'!D33), "", 'H8 Sch 8 CCA Hist 23'!D33) -> Data Network Infrastructure Equipment (acq'd post Mar 22/04) | D33: H8 | E33: ='A8 Sch 8 CCA Hist 24'!G33 -> 0 | M33: 0 | P33: 0 | Q33: 0 | R33: 0 | S33: 0 | T33: 0 | U33: 0 | V33: 0 | W33: 0 | X33: 0.3 | AA33: 0 | AB33: 0 | AC33: T8
B34: =IF(ISBLANK('H8 Sch 8 CCA Hist 23'!C34), "", 'H8 Sch 8 CCA Hist 23'!C34) -> 47 | C34: =IF(ISBLANK('H8 Sch 8 CCA Hist 23'!D34), "", 'H8 Sch 8 CCA Hist 23'!D34) -> Distribution System (acq'd post Feb 22/05) | D34: H8 | E34: ='A8 Sch 8 CCA Hist 24'!G34 -> 691524129 | F34: 87206882.4 | M34: 778731011.4 | P34: 87206882.4 | Q34: 87206882.4 | R34: 778731011.4 | S34: 0 | T34: 87206882.4 | U34: 0 | V34: 0 | W34: 0 | X34: 0.08 | AA34: 62298480.91 | AB34: 716432530.5 | AC34: T8
B35: =IF(ISBLANK('H8 Sch 8 CCA Hist 23'!C35), "", 'H8 Sch 8 CCA Hist 23'!C35) -> 50 | C35: =IF(ISBLANK('H8 Sch 8 CCA Hist 23'!D35), "", 'H8 Sch 8 CCA Hist 23'!D35) -> General Purpose Computer Hardware & Software (acq'd post Mar 18/07) | D35: H8 | E35: ='A8 Sch 8 CCA Hist 24'!G35 -> 2025883 | F35: 958772.62 | M35: 2984655.62 | P35: 958772.62 | Q35: 958772.62 | R35: 2984655.62 | S35: 0 | T35: 958772.62 | U35: 0 | V35: 0 | W35: 0 | X35: 0.55 | AA35: 1641560.591 | AB35: 1343095.029 | AC35: T8
B36: =IF(ISBLANK('H8 Sch 8 CCA Hist 23'!C36), "", 'H8 Sch 8 CCA Hist 23'!C36) -> 95 | C36: =IF(ISBLANK('H8 Sch 8 CCA Hist 23'!D36), "", 'H8 Sch 8 CCA Hist 23'!D36) -> CWIP | D36: H8 | E36: ='A8 Sch 8 CCA Hist 24'!G36 -> 0 | M36: 0 | P36: 0 | R36: 0 | S36: 0 | T36: 0 | U36: 0 | V36: 0 | W36: 0 | X36: 0 | AA36: 0 | AB36: 0 | AC36: T8
B37: =IF(ISBLANK('H8 Sch 8 CCA Hist 23'!C37), "", 'H8 Sch 8 CCA Hist 23'!C37) ->  | C37: =IF(ISBLANK('H8 Sch 8 CCA Hist 23'!D37), "", 'H8 Sch 8 CCA Hist 23'!D37) ->  | D37: H8 | E37: =IF(ISBLANK('H8 Sch 8 CCA Hist 23'!E37),0, 'H8 Sch 8 CCA Hist 23'!G37) -> 0 | M37: 0 | P37: 0 | R37: 0 | S37: 0 | T37: 0 | V37: 0 | W37: 0 | AA37: 0 | AB37: 0 | AC37: T8
B38: =IF(ISBLANK('H8 Sch 8 CCA Hist 23'!C38), "", 'H8 Sch 8 CCA Hist 23'!C38) ->  | C38: =IF(ISBLANK('H8 Sch 8 CCA Hist 23'!D38), "", 'H8 Sch 8 CCA Hist 23'!D38) ->  | D38: H8 | E38: =IF(ISBLANK('H8 Sch 8 CCA Hist 23'!E38),0, 'H8 Sch 8 CCA Hist 23'!G38) -> 0 | M38: 0 | P38: 0 | R38: 0 | S38: 0 | T38: 0 | V38: 0 | W38: 0 | AA38: 0 | AB38: 0 | AC38: T8
B39: =IF(ISBLANK('H8 Sch 8 CCA Hist 23'!C39), "", 'H8 Sch 8 CCA Hist 23'!C39) ->  | C39: =IF(ISBLANK('H8 Sch 8 CCA Hist 23'!D39), "", 'H8 Sch 8 CCA Hist 23'!D39) ->  | D39: H8 | E39: =IF(ISBLANK('H8 Sch 8 CCA Hist 23'!E39),0, 'H8 Sch 8 CCA Hist 23'!G39) -> 0 | M39: 0 | P39: 0 | R39: 0 | S39: 0 | T39: 0 | V39: 0 | W39: 0 | AA39: 0 | AB39: 0 | AC39: T8
B40: =IF(ISBLANK('H8 Sch 8 CCA Hist 23'!C40), "", 'H8 Sch 8 CCA Hist 23'!C40) ->  | C40: =IF(ISBLANK('H8 Sch 8 CCA Hist 23'!D40), "", 'H8 Sch 8 CCA Hist 23'!D40) ->  | D40: H8 | E40: =IF(ISBLANK('H8 Sch 8 CCA Hist 23'!E40),0, 'H8 Sch 8 CCA Hist 23'!G40) -> 0 | M40: 0 | P40: 0 | R40: 0 | S40: 0 | T40: 0 | V40: 0 | W40: 0 | AA40: 0 | AB40: 0 | AC40: T8
B41: =IF(ISBLANK('H8 Sch 8 CCA Hist 23'!C41), "", 'H8 Sch 8 CCA Hist 23'!C41) ->  | C41: =IF(ISBLANK('H8 Sch 8 CCA Hist 23'!D41), "", 'H8 Sch 8 CCA Hist 23'!D41) ->  | D41: H8 | E41: =IF(ISBLANK('H8 Sch 8 CCA Hist 23'!E41),0, 'H8 Sch 8 CCA Hist 23'!G41) -> 0 | M41: 0 | P41: 0 | R41: 0 | S41: 0 | T41: 0 | V41: 0 | W41: 0 | AA41: 0 | AB41: 0 | AC41: T8
B42: =IF(ISBLANK('H8 Sch 8 CCA Hist 23'!C42), "", 'H8 Sch 8 CCA Hist 23'!C42) ->  | C42: =IF(ISBLANK('H8 Sch 8 CCA Hist 23'!D42), "", 'H8 Sch 8 CCA Hist 23'!D42) ->  | D42: H8 | E42: =IF(ISBLANK('H8 Sch 8 CCA Hist 23'!E42),0, 'H8 Sch 8 CCA Hist 23'!G42) -> 0 | M42: 0 | P42: 0 | R42: 0 | S42: 0 | T42: 0 | V42: 0 | W42: 0 | AA42: 0 | AB42: 0 | AC42: T8
B43: =IF(ISBLANK('H8 Sch 8 CCA Hist 23'!C43), "", 'H8 Sch 8 CCA Hist 23'!C43) ->  | C43: =IF(ISBLANK('H8 Sch 8 CCA Hist 23'!D43), "", 'H8 Sch 8 CCA Hist 23'!D43) ->  | D43: H8 | E43: =IF(ISBLANK('H8 Sch 8 CCA Hist 23'!E43),0, 'H8 Sch 8 CCA Hist 23'!G43) -> 0 | M43: 0 | P43: 0 | R43: 0 | S43: 0 | T43: 0 | V43: 0 | W43: 0 | AA43: 0 | AB43: =IF(M43<0,0,M43-Z43-AA43) -> 0 | AC43: T8
B44: =IF(ISBLANK('H8 Sch 8 CCA Hist 23'!C44), "", 'H8 Sch 8 CCA Hist 23'!C44) ->  | C44: =IF(ISBLANK('H8 Sch 8 CCA Hist 23'!D44), "", 'H8 Sch 8 CCA Hist 23'!D44) ->  | D44: H8 | E44: =IF(ISBLANK('H8 Sch 8 CCA Hist 23'!E44),0, 'H8 Sch 8 CCA Hist 23'!G44) -> 0 | M44: 0 | P44: 0 | R44: 0 | S44: 0 | T44: 0 | V44: 0 | W44: 0 | AA44: 0 | AB44: 0 | AC44: T8
C45: TOTALS | E45: =SUM(E12:E44) -> 989631625 | F45: =SUM(F12:F44) -> 107474568.6 | G45: =SUM(G12:G44) -> 0 | H45: -2419.14 | I45: 0 | J45: 0 | K45: 132000 | L45: =SUM(L12:L44) -> 0 | M45: =SUM(M12:M44) -> 1096971774 | N45: =SUM(N12:N44) -> 0 | P45: 107474568.6 | Q45: 107474568.6 | S45: =SUM(S12:S44) -> 132000 | T45: =SUM(T12:T44) -> 107342568.6 | V45: =SUM(V12:V44) -> 0 | W45: =SUM(W12:W44) -> 0 | Y45: =SUM(Y12:Y44) -> 0 | Z45: 0 | AA45: 84320024.46 | AB45: 1012651750 | AC45: B1
B47: For additional details and guidance on calculating amounts in Schedule 8, refer to the notes to the Canada Revenue Agency published Schedule 8 - Capital Cost Allowance (CCA) (2018 and later tax years):
B48: https://www.canada.ca/content/dam/cra-arc/formspubs/pbg/t2sch8/t2sch8-19e.pdf
B52: 1. Please note that Subsection 1100(2) of the Income Tax Regulations provide undepreciated capital cost adjustment factors of eligible zero-emission vehicles and equipment under Class 53, Class 54, Class 55 and Class 56,
B53: please assess the applicability of these adjustments and incorporate them in the PILs model as applicable.

Sheet B13 Sch 13 Reserves Bridge 25
A6: Modified PILS TAX MODEL for 2026 – 2030 Test Years
C7: Schedule 13 Tax Reserves - Bridge Year 2025
C9: Continuity of Reserves
I10: Bridge Year Adjustments
C11: Description | D11: Reference | E11: Historical Utility Only | F11: Eliminate Amounts Not Relevant for Bridge Year | G11: Adjusted Utility Balance | I11: Additions | J11: Disposals | K11: Balance for Bridge Year | M11: Change During the Year | N11: Disallowed Expenses
C13: Capital gains reserves ss.40(1) | D13: H13 | E13: ='H13 Sch 13 Reserves Hist 23'!F17 -> 0 | G13: =SUM(E13:F13) -> 0 | K13: =G13+I13-J13 -> 0 | L13: T13 | M13: =+K13-G13 -> 0
C14: Tax Reserves Not Deducted for Accounting Purposes
C15: Reserve for doubtful accounts ss. 20(1)(l) | D15: H13 | E15: 5102888 | G15: =SUM(E15:F15) -> 5102888 | K15: =G15+I15-J15 -> 5102888 | L15: T13 | M15: =+K15-G15 -> 0
C16: Reserve for goods and services not delivered ss. 20(1)(m) | D16: H13 | E16: 2480000 | G16: 2480000 | K16: 2480000 | L16: T13 | M16: 0
C17: Reserve for unpaid amounts ss. 20(1)(n) | D17: H13 | E17: ='H13 Sch 13 Reserves Hist 23'!F21 -> 0 | G17: 0 | K17: 0 | L17: T13 | M17: 0
C18: Debt & share issue expenses ss. 20(1)(e) | D18: H13 | E18: ='H13 Sch 13 Reserves Hist 23'!F22 -> 0 | G18: 0 | K18: 0 | L18: T13 | M18: 0
C19: Other tax reserves | D19: H13 | E19: ='H13 Sch 13 Reserves Hist 23'!F23 -> 0 | G19: 0 | K19: 0 | L19: T13 | M19: 0
E20: ='H13 Sch 13 Reserves Hist 23'!F27 -> 0 | G20: 0 | K20: 0 | M20: 0
E21: ='H13 Sch 13 Reserves Hist 23'!F28 -> 0 | G21: 0 | K21: 0 | M21: 0
C22: Total | E22: =SUM(E15:E21) -> 7582888 | F22: 0 | G22: 7582888 | H22: B1 | I22: 0 | J22: 0 | K22: 7582888 | L22: B1 | M22: 0 | N22: 0
E23: 0
C24: Financial statement reserves (not deductible for tax purposes)
C25: General Reserve for Inventory Obsolescence (non-specific) | D25: H13 | E25: ='H13 Sch 13 Reserves Hist 23'!F32 -> 0 | G25: =SUM(E25:F25) -> 0 | K25: =G25+I25-J25 -> 0 | L25: T13 | M25: =+K25-G25 -> 0
C26: General Reserve for Bad Debts | D26: H13 | E26: ='A13 Sch 13 Reserves Hist 24'!F33 -> 5102888 | G26: 5102888 | K26: 5102888 | L26: T13 | M26: 0
C27: Accrued Employee Future Benefits: | D27: H13 | E27: ='H13 Sch 13 Reserves Hist 23'!F34 -> 0 | G27: 0 | K27: 0 | L27: T13 | M27: 0
C28: - Medical and Life Insurance | D28: H13 | E28: ='H13 Sch 13 Reserves Hist 23'!F35 -> 0 | G28: 0 | K28: 0 | L28: T13 | M28: 0
C29: - Short & Long-term Disability | D29: H13 | E29: ='H13 Sch 13 Reserves Hist 23'!F36 -> 0 | G29: 0 | K29: 0 | L29: T13 | M29: 0
C30: - Accumulated Sick Leave | D30: H13 | E30: ='H13 Sch 13 Reserves Hist 23'!F37 -> 0 | G30: 0 | K30: 0 | L30: T13 | M30: 0
C31: - Termination Cost | D31: H13 | E31: ='H13 Sch 13 Reserves Hist 23'!F38 -> 0 | G31: 0 | K31: 0 | L31: T13 | M31: 0
C32: - Other Post-Employment Benefits | D32: H13 | E32: ='H13 Sch 13 Reserves Hist 23'!F39 -> 0 | G32: 0 | K32: 0 | L32: T13 | M32: 0
C33: Provision for Environmental Costs | D33: H13 | E33: ='H13 Sch 13 Reserves Hist 23'!F40 -> 0 | G33: 0 | K33: 0 | L33: T13 | M33: 0
C34: Restructuring Costs | D34: H13 | E34: ='H13 Sch 13 Reserves Hist 23'!F41 -> 0 | G34: 0 | K34: 0 | L34: T13 | M34: 0
C35: Accrued Contingent Litigation Costs | D35: H13 | E35: ='H13 Sch 13 Reserves Hist 23'!F42 -> 0 | G35: 0 | K35: 0 | L35: T13 | M35: 0
C36: Accrued Self-Insurance Costs | D36: H13 | E36: ='H13 Sch 13 Reserves Hist 23'!F43 -> 0 | G36: 0 | K36: 0 | L36: T13 | M36: 0
C37: Other Contingent Liabilities | D37: H13 | E37: ='H13 Sch 13 Reserves Hist 23'!F44 -> 0 | G37: 0 | K37: 0 | L37: T13 | M37: 0
C38: Bonuses Accrued and Not Paid Within 180 Days of Year-End ss. 78(4) | D38: H13 | E38: ='H13 Sch 13 Reserves Hist 23'!F45 -> 0 | G38: 0 | K38: 0 | L38: T13 | M38: 0
C39: Unpaid Amounts to Related Person and Not Paid Within 3 Taxation Years ss. 78(1) | D39: H13 | E39: ='H13 Sch 13 Reserves Hist 23'!F46 -> 0 | G39: 0 | K39: 0 | L39: T13 | M39: 0
C40: Other | D40: H13 | E40: ='H13 Sch 13 Reserves Hist 23'!F47 -> 0 | G40: 0 | K40: 0 | L40: T13 | M40: 0
E41: ='H13 Sch 13 Reserves Hist 23'!F51 -> 0 | G41: =SUM(E41:F41) -> 0 | K41: 0 | M41: =+K41-G41 -> 0
E42: ='H13 Sch 13 Reserves Hist 23'!F52 -> 0 | G42: =SUM(E42:F42) -> 0 | K42: 0 | M42: =+K42-G42 -> 0
C43: Total | E43: =SUM(E25:E42) -> 5102888 | F43: =SUM(F25:F42) -> 0 | G43: 5102888 | H43: B1 | I43: 0 | J43: 0 | K43: 5102888 | L43: B1 | M43: 0 | N43: 0
E44: 0

Sheet T0 PILs,Tax Provision Test 26
T1: Rate Base | U1: Federal Tax Rate
T2: 500000 | U2: 0.11
T3: 10000000 | U3: 0.11
T4: =T3+100000 -> 10100000 | U4: 0.11
A5: Modified PILS TAX MODEL for 2026 – 2030 Test Years | T5: =T4+100000 -> 10200000 | U5: 0.11
B7: PILs Tax Provision - Test Year 2026 | T7: =T5+100000 -> 10300000 | U7: 0.11
T8: 10400000 | U8: 0.11
J9: Wires Only | T9: 10500000 | U9: 0.11
T10: 10600000 | U10: 0.11
C11: Regulatory Taxable Income | I11: T1 | J11: ='T1 Sch 1 Taxable Income Test 26'!F122 -> 21688701.77 | K11: A | T11: 10700000 | U11: 0.11
T12: 10800000 | U12: 0.11
D13: Tax Rate | E13: Small Business Rate (If Applicable) | F13: Taxes Payable | G13: Effective Tax Rate
C14: Ontario (Max 11.5%) | D14: 0.115 | E14: =IF(ratebase<=10000000, ontario_SB, IF(ratebase>=50000000, ontariotax, IF(AND(ratebase>10000000, ratebase<50000000), ontario_SB+ (ratebase - 10000000)*(ontariotax - ontario_SB)/(50000000-10000000)))) -> 0.115 | F14: =IF(J11<500000,J11,500000)*E14+IF(J11>500000,J11-500000,0)*D14 -> 2494200.704 | G14: =IF(F14=0,0,+F14/J11) -> 0.115 | H14: B
C15: Federal (Max 15%) | D15: 0.15 | E15: =IF(ratebase<=10000000, Fed_SB_Test, IF(ratebase>=50000000, FedTax, IF(AND(ratebase>10000000, ratebase<50000000), Fed_SB_Test+ (ratebase - 10000000)*(FedTax -Fed_SB_Test)/(50000000-10000000)))) -> 0.15 | F15: =E15*IF(J11<500000,J11,500000)+IF(J11>500000,J11-500000,0)*D15 -> 3253305.266 | G15: =IF(F15=0,0,+F15/J11) -> 0.15 | H15: C
C17: Combined effective tax rate (Max 26.5%) | J17: =SUM(G14:G15) -> 0.265 | K17: D = B + C | T17: =#REF!+100000 ->  | U17: =#REF!+0.112% -> 
U18: =U17+0.112% -> 
C20: Total Income Taxes | J20: =J11*J17 -> 5747505.97 | K20: E = A * D
U21: =U20+0.102% -> 
C22: Investment Tax Credits | K22: F | U22: =U21+0.102% -> 
C23: Miscellaneous Tax Credits | J23: 115000 | K23: G | U23: =U22+0.102% -> 
C24: Total Tax Credits | J24: =SUM(J22:J23) -> 115000 | K24: H = F + G | U24: =U23+0.102% -> 
U25: =U24+0.102% -> 
C26: Corporate PILs/Income Tax Provision for Test Year | J26: =IF(J20-J24<0,0,J20-J24) -> 5632505.97 | K26: I = E - H | L26: S. Summary | U26: =U25+0.096% -> 
U27: =U26+0.096% -> 
C28: Corporate PILs/Income Tax Provision Gross Up 1 | H28: =(1-J17) -> 0.735 | I28: J = 1-D | J28: =J26/H28-J26 -> 2030767.458 | K28: K = I/J-I | U28: =U27+0.096% -> 
U29: =U28+0.096% -> 
U30: =U29+0.096% -> 
C31: Income Tax (grossed-up) | J31: =J26+J28 -> 7663273.428 | K31: L = K + I | L31: S. Summary | U31: =U30+0.088% -> 
U32: =U31+0.088% -> 
U33: =U32+0.088% -> 
C34: Note: | U34: =U33+0.088% -> 
C35: 1. This is for the derivation of revenue requirement and should not be used for sufficiency/deficiency calculations. | U35: =U34+0.088% -> 
U36: =U35+0.082% -> 
U37: =U36+0.082% -> 
U38: =U37+0.082% -> 
U39: =U38+0.082% -> 
U40: =U39+0.082% -> 
U41: =U40+0.076% -> 
U42: =U41+0.076% -> 
U43: =U42+0.076% -> 
U44: =U43+0.076% -> 
U45: 0.15

Sheet T1 Sch 1 Taxable Income Test 26
A7: Modified PILS TAX MODEL for 2026 – 2030 Test Years
C10: Taxable Income - Test Year 2026
E11: Working Paper Reference | F11: Test Year Taxable Income
C12: Net Income Before Taxes | E12: A. | F12: ='A. Data Input Sheet 26-30'!G18 -> 55187276.34
D14: T2 S1 line #
C15: Additions:
C16: Interest and penalties on taxes | D16: 103 | F16: 24000
C17: Amortization of tangible assets 2-4 ADJUSTED ACCOUNTING DATA P489 | D17: 104 | F17: 65934259.38
C18: Amortization of intangible assets 2-4 ADJUSTED ACCOUNTING DATA P490 | D18: 106
C19: Recapture of capital cost allowance from Schedule 8 | D19: 107 | E19: T8
C20: Income inclusion under subparagraph 13(38)(d)(iii) from Schedule 10 | D20: 108
C21: Loss in equity of subsidiaries and affiliates | D21: 110
C22: Loss on disposal of assets | D22: 111 | F22: 1446897
C23: Charitable donations | D23: 112
C24: Taxable Capital Gains | D24: 113
C25: Political Donations | D25: 114
C26: Deferred and prepaid expenses | D26: 116
C27: Scientific research expenditures deducted on financial statements | D27: 118 | F27: 5328051.165
C28: Capitalized interest | D28: 119
C29: Non-deductible club dues and fees | D29: 120
C30: Non-deductible meals and entertainment expense | D30: 121 | F30: 54735.24
C31: Non-deductible automobile expenses | D31: 122
C32: Non-deductible life insurance premiums | D32: 123
C33: Non-deductible company pension plans | D33: 124
C34: Tax reserves beginning of year | D34: 125 | E34: T13 | F34: ='T13 Sch 13 Reserves Test 26'!E22 -> 7582888
C35: Reserves from financial statements- balance at end of year | D35: 126 | E35: T13 | F35: ='T13 Sch 13 Reserves Test 26'!K43 -> 5102888
C36: Soft costs on construction and renovation of buildings | D36: 127
C37: Book loss on joint ventures or partnerships | D37: 205
C38: Capital items expensed | D38: 206
C39: Debt issue expense | D39: 208
C40: Development expenses claimed in current year | D40: 212
C41: Financing fees deducted in books | D41: 216
C42: Gain on settlement of debt | D42: 220
C43: Non-deductible advertising | D43: 226
C44: Non-deductible interest | D44: 227
C45: Non-deductible legal and accounting fees | D45: 228
C46: Recapture of SR&ED expenditures | D46: 231
C47: Share issue expense | D47: 235
C48: Write down of capital property | D48: 236
C49: Amounts received in respect of qualifying environment trust per paragraphs 12(1)(z.1) and 12(1)(z.2) | D49: 237
C50: Other Additions
C51: Interest Expensed on Capital Leases | D51: 295
C52: Realized Income from Deferred Credit Accounts | D52: 295
C53: Pensions | D53: 295
C54: Non-deductible penalties | D54: 295
C55: Employee Future Benefit Accounting Expense | D55: 295 | F55: 873831.96
C56: Current year investment tax credit received | D56: 295 | F56: 115000
C57: ARO Accretion expense | D57: 295
C58: Capital Contributions Received (ITA 12(1)(x)) | D58: 295
C59: Lease Inducements Received (ITA 12(1)(x))
C60: Deferred Revenue (ITA 12(1)(a))
C61: Prior Year Investment Tax Credits received | F61: 44848.15682
C63: Donation expense | F63: 565950
C74: Total Additions | F74: =SUM(F16:F73) -> 87073348.9
C75: Deductions:
C76: Gain on disposal of assets per financial statements | D76: 401
C77: Dividends not taxable under section 83 | D77: 402
C78: Capital cost allowance from Schedule 8 | D78: 403 | E78: T8 | F78: ='T8 Sch 8 CCA Test 26'!AA43 -> 98883954.1
C79: Terminal loss from Schedule 8 | D79: 404 | E79: T8 | F79: ='T8 Sch 8 CCA Test 26'!Z43 -> 0
C80: Allowable business investment loss | D80: 406
C81: Deferred and prepaid expenses | D81: 409
C82: Scientific research expenses claimed in year | D82: 411 | F82: 3900626.998
C83: Tax reserves end of year | D83: 413 | E83: T13 | F83: ='T13 Sch 13 Reserves Test 26'!K22 -> 7582888
C84: Reserves from financial statements - balance at beginning of year | D84: 414 | E84: T13 | F84: ='T13 Sch 13 Reserves Test 26'!E43 -> 5102888
C85: Contributions to deferred income plans | D85: 416
C86: Book income of joint venture or partnership | D86: 305
C87: Equity in income from subsidiary or affiliates | D87: 306
C88: Other deductions
C89: Interest capitalized for accounting deducted for tax | D89: 395
C90: Capital Lease Payments | D90: 395
C91: Non-taxable imputed interest income on deferral and variance accounts | D91: 395
D92: 395
D93: 395
D94: 395
D95: 395
D96: 395
C97: ARO Payments - Deductible for Tax when Paid
C98: ITA 13(7.4) Election - Capital Contributions Received
C99: ITA 13(7.4) Election - Apply Lease Inducement to cost of Leaseholds
C100: Deferred Revenue - ITA 20(1)(m) reserve
C101: Principal portion of lease payments
C102: Lease Inducement Book Amortization credit to income
C103: Financing fees for tax ITA 20(1)(e) and (e.1)
C105: Employee Future Benefit Benefits Paid | F105: 823831.96
C106: SR&ED claim and SR&ED Exp Capitalized in Accounting | F106: 3953284.416
C107: Donations - OEB Qualified | F107: 324450
C112: Total Deductions | E112: calculated | F112: =SUM(F76:F111) -> 120571923.5
C114: NET INCOME FOR TAX PURPOSES | E114: calculated | F114: =SUM(F12,F74)-F112 -> 21688701.77
C116: Charitable donations | D116: 311
C117: Taxable dividends received under section 112 or 113 | D117: 320
C118: Non-capital losses of previous tax years from Schedule 4 | D118: 331 | E118: T4 | F118: ='T4 Sch 4 Loss Cfwd Test 26'!I15 -> 0
C119: Net capital losses of previous tax years from Schedule 4 | D119: 332 | E119: T4 | F119: ='T4 Sch 4 Loss Cfwd Test 26'!I25 -> 0
C120: Limited partnership losses of previous tax years from Schedule 4 | D120: 335
C122: REGULATORY TAXABLE INCOME | E122: calculated | F122: =IF(F114<0,F114,F114-SUM(F116:F121)) -> 21688701.77 | G122: T0

Sheet T4 Sch 4 Loss Cfwd Test 26
A4: Modified PILS TAX MODEL for 2026 – 2030 Test Years
C7: Schedule 4 Loss Carry Forward - Test Year 2026
C9: Corporation Loss Continuity and Application
C11: Non-Capital Loss Carry Forward Deduction | F11: Working Paper Reference | G11: Total | H11: Non-Distribution Portion | I11: Utility Balance
C12: Actual/Estimated Bridge Year Carried Forward | F12: B4 | G12: ='B4 Sch 4 Loss Cfwd Bridge 25'!G16 -> 0 | I12: =G12-H12 -> 0
C13: Amount to be used in Test Year and Price Cap Years | F13: T1 | G13: =IF('T1 Sch 1 Taxable Income Test 26'!F114<0,0,IF('T1 Sch 1 Taxable Income Test 26'!F114>G12,G12,'T1 Sch 1 Taxable Income Test 26'!F114)) -> 0 | I13: =G13-H13 -> 0
C14: Number of years loss until next cost of service (i.e. years the loss is to be spread over)
C15: Amount to be used in Test Year | F15: calculated | G15: =IF(ISERROR(G13/G14),G13,G13/G14) -> 0 | I15: =G15-H15 -> 0
C16: Loss Carry Forward Generated in Test Year (if any) | F16: T1 | G16: =IF('T1 Sch 1 Taxable Income Test 26'!F114<0,'T1 Sch 1 Taxable Income Test 26'!F114*-1,0) -> 0 | I16: =G16-H16 -> 0
C17: Other Adjustments | I17: =G17-H17 -> 0
C18: Balance available for use in Future Years | F18: calculated | G18: =G12-G13+G16+G17 -> 0 | I18: =G18-H18 -> 0
C21: Net Capital Loss Carry Forward Deduction | G21: Total | H21: Non-Distribution Portion | I21: Utility Balance
C22: Actual/Estimated Bridge Year Carried Forward | F22: B4 | G22: ='B4 Sch 4 Loss Cfwd Bridge 25'!G23 -> 0 | I22: =G22-H22 -> 0
C23: Amount to be used in Test Year and Price Cap Years | I23: =G23-H23 -> 0
C24: Number of years loss until next cost of service (i.e. years the loss is to be spread over)
C25: Amount to be used in Test Year | F25: T1 | G25: =IF(ISERROR(G23/G24),G23,G23/G24) -> 0 | I25: =G25-H25 -> 0
C26: Loss Carry Forward Generated in Test Year (if any) | I26: =G26-H26 -> 0
C27: Other Adjustments | I27: =G27-H27 -> 0
C28: Balance available for use in Future Years | G28: =G22-G23+G26+G27 -> 0 | I28: =G28-H28 -> 0

Sheet T8 Sch 8 CCA Test 26
A5: Modified PILS TAX MODEL for 2026 – 2030 Test Years
B7: Schedule 8 CCA - Test Year 2026
B9: (1) Class | C9: Class Description | D9: Working Paper Reference | E9: (2) Undepreciated capital cost (UCC) at the beginning of the test year | F9: (3) Cost of acquisitions during the year (new property must be available for use, except CWIP) | G9: (4) Cost of acquisitions from column 3 that are designated immediate expensing property (DIEP) | H9: (5) Adjustments and transfers (enter amounts that will reduce the UCC as negatives) | I9: (6) Amount from column 5 that is assistance received or receivable during the year for a property, subsequent to its disposition | J9: (7) Amount from column 5 that is repaid during the year for a property, subsequent to its disposition | K9: (8) Proceeds of dispositions | L9: (9) Proceeds of dispositions of the DIEP (enter amount from column 8 that relates to the DIEP reported in column 4) | M9: (10) UCC (column 2 plus column 3 plus or minus column 5 minus column 8) | N9: (11) UCC of the DIEP (enter the UCC amount that relates to the DIEP reported in column 4) | O9: (12) Immediate expensing | P9: (13) Cost of acquisitions on remainder of Class (column 3 minus column 4 plus column 11 minus column 12) | Q9: (14) Cost of acquisitions from column 13 that are accelerated investment incentive properties (AIIP) or properties included in Classes 54 to 56 | R9: (15) Remaining UCC (column 10 minus column 12) (if negative, enter "0") | S9: (16) Proceeds of disposition available to reduce the UCC of AIIP and property included in Classes 54 to 56 (column 8 minus column 9 plus column 6 minus column 13 plus column 14 minus column 7) (if negative, enter "0") | T9: (17) Net capital cost additions of AIIP and property included in Classes 54 to 56 acquired during the year (column 14 minus column 16) (if negative, enter "0") | U9: Relevant factor1 | V9: (18) UCC adjustment for AIIP and property included in Classes 54 to 56 acquired during the year (column 17 multiplied by the relevant factor) | W9: (19) UCC adjustment for non-AIIP and property included in Classes 54 to 56 (0.5 multiplied by the result of column 13 minus column 14 minus column 6 plus column 7 minus column 8 plus column 9) (if negative, enter "0") | X9: (20) CCA Rate % | Y9: (21) Recapture of CCA | Z9: (22) Terminal Loss | AA9: (23) CCA (for declining balance method, the result of column 15 plus column 18 minus column 19, multiplied by column 20 or a lower amount, plus column 12)) | AB9: (24) UCC at the end of the test year (column 10 minus column 23)
B10: =IF(ISBLANK('B8 Sch 8 CCA Bridge 25'!B12), "", 'B8 Sch 8 CCA Bridge 25'!B12) -> 1 | C10: =IF(ISBLANK('B8 Sch 8 CCA Bridge 25'!C12), "", 'B8 Sch 8 CCA Bridge 25'!C12) -> Buildings, Distribution System (acq'd post 1987) | D10: B8 | E10: =IF(ISBLANK('B8 Sch 8 CCA Bridge 25'!AB12), "", 'B8 Sch 8 CCA Bridge 25'!AB12) -> 118815464.6 | M10: =IFERROR(E10+F10+H10-K10,0) -> 118815464.6 | P10: =+F10-G10+N10-O10 -> 0 | R10: =IF((M10-O10)<0,0,M10-O10) -> 118815464.6 | S10: =IF((K10-L10+I10-P10+Q10-J10)<0,0,(K10-L10+I10-P10+Q10-J10)) -> 0 | T10: =IF((Q10-S10)<0,0,(Q10-S10)) -> 0 | U10: 0 | V10: =T10*U10 -> 0 | W10: =IF((0.5*(P10-Q10-I10+J10-K10+L10))<0,0,(0.5*(P10-Q10-I10+J10-K10+L10))) -> 0 | X10: 0.04 | AA10: =IF(OR(R10<=0,Z10>0),0,(R10+V10-W10)*X10) -> 4752618.586 | AB10: =IF(M10<0,0,M10-Z10-AA10) -> 114062846.1
B11: =IF(ISBLANK('B8 Sch 8 CCA Bridge 25'!B13), "", 'B8 Sch 8 CCA Bridge 25'!B13) -> 1b | C11: =IF(ISBLANK('B8 Sch 8 CCA Bridge 25'!C13), "", 'B8 Sch 8 CCA Bridge 25'!C13) -> Non-Residential Buildings [Reg. 1100(1)(a.1) election] | D11: B8 | E11: =IF(ISBLANK('B8 Sch 8 CCA Bridge 25'!AB13), "", 'B8 Sch 8 CCA Bridge 25'!AB13) -> 75562636.6 | F11: 5180914.86 | M11: =IFERROR(E11+F11+H11-K11,"") -> 80743551.46 | P11: =+F11-G11+N11-O11 -> 5180914.86 | Q11: =P11 -> 5180914.86 | R11: =IF((M11-O11)<0,0,M11-O11) -> 80743551.46 | S11: =IF((K11-L11+I11-P11+Q11-J11)<0,0,(K11-L11+I11-P11+Q11-J11)) -> 0 | T11: =IF((Q11-S11)<0,0,(Q11-S11)) -> 5180914.86 | U11: 0 | V11: =T11*U11 -> 0 | W11: =IF((0.5*(P11-Q11-I11+J11-K11+L11))<0,0,(0.5*(P11-Q11-I11+J11-K11+L11))) -> 0 | X11: 0.06 | AA11: =IF(OR(R11<=0,Z11>0),0,(R11+V11-W11)*X11) -> 4844613.088 | AB11: =IF(M11<0,0,M11-Z11-AA11) -> 75898938.38
B12: =IF(ISBLANK('B8 Sch 8 CCA Bridge 25'!B14), "", 'B8 Sch 8 CCA Bridge 25'!B14) -> 2 | C12: =IF(ISBLANK('B8 Sch 8 CCA Bridge 25'!C14), "", 'B8 Sch 8 CCA Bridge 25'!C14) -> Distribution System (acq'd pre 1988) | D12: B8 | E12: =IF(ISBLANK('B8 Sch 8 CCA Bridge 25'!AB14), "", 'B8 Sch 8 CCA Bridge 25'!AB14) -> 32150241.9 | M12: 32150241.9 | P12: 0 | R12: 32150241.9 | S12: 0 | T12: =IF((Q12-S12)<0,0,(Q12-S12)) -> 0 | V12: 0 | W12: 0 | X12: 0.06 | AA12: =IF(OR(R12<=0,Z12>0),0,(R12+V12-W12)*X12) -> 1929014.514 | AB12: 30221227.39
B13: =IF(ISBLANK('B8 Sch 8 CCA Bridge 25'!B15), "", 'B8 Sch 8 CCA Bridge 25'!B15) -> 3 | C13: =IF(ISBLANK('B8 Sch 8 CCA Bridge 25'!C15), "", 'B8 Sch 8 CCA Bridge 25'!C15) -> Buildings (acq'd pre 1988) | D13: B8 | E13: =IF(ISBLANK('B8 Sch 8 CCA Bridge 25'!AB15), "", 'B8 Sch 8 CCA Bridge 25'!AB15) -> 3906115.95 | M13: 3906115.95 | P13: 0 | R13: 3906115.95 | S13: 0 | T13: 0 | V13: 0 | W13: 0 | X13: 0.05 | AA13: 195305.7975 | AB13: 3710810.153
B14: =IF(ISBLANK('B8 Sch 8 CCA Bridge 25'!B16), "", 'B8 Sch 8 CCA Bridge 25'!B16) -> 6 | C14: =IF(ISBLANK('B8 Sch 8 CCA Bridge 25'!C16), "", 'B8 Sch 8 CCA Bridge 25'!C16) -> Certain Buildings; Fences | D14: B8 | E14: =IF(ISBLANK('B8 Sch 8 CCA Bridge 25'!AB16), "", 'B8 Sch 8 CCA Bridge 25'!AB16) -> 0 | M14: 0 | P14: 0 | R14: 0 | S14: 0 | T14: 0 | U14: 0 | V14: 0 | W14: 0 | X14: 0.1 | AA14: 0 | AB14: 0
B15: =IF(ISBLANK('B8 Sch 8 CCA Bridge 25'!B17), "", 'B8 Sch 8 CCA Bridge 25'!B17) -> 8 | C15: =IF(ISBLANK('B8 Sch 8 CCA Bridge 25'!C17), "", 'B8 Sch 8 CCA Bridge 25'!C17) -> General Office Equipment, Furniture, Fixtures | D15: B8 | E15: =IF(ISBLANK('B8 Sch 8 CCA Bridge 25'!AB17), "", 'B8 Sch 8 CCA Bridge 25'!AB17) -> 5650100.384 | F15: 1464685.92 | M15: 7114786.304 | P15: 1464685.92 | Q15: =P15 -> 1464685.92 | R15: 7114786.304 | S15: 0 | T15: 1464685.92 | U15: 0 | V15: 0 | W15: 0 | X15: 0.2 | AA15: 1422957.261 | AB15: 5691829.043
B16: =IF(ISBLANK('B8 Sch 8 CCA Bridge 25'!B18), "", 'B8 Sch 8 CCA Bridge 25'!B18) -> 10 | C16: =IF(ISBLANK('B8 Sch 8 CCA Bridge 25'!C18), "", 'B8 Sch 8 CCA Bridge 25'!C18) -> Motor Vehicles, Fleet | D16: B8 | E16: =IF(ISBLANK('B8 Sch 8 CCA Bridge 25'!AB18), "", 'B8 Sch 8 CCA Bridge 25'!AB18) -> 6851793.445 | F16: 9965227.25 | K16: 132000 | M16: 16685020.7 | P16: 9965227.25 | Q16: 9965227.25 | R16: 16685020.7 | S16: 132000 | T16: 9833227.25 | U16: 0 | V16: 0 | W16: 0 | X16: 0.3 | AA16: =IF(OR(R16<=0,Z16>0),0,(R16+V16-W16)*X16) -> 5005506.208 | AB16: 11679514.49
B17: =IF(ISBLANK('B8 Sch 8 CCA Bridge 25'!B19), "", 'B8 Sch 8 CCA Bridge 25'!B19) -> 10.1 | C17: =IF(ISBLANK('B8 Sch 8 CCA Bridge 25'!C19), "", 'B8 Sch 8 CCA Bridge 25'!C19) -> Certain Automobiles | D17: B8 | E17: =IF(ISBLANK('B8 Sch 8 CCA Bridge 25'!AB19), "", 'B8 Sch 8 CCA Bridge 25'!AB19) -> 0 | M17: 0 | P17: 0 | R17: 0 | S17: 0 | T17: 0 | U17: 0 | V17: 0 | W17: 0 | X17: 0.3 | AA17: 0 | AB17: 0
B18: =IF(ISBLANK('B8 Sch 8 CCA Bridge 25'!B20), "", 'B8 Sch 8 CCA Bridge 25'!B20) -> 12 | C18: =IF(ISBLANK('B8 Sch 8 CCA Bridge 25'!C20), "", 'B8 Sch 8 CCA Bridge 25'!C20) -> Computer Application Software (Non-Systems) | D18: B8 | E18: =IF(ISBLANK('B8 Sch 8 CCA Bridge 25'!AB20), "", 'B8 Sch 8 CCA Bridge 25'!AB20) -> 0 | F18: 5208880.394 | M18: 5208880.394 | P18: 5208880.394 | Q18: =P18 -> 5208880.394 | R18: 5208880.394 | S18: 0 | T18: 5208880.394 | U18: 0 | V18: 0 | W18: 0 | X18: 1 | AA18: 5208880.394 | AB18: 0
B19: 13 1 | C19: =IF(ISBLANK('B8 Sch 8 CCA Bridge 25'!C21), "", 'B8 Sch 8 CCA Bridge 25'!C21) -> Lease # 1 | D19: B8 | E19: =IF(ISBLANK('B8 Sch 8 CCA Bridge 25'!AB21), "", 'B8 Sch 8 CCA Bridge 25'!AB21) -> 0 | M19: 0 | P19: 0 | R19: 0 | S19: 0 | T19: 0 | U19: 0 | V19: 0 | W19: 0 | X19: NA | AA19: 0 | AB19: 0
B20: 13 2 | C20: =IF(ISBLANK('B8 Sch 8 CCA Bridge 25'!C22), "", 'B8 Sch 8 CCA Bridge 25'!C22) -> Lease # 2 | D20: B8 | E20: =IF(ISBLANK('B8 Sch 8 CCA Bridge 25'!AB22), "", 'B8 Sch 8 CCA Bridge 25'!AB22) -> 0 | M20: 0 | P20: 0 | R20: 0 | S20: 0 | T20: 0 | U20: 0 | V20: 0 | W20: 0 | X20: NA | AA20: 0 | AB20: 0
B21: 13 3 | C21: =IF(ISBLANK('B8 Sch 8 CCA Bridge 25'!C23), "", 'B8 Sch 8 CCA Bridge 25'!C23) -> Lease # 3 | D21: B8 | E21: =IF(ISBLANK('B8 Sch 8 CCA Bridge 25'!AB23), "", 'B8 Sch 8 CCA Bridge 25'!AB23) -> 0 | M21: 0 | P21: 0 | R21: 0 | S21: 0 | T21: 0 | U21: 0 | V21: 0 | W21: 0 | X21: NA | AA21: 0 | AB21: 0
B22: 13 4 | C22: =IF(ISBLANK('B8 Sch 8 CCA Bridge 25'!C24), "", 'B8 Sch 8 CCA Bridge 25'!C24) -> Lease # 4 | D22: B8 | E22: =IF(ISBLANK('B8 Sch 8 CCA Bridge 25'!AB24), "", 'B8 Sch 8 CCA Bridge 25'!AB24) -> 0 | M22: 0 | P22: 0 | R22: 0 | S22: 0 | T22: 0 | U22: 0 | V22: 0 | W22: 0 | X22: NA | AA22: 0 | AB22: 0
B23: =IF(ISBLANK('B8 Sch 8 CCA Bridge 25'!B25), "", 'B8 Sch 8 CCA Bridge 25'!B25) -> 14 | C23: =IF(ISBLANK('B8 Sch 8 CCA Bridge 25'!C25), "", 'B8 Sch 8 CCA Bridge 25'!C25) -> Limited Period Patents, Franchises, Concessions or Licences | D23: B8 | E23: =IF(ISBLANK('B8 Sch 8 CCA Bridge 25'!AB25), "", 'B8 Sch 8 CCA Bridge 25'!AB25) -> 0 | M23: 0 | P23: 0 | R23: 0 | S23: 0 | T23: 0 | U23: 0 | V23: 0 | W23: 0 | X23: NA | AA23: 0 | AB23: 0
B24: =IF(ISBLANK('B8 Sch 8 CCA Bridge 25'!B26), "", 'B8 Sch 8 CCA Bridge 25'!B26) -> 14.1 | C24: Eligible Capital Property (acq'd pre Jan 1, 2017) | D24: B8 | E24: =IF(ISBLANK('B8 Sch 8 CCA Bridge 25'!AB26), "", 'B8 Sch 8 CCA Bridge 25'!AB26) -> 6486929.49 | M24: 6486929.49 | P24: 0 | R24: =IF((M24-O24)<0,0,M24-O24) -> 6486929.49 | S24: =IF((K24-L24+I24-P24+Q24-J24)<0,0,(K24-L24+I24-P24+Q24-J24)) -> 0 | T24: 0 | V24: 0 | W24: 0 | X24: 0.07 | AA24: 454085.0643 | AB24: 6032844.426
B25: =IF(ISBLANK('B8 Sch 8 CCA Bridge 25'!B27), "", 'B8 Sch 8 CCA Bridge 25'!B27) -> 14.1 | C25: Eligible Capital Property (acq'd post Jan 1, 2017) | D25: B8 | E25: =IF(ISBLANK('B8 Sch 8 CCA Bridge 25'!AB27), "", 'B8 Sch 8 CCA Bridge 25'!AB27) -> 42913163.92 | F25: 7081919.95 | M25: 49995083.87 | P25: 7081919.95 | Q25: =P25 -> 7081919.95 | R25: 49995083.87 | S25: 0 | T25: 7081919.95 | U25: 0 | V25: 0 | W25: 0 | X25: 0.05 | AA25: 2499754.193 | AB25: 47495329.67
B26: =IF(ISBLANK('B8 Sch 8 CCA Bridge 25'!B28), "", 'B8 Sch 8 CCA Bridge 25'!B28) -> 17 | C26: =IF(ISBLANK('B8 Sch 8 CCA Bridge 25'!C28), "", 'B8 Sch 8 CCA Bridge 25'!C28) -> Elec. Generation Equip. (Non-Bldng, acq'd post Feb 27/00); Roads, Lots, Storage | D26: B8 | E26: =IF(ISBLANK('B8 Sch 8 CCA Bridge 25'!AB28), "", 'B8 Sch 8 CCA Bridge 25'!AB28) -> 1209762.28 | F26: 189911.29 | M26: 1399673.57 | P26: 189911.29 | Q26: 189911.29 | R26: 1399673.57 | S26: 0 | T26: 189911.29 | U26: 0 | V26: 0 | W26: 0 | X26: 0.08 | AA26: 111973.8856 | AB26: 1287699.684
B27: =IF(ISBLANK('B8 Sch 8 CCA Bridge 25'!B29), "", 'B8 Sch 8 CCA Bridge 25'!B29) -> 42 | C27: =IF(ISBLANK('B8 Sch 8 CCA Bridge 25'!C29), "", 'B8 Sch 8 CCA Bridge 25'!C29) -> Fibre Optic Cable | D27: B8 | E27: =IF(ISBLANK('B8 Sch 8 CCA Bridge 25'!AB29), "", 'B8 Sch 8 CCA Bridge 25'!AB29) -> 1024866.137 | F27: 973451.46 | M27: 1998317.597 | P27: 973451.46 | Q27: 973451.46 | R27: 1998317.597 | S27: 0 | T27: 973451.46 | U27: 0 | V27: 0 | W27: 0 | X27: 0.12 | AA27: 239798.1116 | AB27: 1758519.485
B28: =IF(ISBLANK('B8 Sch 8 CCA Bridge 25'!B30), "", 'B8 Sch 8 CCA Bridge 25'!B30) -> 43.1 | C28: =IF(ISBLANK('B8 Sch 8 CCA Bridge 25'!C30), "", 'B8 Sch 8 CCA Bridge 25'!C30) -> Certain Clean Energy/Energy-Efficient Generation Equipment | D28: B8 | E28: =IF(ISBLANK('B8 Sch 8 CCA Bridge 25'!AB30), "", 'B8 Sch 8 CCA Bridge 25'!AB30) -> 205953.902 | M28: 205953.902 | P28: 0 | Q28: 0 | R28: 205953.902 | S28: 0 | T28: 0 | U28: 0 | V28: 0 | W28: 0 | X28: 0.3 | AA28: =P28*0.55+E28*X28 -> 61786.1706 | AB28: 144167.7314
B29: =IF(ISBLANK('B8 Sch 8 CCA Bridge 25'!B31), "", 'B8 Sch 8 CCA Bridge 25'!B31) -> 43.2 | C29: =IF(ISBLANK('B8 Sch 8 CCA Bridge 25'!C31), "", 'B8 Sch 8 CCA Bridge 25'!C31) -> Certain Clean Energy/Energy-Efficient Generation Equipment | D29: B8 | E29: =IF(ISBLANK('B8 Sch 8 CCA Bridge 25'!AB31), "", 'B8 Sch 8 CCA Bridge 25'!AB31) -> 99059.5 | M29: 99059.5 | P29: 0 | R29: 99059.5 | S29: 0 | T29: 0 | U29: 0 | V29: 0 | W29: 0 | X29: 0.5 | AA29: 49529.75 | AB29: 49529.75
B30: =IF(ISBLANK('B8 Sch 8 CCA Bridge 25'!B32), "", 'B8 Sch 8 CCA Bridge 25'!B32) -> 45 | C30: =IF(ISBLANK('B8 Sch 8 CCA Bridge 25'!C32), "", 'B8 Sch 8 CCA Bridge 25'!C32) -> Computers & System Software (acq'd post Mar 22/04 and pre Mar 19/07) | D30: B8 | E30: =IF(ISBLANK('B8 Sch 8 CCA Bridge 25'!AB32), "", 'B8 Sch 8 CCA Bridge 25'!AB32) -> 36.3 | M30: 36.3 | P30: 0 | R30: 36.3 | S30: 0 | T30: 0 | V30: 0 | W30: 0 | X30: 0.45 | AA30: 16.335 | AB30: 19.965
B31: =IF(ISBLANK('B8 Sch 8 CCA Bridge 25'!B33), "", 'B8 Sch 8 CCA Bridge 25'!B33) -> 46 | C31: =IF(ISBLANK('B8 Sch 8 CCA Bridge 25'!C33), "", 'B8 Sch 8 CCA Bridge 25'!C33) -> Data Network Infrastructure Equipment (acq'd post Mar 22/04) | D31: B8 | E31: =IF(ISBLANK('B8 Sch 8 CCA Bridge 25'!AB33), "", 'B8 Sch 8 CCA Bridge 25'!AB33) -> 0 | M31: 0 | P31: 0 | R31: 0 | S31: 0 | T31: 0 | U31: 0 | V31: 0 | W31: 0 | X31: 0.3 | AA31: 0 | AB31: 0
B32: =IF(ISBLANK('B8 Sch 8 CCA Bridge 25'!B34), "", 'B8 Sch 8 CCA Bridge 25'!B34) -> 47 | C32: =IF(ISBLANK('B8 Sch 8 CCA Bridge 25'!C34), "", 'B8 Sch 8 CCA Bridge 25'!C34) -> Distribution System (acq'd post Feb 22/05) | D32: B8 | E32: =IF(ISBLANK('B8 Sch 8 CCA Bridge 25'!AB34), "", 'B8 Sch 8 CCA Bridge 25'!AB34) -> 716432530.5 | F32: 146011414.3 | M32: 862443944.8 | P32: 146011414.3 | Q32: =P32 -> 146011414.3 | R32: 862443944.8 | S32: 0 | T32: 146011414.3 | U32: 0 | V32: 0 | W32: 0 | X32: 0.08 | AA32: 68995515.58 | AB32: 793448429.2
B33: =IF(ISBLANK('B8 Sch 8 CCA Bridge 25'!B35), "", 'B8 Sch 8 CCA Bridge 25'!B35) -> 50 | C33: =IF(ISBLANK('B8 Sch 8 CCA Bridge 25'!C35), "", 'B8 Sch 8 CCA Bridge 25'!C35) -> General Purpose Computer Hardware & Software (acq'd post Mar 18/07) | D33: B8 | E33: =IF(ISBLANK('B8 Sch 8 CCA Bridge 25'!AB35), "", 'B8 Sch 8 CCA Bridge 25'!AB35) -> 1343095.029 | F33: 4316176.16 | M33: 5659271.189 | P33: 4316176.16 | Q33: 4316176.16 | R33: 5659271.189 | S33: 0 | T33: 4316176.16 | U33: 0 | V33: 0 | W33: 0 | X33: 0.55 | AA33: 3112599.154 | AB33: 2546672.035
B34: =IF(ISBLANK('B8 Sch 8 CCA Bridge 25'!B36), "", 'B8 Sch 8 CCA Bridge 25'!B36) -> 95 | C34: =IF(ISBLANK('B8 Sch 8 CCA Bridge 25'!C36), "", 'B8 Sch 8 CCA Bridge 25'!C36) -> CWIP | D34: B8 | M34: 0 | P34: 0 | R34: 0 | S34: 0 | T34: 0 | U34: 0 | V34: 0 | W34: 0 | X34: 0 | AA34: 0 | AB34: 0
B35: =IF(ISBLANK('B8 Sch 8 CCA Bridge 25'!B37), "", 'B8 Sch 8 CCA Bridge 25'!B37) ->  | C35: =IF(ISBLANK('B8 Sch 8 CCA Bridge 25'!C37), "", 'B8 Sch 8 CCA Bridge 25'!C37) ->  | D35: B8 | M35: 0 | P35: 0 | R35: 0 | S35: 0 | T35: 0 | V35: 0 | W35: 0 | AA35: 0 | AB35: 0
B36: =IF(ISBLANK('B8 Sch 8 CCA Bridge 25'!B38), "", 'B8 Sch 8 CCA Bridge 25'!B38) ->  | C36: =IF(ISBLANK('B8 Sch 8 CCA Bridge 25'!C38), "", 'B8 Sch 8 CCA Bridge 25'!C38) ->  | D36: B8 | M36: 0 | P36: 0 | R36: 0 | S36: 0 | T36: 0 | V36: 0 | W36: 0 | AA36: 0 | AB36: 0
B37: =IF(ISBLANK('B8 Sch 8 CCA Bridge 25'!B39), "", 'B8 Sch 8 CCA Bridge 25'!B39) ->  | C37: =IF(ISBLANK('B8 Sch 8 CCA Bridge 25'!C39), "", 'B8 Sch 8 CCA Bridge 25'!C39) ->  | D37: B8 | M37: 0 | P37: 0 | R37: 0 | S37: 0 | T37: 0 | V37: 0 | W37: 0 | AA37: 0 | AB37: 0
B38: =IF(ISBLANK('B8 Sch 8 CCA Bridge 25'!B40), "", 'B8 Sch 8 CCA Bridge 25'!B40) ->  | C38: =IF(ISBLANK('B8 Sch 8 CCA Bridge 25'!C40), "", 'B8 Sch 8 CCA Bridge 25'!C40) ->  | D38: B8 | M38: 0 | P38: 0 | R38: 0 | S38: 0 | T38: 0 | V38: 0 | W38: 0 | AA38: 0 | AB38: 0
B39: =IF(ISBLANK('B8 Sch 8 CCA Bridge 25'!B41), "", 'B8 Sch 8 CCA Bridge 25'!B41) ->  | C39: =IF(ISBLANK('B8 Sch 8 CCA Bridge 25'!C41), "", 'B8 Sch 8 CCA Bridge 25'!C41) ->  | D39: B8 | M39: 0 | P39: 0 | R39: 0 | S39: 0 | T39: 0 | V39: 0 | W39: 0 | AA39: 0 | AB39: 0
B40: =IF(ISBLANK('B8 Sch 8 CCA Bridge 25'!B42), "", 'B8 Sch 8 CCA Bridge 25'!B42) ->  | C40: =IF(ISBLANK('B8 Sch 8 CCA Bridge 25'!C42), "", 'B8 Sch 8 CCA Bridge 25'!C42) ->  | D40: B8 | M40: 0 | P40: 0 | R40: 0 | S40: 0 | T40: 0 | V40: 0 | W40: 0 | AA40: 0 | AB40: 0
B41: =IF(ISBLANK('B8 Sch 8 CCA Bridge 25'!B43), "", 'B8 Sch 8 CCA Bridge 25'!B43) ->  | C41: =IF(ISBLANK('B8 Sch 8 CCA Bridge 25'!C43), "", 'B8 Sch 8 CCA Bridge 25'!C43) ->  | D41: B8 | M41: 0 | P41: 0 | R41: 0 | S41: 0 | T41: 0 | V41: 0 | W41: 0 | AA41: 0 | AB41: =IF(M41<0,0,M41-Z41-AA41) -> 0
B42: =IF(ISBLANK('B8 Sch 8 CCA Bridge 25'!B44), "", 'B8 Sch 8 CCA Bridge 25'!B44) ->  | C42: =IF(ISBLANK('B8 Sch 8 CCA Bridge 25'!C44), "", 'B8 Sch 8 CCA Bridge 25'!C44) ->  | D42: B8 | M42: =IFERROR(E42+F42+H42-K42,"") -> 0 | P42: 0 | R42: 0 | S42: 0 | T42: 0 | V42: 0 | W42: 0 | AA42: 0 | AB42: 0
C43: TOTALS | E43: =SUM(E10:E42) -> 1012651750 | F43: =SUM(F10:F42) -> 180392581.6 | G43: =SUM(G10:G42) -> 0 | H43: =SUM(H10:H42) -> 0 | I43: =SUM(I10:I42) -> 0 | J43: 0 | K43: =SUM(K10:K42) -> 132000 | L43: =SUM(L10:L42) -> 0 | M43: =SUM(M10:M42) -> 1192912332 | N43: 0 | O43: 0 | P43: 180392581.6 | Q43: =SUM(Q10:Q42) -> 180392581.6 | R43: 1192912332 | S43: 132000 | T43: 180260581.6 | V43: =SUM(V10:V42) -> 0 | W43: 0 | Y43: =SUM(Y10:Y42) -> 0 | Z43: =SUM(Z10:Z42) -> 0 | AA43: =SUM(AA10:AA42) -> 98883954.1 | AB43: =SUM(AB10:AB42) -> 1094028377
B45: For additional details and guidance on calculating amounts in Schedule 8, refer to the notes to the Canada Revenue Agency published Schedule 8 - Capital Cost Allowance (CCA) (2018 and later tax years):
B46: https://www.canada.ca/content/dam/cra-arc/formspubs/pbg/t2sch8/t2sch8-19e.pdf
B50: 1. Please note that Subsection 1100(2) of the Income Tax Regulations provide undepreciated capital cost adjustment factors of eligible zero-emission vehicles and equipment under Class 53, Class 54, Class 55 and Class 56,
B51: please assess the applicability of these adjustments and incorporate them in the PILs model as applicable.

Sheet T13 Sch 13 Reserves Test 26
A5: Modified PILS TAX MODEL for 2026 – 2030 Test Years
C7: Schedule 13 Tax Reserves - Test Year 2026
C9: Continuity of Reserves
I10: Test Year Adjustments
C11: Description | D11: Working Paper Reference | E11: Bridge Year | F11: Eliminate Amounts Not Relevant for Test Year | G11: Adjusted Utility Balance | I11: Additions | J11: Disposals | K11: Balance for Test Year | M11: Change During the Year | N11: Disallowed Expenses
C13: Capital Gains Reserves ss.40(1) | D13: B13 | E13: ='B13 Sch 13 Reserves Bridge 25'!K13 -> 0 | G13: =SUM(E13:F13) -> 0 | K13: =G13+I13-J13 -> 0 | M13: =+K13-G13 -> 0
C14: Tax Reserves Not Deducted for accounting purposes
C15: Reserve for doubtful accounts ss. 20(1)(l) | D15: B13 | E15: ='B13 Sch 13 Reserves Bridge 25'!K15 -> 5102888 | G15: =SUM(E15:F15) -> 5102888 | K15: =G15+I15-J15 -> 5102888 | M15: =+K15-G15 -> 0
C16: Reserve for goods and services not delivered ss. 20(1)(m) | D16: B13 | E16: ='B13 Sch 13 Reserves Bridge 25'!K16 -> 2480000 | G16: 2480000 | K16: 2480000 | M16: 0
C17: Reserve for unpaid amounts ss. 20(1)(n) | D17: B13 | E17: ='B13 Sch 13 Reserves Bridge 25'!K17 -> 0 | G17: 0 | K17: 0 | M17: 0
C18: Debt & Share Issue Expenses ss. 20(1)(e) | D18: B13 | E18: ='B13 Sch 13 Reserves Bridge 25'!K18 -> 0 | G18: 0 | K18: 0 | M18: 0
C19: Other tax reserves | D19: B13 | E19: ='B13 Sch 13 Reserves Bridge 25'!K19 -> 0 | G19: 0 | K19: 0 | M19: 0
E20: ='B13 Sch 13 Reserves Bridge 25'!K20 -> 0 | G20: 0 | K20: 0 | M20: 0
E21: ='B13 Sch 13 Reserves Bridge 25'!K21 -> 0 | G21: 0 | K21: 0 | M21: 0
C22: Total | E22: =SUM(E15:E21) -> 7582888 | F22: 0 | G22: 7582888 | H22: T1 | I22: 0 | J22: 0 | K22: 7582888 | L22: T1 | M22: 0 | N22: =SUM(N15:N21) -> 0
E23: 0
C24: Financial Statement Reserves (not deductible for Tax Purposes)
C25: General Reserve for Inventory Obsolescence (non-specific) | D25: B13 | E25: ='B13 Sch 13 Reserves Bridge 25'!K25 -> 0 | G25: =SUM(E25:F25) -> 0 | K25: =G25+I25-J25 -> 0 | M25: =+K25-G25 -> 0
C26: General reserve for bad debts | D26: B13 | E26: ='B13 Sch 13 Reserves Bridge 25'!K26 -> 5102888 | G26: 5102888 | K26: 5102888 | M26: 0
C27: Accrued Employee Future Benefits: | D27: B13 | E27: ='B13 Sch 13 Reserves Bridge 25'!K27 -> 0 | G27: 0 | K27: 0 | M27: 0
C28: - Medical and Life Insurance | D28: B13 | E28: ='B13 Sch 13 Reserves Bridge 25'!K28 -> 0 | G28: 0 | K28: 0 | M28: 0
C29: -Short & Long-term Disability | D29: B13 | E29: ='B13 Sch 13 Reserves Bridge 25'!K29 -> 0 | G29: 0 | K29: 0 | M29: 0
C30: -Accmulated Sick Leave | D30: B13 | E30: ='B13 Sch 13 Reserves Bridge 25'!K30 -> 0 | G30: 0 | K30: 0 | M30: 0
C31: - Termination Cost | D31: B13 | E31: ='B13 Sch 13 Reserves Bridge 25'!K31 -> 0 | G31: 0 | K31: 0 | M31: 0
C32: - Other Post-Employment Benefits | D32: B13 | E32: ='B13 Sch 13 Reserves Bridge 25'!K32 -> 0 | G32: 0 | K32: 0 | M32: 0
C33: Provision for Environmental Costs | D33: B13 | E33: ='B13 Sch 13 Reserves Bridge 25'!K33 -> 0 | G33: 0 | K33: 0 | M33: 0
C34: Restructuring Costs | D34: B13 | E34: ='B13 Sch 13 Reserves Bridge 25'!K34 -> 0 | G34: 0 | K34: 0 | M34: 0
C35: Accrued Contingent Litigation Costs | D35: B13 | E35: ='B13 Sch 13 Reserves Bridge 25'!K35 -> 0 | G35: 0 | K35: 0 | M35: 0
C36: Accrued Self-Insurance Costs | D36: B13 | E36: ='B13 Sch 13 Reserves Bridge 25'!K36 -> 0 | G36: 0 | K36: 0 | M36: 0
C37: Other Contingent Liabilities | D37: B13 | E37: ='B13 Sch 13 Reserves Bridge 25'!K37 -> 0 | G37: 0 | K37: 0 | M37: 0
C38: Bonuses Accrued and Not Paid Within 180 Days of Year-End ss. 78(4) | D38: B13 | E38: ='B13 Sch 13 Reserves Bridge 25'!K38 -> 0 | G38: 0 | K38: 0 | M38: 0
C39: Unpaid Amounts to Related Person and Not Paid Within 3 Taxation Years ss. 78(1) | D39: B13 | E39: ='B13 Sch 13 Reserves Bridge 25'!K39 -> 0 | G39: 0 | K39: 0 | M39: 0
C40: Other | D40: B13 | E40: ='B13 Sch 13 Reserves Bridge 25'!K40 -> 0 | G40: 0 | K40: 0 | M40: 0
E41: ='B13 Sch 13 Reserves Bridge 25'!K41 -> 0 | G41: 0 | K41: 0 | M41: 0
E42: ='B13 Sch 13 Reserves Bridge 25'!K42 -> 0 | G42: 0 | K42: 0 | M42: 0
C43: Total | E43: =SUM(E25:E42) -> 5102888 | F43: 0 | G43: 5102888 | H43: T1 | I43: 0 | J43: 0 | K43: 5102888 | L43: T1 | M43: 0 | N43: 0
E44: 0

Sheet C1 PIL Tax Provision Test 27-30
A7: Modified PILS TAX MODEL for 2026 – 2030 Test Years
F11: 2027 | G11: 2028 | H11: 2029 | I11: 2030
E12: Working Paper Reference | F12: Test Year Taxable Income | G12: Test Year Taxable Income | H12: Test Year Taxable Income | I12: Test Year Taxable Income
C13: Net Income Before Taxes | E13: A. | F13: ='A. Data Input Sheet 26-30'!N18 -> 60884668.05 | G13: ='A. Data Input Sheet 26-30'!S18 -> 67547344.45 | H13: ='A. Data Input Sheet 26-30'!X18 -> 72551935.53 | I13: ='A. Data Input Sheet 26-30'!AC18 -> 76108283.44
D15: T2 S1 line #
C16: Additions:
C17: Interest and penalties on taxes | D17: 103 | F17: 24000 | G17: 24000 | H17: 24000 | I17: 24000
C18: Amortization of tangible assets 2-4 ADJUSTED ACCOUNTING DATA P489 | D18: 104 | F18: 73266499.78 | G18: 78921556.71 | H18: 83855520.25 | I18: 88921219.92
C19: Amortization of intangible assets 2-4 ADJUSTED ACCOUNTING DATA P490 | D19: 106
C20: Recapture of capital cost allowance from Schedule 8 | D20: 107 | E20: T8
C21: Income inclusion under subparagraph 13(38)(d)(iii) from Schedule 10 | D21: 108
C22: Loss in equity of subsidiaries and affiliates | D22: 110
C23: Loss on disposal of assets | D23: 111 | F23: 1915499 | G23: 1876114 | H23: 1888623 | I23: 1856013
C24: Charitable donations | D24: 112
C25: Taxable Capital Gains | D25: 113
C26: Political Donations | D26: 114
C27: Deferred and prepaid expenses | D27: 116
C28: Scientific research expenditures deducted on financial statements | D28: 118 | F28: 7705406.436 | G28: 7895521.563 | H28: 6405174.622 | I28: 4622680.894
C29: Capitalized interest | D29: 119
C30: Non-deductible club dues and fees | D30: 120
C31: Non-deductible meals and entertainment expense | D31: 121 | F31: 55510.18 | G31: 55543.18 | H31: 55492.68 | I31: 55492.68
C32: Non-deductible automobile expenses | D32: 122
C33: Non-deductible life insurance premiums | D33: 123
C34: Non-deductible company pension plans | D34: 124
C35: Tax reserves beginning of year | D35: 125 | F35: 6776000 | G35: 6776000 | H35: 6776000 | I35: 6776000
C36: Reserves from financial statements- balance at end of year | D36: 126 | F36: 4141000 | G36: 4141000 | H36: 4141000 | I36: 4141000
C37: Soft costs on construction and renovation of buildings | D37: 127
C38: Book loss on joint ventures or partnerships | D38: 205
C39: Capital items expensed | D39: 206
C40: Debt issue expense | D40: 208
C41: Development expenses claimed in current year | D41: 212
C42: Financing fees deducted in books | D42: 216
C43: Gain on settlement of debt | D43: 220
C44: Non-deductible advertising | D44: 226
C45: Non-deductible interest | D45: 227
C46: Non-deductible legal and accounting fees | D46: 228
C47: Recapture of SR&ED expenditures | D47: 231
C48: Share issue expense | D48: 235
C49: Write down of capital property | D49: 236
C50: Amounts received in respect of qualifying environment trust per paragraphs 12(1)(z.1) and 12(1)(z.2) | D50: 237
C51: Other Additions
C52: Interest Expensed on Capital Leases | D52: 295
C53: Realized Income from Deferred Credit Accounts | D53: 295
C54: Pensions | D54: 295
C55: Non-deductible penalties | D55: 295
C56: Employee Future Benefit Accounting Expense | D56: 295 | F56: 891309 | G56: 909135 | H56: 927317 | I56: 945864
C57: Current year investment tax credit received | D57: 295 | F57: 125000 | G57: 115000 | H57: 105000 | I57: 105000
C58: ARO Accretion expense | D58: 295
C59: Capital Contributions Received (ITA 12(1)(x)) | D59: 295
C60: Lease Inducements Received (ITA 12(1)(x))
C61: Deferred Revenue (ITA 12(1)(a))
C62: Prior Year Investment Tax Credits received | F62: 26910.33083 | G62: 39358.89611 | H62: 40354.39753 | I62: 32550.48139
C64: Donation expense | F64: 589867 | G64: 597182 | H64: 604652 | I64: 612278
C75: Total Additions | F75: =SUM(F17:F74) -> 95517001.73 | G75: =SUM(G17:G74) -> 101350411.3 | H75: 104823133.9 | I75: 108092099
C76: Deductions:
C77: Gain on disposal of assets per financial statements | D77: 401
C78: Dividends not taxable under section 83 | D78: 402
C79: Capital cost allowance from Schedule 8 | D79: 403 | E79: T8 | F79: ='C2 Sch 8 CCA Test 27'!AA43 -> 115778748.5 | G79: ='C3 Sch 8 CCA Test 28'!AA43 -> 109759976.9 | H79: ='C4 Sch 8 CCA Test 29'!AA44 -> 117810845.5 | I79: ='C5 Sch 8 CCA Test 30'!AA45 -> 120391869.5
C80: Terminal loss from Schedule 8 | D80: 404 | E80: T8
C81: Allowable business investment loss | D81: 406
C82: Deferred and prepaid expenses | D82: 409
C83: Scientific research expenses claimed in year | D83: 411 | F83: 6704743.657 | G83: 6543670.76 | H83: 5070261.75 | I83: 3557665.137
C84: Tax reserves end of year | D84: 413 | E84: T13 | F84: 6776000 | G84: 6776000 | H84: 6776000 | I84: 6776000
C85: Reserves from financial statements - balance at beginning of year | D85: 414 | E85: T13 | F85: 4141000 | G85: 4141000 | H85: 4141000 | I85: 4141000 | J85: =F35+F36-F84-F85 -> 0
C86: Contributions to deferred income plans | D86: 416
C87: Book income of joint venture or partnership | D87: 305
C88: Equity in income from subsidiary or affiliates | D88: 306
C89: Other deductions
C90: Interest capitalized for accounting deducted for tax | D90: 395
C91: Capital Lease Payments | D91: 395
C92: Non-taxable imputed interest income on deferral and variance accounts | D92: 395
D93: 395
D94: 395
D95: 395
D96: 395
D97: 395
C98: ARO Payments - Deductible for Tax when Paid
C99: ITA 13(7.4) Election - Capital Contributions Received
C100: ITA 13(7.4) Election - Apply Lease Inducement to cost of Leaseholds
C101: Deferred Revenue - ITA 20(1)(m) reserve
C102: Principal portion of lease payments
C103: Lease Inducement Book Amortization credit to income
C104: Financing fees for tax ITA 20(1)(e) and (e.1)
C106: Employee Future Benefit Benefits Paid | F106: 841309 | G106: 859135 | H106: 877317 | I106: 895864
C107: SR&ED Exp Capitalized in Accounting | F107: 5717224.223 | G107: 5858285.024 | H107: 4752483.831 | I107: 3429916.825
C108: Donations - OEB Qualified | F108: 348367 | G108: 355682 | H108: 363152 | I108: 370778
C113: Total Deductions | E113: calculated | F113: =SUM(F77:F112) -> 140307392.3 | G113: =SUM(G77:G112) -> 134293749.7 | H113: 139791060.1 | I113: 139563093.4
C115: NET INCOME FOR TAX PURPOSES | E115: calculated | F115: =SUM(F13,F75)-F113 -> 16094277.43 | G115: =SUM(G13,G75)-G113 -> 34604006.07 | H115: 37584009.35 | I115: 44637288.98
C117: Charitable donations | D117: 311
C118: Taxable dividends received under section 112 or 113 | D118: 320
C119: Non-capital losses of previous tax years from Schedule 4 | D119: 331 | E119: T4
C120: Net capital losses of previous tax years from Schedule 4 | D120: 332 | E120: T4
C121: Limited partnership losses of previous tax years from Schedule 4 | D121: 335
C123: REGULATORY TAXABLE INCOME | E123: calculated | F123: =IF(F115<0,F115,F115-SUM(F117:F122)) -> 16094277.43 | G123: =IF(G115<0,G115,G115-SUM(G117:G122)) -> 34604006.07 | H123: 37584009.35 | I123: 44637288.98
C125: Total Ontario income taxes before small business deduction | E125: 0.115 | F125: =F123*$E$125 -> 1850841.905 | G125: =G123*$E$125 -> 3979460.698 | H125: 4322161.076 | I125: 5133288.233
C126: Ontario Small Business Deduction | F126: 0 | G126: 0 | H126: 0 | I126: 0
C127: Total Ontario income taxes | F127: =SUM(F125:F126) -> 1850841.905 | G127: 3979460.698 | H127: 4322161.076 | I127: 5133288.233
C128: Effective Ontario tax rate | F128: 0.115 | G128: 0.115 | H128: 0.115 | I128: 0.115 | J128: B
C129: Federal tax rate | F129: 0.15 | G129: 0.15 | H129: 0.15 | I129: 0.15 | J129: C
C130: Combined tax rate | F130: =SUM(F128:F129) -> 0.265 | G130: =SUM(G128:G129) -> 0.265 | H130: 0.265 | I130: 0.265 | J130: D = B + C
C132: Total Income taxes | F132: =F123*F130 -> 4264983.52 | G132: =G123*G130 -> 9170061.609 | H132: 9959762.478 | I132: 11828881.58 | J132: E = A * D
C133: Investment Tax credits | F133: =F57 -> 125000 | G133: =G57 -> 115000 | H133: 105000 | I133: 105000 | J133: F
C134: Miscellaneous Tax credits | J134: G
C135: Total tax credits | F135: =SUM(F133:F134) -> 125000 | G135: 115000 | H135: 105000 | I135: 105000 | J135: H = F + G
C136: Corporate PILs/Income Tax Provision for Test Year | F136: =+F132-F135 -> 4139983.52 | G136: =+G132-G135 -> 9055061.609 | H136: 9854762.478 | I136: 11723881.58 | J136: I = E - H
C138: Corporate PILs/Income Tax Provision Gross Up 1 | E138: =1-F130 -> 0.735 | F138: =+F136/E138-F136 -> 1492647.119 | G138: =+G136/E138-G136 -> 3264750.104 | H138: =+H136/E138-H136 -> 3553077.628 | I138: =+I136/E138-I136 -> 4226977.712 | J138: K = I/J-I
C140: Income Tax (grossed-up) | F140: =+F136+F138 -> 5632630.639 | G140: =+G136+G138 -> 12319811.71 | H140: 13407840.11 | I140: 15950859.29 | J140: L = K + I
C143: Note:
C144: 1. This is for the derivation of revenue requirement and should not be used for sufficiency/deficiency calculations.

Sheet C2 Sch 8 CCA Test 27
A5: Modified PILS TAX MODEL for 2026 – 2030 Test Years
B7: Schedule 8 CCA - Test Year 2027
B9: (1) Class | C9: Class Description | D9: Working Paper Reference | E9: (2) Undepreciated capital cost (UCC) at the beginning of the test year | F9: (3) Cost of acquisitions during the year (new property must be available for use, except CWIP) | G9: (4) Cost of acquisitions from column 3 that are designated immediate expensing property (DIEP) | H9: (5) Adjustments and transfers (enter amounts that will reduce the UCC as negatives) | I9: (6) Amount from column 5 that is assistance received or receivable during the year for a property, subsequent to its disposition | J9: (7) Amount from column 5 that is repaid during the year for a property, subsequent to its disposition | K9: (8) Proceeds of dispositions | L9: (9) Proceeds of dispositions of the DIEP (enter amount from column 8 that relates to the DIEP reported in column 4) | M9: (10) UCC (column 2 plus column 3 plus or minus column 5 minus column 8) | N9: (11) UCC of the DIEP (enter the UCC amount that relates to the DIEP reported in column 4) | O9: (12) Immediate expensing | P9: (13) Cost of acquisitions on remainder of Class (column 3 minus column 4 plus column 11 minus column 12) | Q9: (14) Cost of acquisitions from column 13 that are accelerated investment incentive properties (AIIP) or properties included in Classes 54 to 56 | R9: (15) Remaining UCC (column 10 minus column 12) (if negative, enter "0") | S9: (16) Proceeds of disposition available to reduce the UCC of AIIP and property included in Classes 54 to 56 (column 8 minus column 9 plus column 6 minus column 13 plus column 14 minus column 7) (if negative, enter "0") | T9: (17) Net capital cost additions of AIIP and property included in Classes 54 to 56 acquired during the year (column 14 minus column 16) (if negative, enter "0") | U9: Relevant factor1 | V9: (18) UCC adjustment for AIIP and property included in Classes 54 to 56 acquired during the year (column 17 multiplied by the relevant factor) | W9: (19) UCC adjustment for non-AIIP and property included in Classes 54 to 56 (0.5 multiplied by the result of column 13 minus column 14 minus column 6 plus column 7 minus column 8 plus column 9) (if negative, enter "0") | X9: (20) CCA Rate % | Y9: (21) Recapture of CCA | Z9: (22) Terminal Loss | AA9: (23) CCA (for declining balance method, the result of column 15 plus column 18 minus column 19, multiplied by column 20 or a lower amount, plus column 12)) | AB9: (24) UCC at the end of the test year (column 10 minus column 23)
B10: =IF(ISBLANK('B8 Sch 8 CCA Bridge 25'!B12), "", 'B8 Sch 8 CCA Bridge 25'!B12) -> 1 | C10: =IF(ISBLANK('B8 Sch 8 CCA Bridge 25'!C12), "", 'B8 Sch 8 CCA Bridge 25'!C12) -> Buildings, Distribution System (acq'd post 1987) | D10: B8 | E10: ='T8 Sch 8 CCA Test 26'!AB10 -> 114062846.1 | M10: =IFERROR(E10+F10+H10-K10,0) -> 114062846.1 | P10: =+F10-G10+N10-O10 -> 0 | R10: =IF((M10-O10)<0,0,M10-O10) -> 114062846.1 | S10: =IF((K10-L10+I10-P10+Q10-J10)<0,0,(K10-L10+I10-P10+Q10-J10)) -> 0 | T10: =IF((Q10-S10)<0,0,(Q10-S10)) -> 0 | U10: 0 | V10: =T10*U10 -> 0 | W10: =IF((0.5*(P10-Q10-I10+J10-K10+L10))<0,0,(0.5*(P10-Q10-I10+J10-K10+L10))) -> 0 | X10: 0.04 | AA10: =IF(OR(R10<=0,Z10>0),0,(R10+V10-W10)*X10) -> 4562513.842 | AB10: =IF(M10<0,0,M10-Z10-AA10) -> 109500332.2
B11: =IF(ISBLANK('B8 Sch 8 CCA Bridge 25'!B13), "", 'B8 Sch 8 CCA Bridge 25'!B13) -> 1b | C11: =IF(ISBLANK('B8 Sch 8 CCA Bridge 25'!C13), "", 'B8 Sch 8 CCA Bridge 25'!C13) -> Non-Residential Buildings [Reg. 1100(1)(a.1) election] | D11: B8 | E11: ='T8 Sch 8 CCA Test 26'!AB11 -> 75898938.38 | F11: 16757496.34 | M11: =IFERROR(E11+F11+H11-K11,"") -> 92656434.72 | P11: =+F11-G11+N11-O11 -> 16757496.34 | Q11: =P11 -> 16757496.34 | R11: =IF((M11-O11)<0,0,M11-O11) -> 92656434.72 | S11: =IF((K11-L11+I11-P11+Q11-J11)<0,0,(K11-L11+I11-P11+Q11-J11)) -> 0 | T11: =IF((Q11-S11)<0,0,(Q11-S11)) -> 16757496.34 | U11: 0 | V11: =T11*U11 -> 0 | W11: =IF((0.5*(P11-Q11-I11+J11-K11+L11))<0,0,(0.5*(P11-Q11-I11+J11-K11+L11))) -> 0 | X11: 0.06 | AA11: =IF(OR(R11<=0,Z11>0),0,(R11+V11-W11)*X11) -> 5559386.083 | AB11: =IF(M11<0,0,M11-Z11-AA11) -> 87097048.63
B12: =IF(ISBLANK('B8 Sch 8 CCA Bridge 25'!B14), "", 'B8 Sch 8 CCA Bridge 25'!B14) -> 2 | C12: =IF(ISBLANK('B8 Sch 8 CCA Bridge 25'!C14), "", 'B8 Sch 8 CCA Bridge 25'!C14) -> Distribution System (acq'd pre 1988) | D12: B8 | E12: ='T8 Sch 8 CCA Test 26'!AB12 -> 30221227.39 | M12: 30221227.39 | P12: 0 | R12: 30221227.39 | S12: 0 | T12: 0 | V12: 0 | W12: 0 | X12: 0.06 | AA12: 1813273.643 | AB12: 28407953.74
B13: =IF(ISBLANK('B8 Sch 8 CCA Bridge 25'!B15), "", 'B8 Sch 8 CCA Bridge 25'!B15) -> 3 | C13: =IF(ISBLANK('B8 Sch 8 CCA Bridge 25'!C15), "", 'B8 Sch 8 CCA Bridge 25'!C15) -> Buildings (acq'd pre 1988) | D13: B8 | E13: ='T8 Sch 8 CCA Test 26'!AB13 -> 3710810.153 | M13: 3710810.153 | P13: 0 | R13: 3710810.153 | S13: 0 | T13: 0 | V13: 0 | W13: 0 | X13: 0.05 | AA13: 185540.5076 | AB13: 3525269.645
B14: =IF(ISBLANK('B8 Sch 8 CCA Bridge 25'!B16), "", 'B8 Sch 8 CCA Bridge 25'!B16) -> 6 | C14: =IF(ISBLANK('B8 Sch 8 CCA Bridge 25'!C16), "", 'B8 Sch 8 CCA Bridge 25'!C16) -> Certain Buildings; Fences | D14: B8 | E14: ='T8 Sch 8 CCA Test 26'!AB14 -> 0 | M14: 0 | P14: 0 | R14: 0 | S14: 0 | T14: 0 | U14: 0 | V14: 0 | W14: 0 | X14: 0.1 | AA14: 0 | AB14: 0
B15: =IF(ISBLANK('B8 Sch 8 CCA Bridge 25'!B17), "", 'B8 Sch 8 CCA Bridge 25'!B17) -> 8 | C15: =IF(ISBLANK('B8 Sch 8 CCA Bridge 25'!C17), "", 'B8 Sch 8 CCA Bridge 25'!C17) -> General Office Equipment, Furniture, Fixtures | D15: B8 | E15: ='T8 Sch 8 CCA Test 26'!AB15 -> 5691829.043 | F15: 1459925.17 | M15: 7151754.213 | P15: 1459925.17 | Q15: =P15 -> 1459925.17 | R15: 7151754.213 | S15: 0 | T15: 1459925.17 | U15: 0 | V15: 0 | W15: 0 | X15: 0.2 | AA15: 1430350.843 | AB15: 5721403.371
B16: =IF(ISBLANK('B8 Sch 8 CCA Bridge 25'!B18), "", 'B8 Sch 8 CCA Bridge 25'!B18) -> 10 | C16: =IF(ISBLANK('B8 Sch 8 CCA Bridge 25'!C18), "", 'B8 Sch 8 CCA Bridge 25'!C18) -> Motor Vehicles, Fleet | D16: B8 | E16: ='T8 Sch 8 CCA Test 26'!AB16 -> 11679514.49 | F16: 11701459.11 | K16: 132000 | M16: 23248973.6 | P16: 11701459.11 | Q16: 11701459.11 | R16: 23248973.6 | S16: 132000 | T16: 11569459.11 | U16: 0 | V16: 0 | W16: 0 | X16: 0.3 | AA16: =IF(OR(R16<=0,Z16>0),0,(R16+V16-W16)*X16) -> 6974692.079 | AB16: 16274281.52
B17: =IF(ISBLANK('B8 Sch 8 CCA Bridge 25'!B19), "", 'B8 Sch 8 CCA Bridge 25'!B19) -> 10.1 | C17: =IF(ISBLANK('B8 Sch 8 CCA Bridge 25'!C19), "", 'B8 Sch 8 CCA Bridge 25'!C19) -> Certain Automobiles | D17: B8 | E17: ='T8 Sch 8 CCA Test 26'!AB17 -> 0 | M17: 0 | P17: 0 | R17: 0 | S17: 0 | T17: 0 | U17: 0 | V17: 0 | W17: 0 | X17: 0.3 | AA17: 0 | AB17: 0
B18: =IF(ISBLANK('B8 Sch 8 CCA Bridge 25'!B20), "", 'B8 Sch 8 CCA Bridge 25'!B20) -> 12 | C18: =IF(ISBLANK('B8 Sch 8 CCA Bridge 25'!C20), "", 'B8 Sch 8 CCA Bridge 25'!C20) -> Computer Application Software (Non-Systems) | D18: B8 | E18: ='T8 Sch 8 CCA Test 26'!AB18 -> 0 | F18: 5172735.007 | M18: 5172735.007 | P18: 5172735.007 | Q18: =P18 -> 5172735.007 | R18: 5172735.007 | S18: 0 | T18: 5172735.007 | U18: 0 | V18: 0 | W18: 0 | X18: 1 | AA18: 5172735.007 | AB18: 0
B19: 13 1 | C19: =IF(ISBLANK('B8 Sch 8 CCA Bridge 25'!C21), "", 'B8 Sch 8 CCA Bridge 25'!C21) -> Lease # 1 | D19: B8 | E19: ='T8 Sch 8 CCA Test 26'!AB19 -> 0 | M19: 0 | P19: 0 | R19: 0 | S19: 0 | T19: 0 | U19: 0 | V19: 0 | W19: 0 | X19: NA | AA19: 0 | AB19: 0
B20: 13 2 | C20: =IF(ISBLANK('B8 Sch 8 CCA Bridge 25'!C22), "", 'B8 Sch 8 CCA Bridge 25'!C22) -> Lease # 2 | D20: B8 | E20: ='T8 Sch 8 CCA Test 26'!AB20 -> 0 | M20: 0 | P20: 0 | R20: 0 | S20: 0 | T20: 0 | U20: 0 | V20: 0 | W20: 0 | X20: NA | AA20: 0 | AB20: 0
B21: 13 3 | C21: =IF(ISBLANK('B8 Sch 8 CCA Bridge 25'!C23), "", 'B8 Sch 8 CCA Bridge 25'!C23) -> Lease # 3 | D21: B8 | E21: ='T8 Sch 8 CCA Test 26'!AB21 -> 0 | M21: 0 | P21: 0 | R21: 0 | S21: 0 | T21: 0 | U21: 0 | V21: 0 | W21: 0 | X21: NA | AA21: 0 | AB21: 0
B22: 13 4 | C22: =IF(ISBLANK('B8 Sch 8 CCA Bridge 25'!C24), "", 'B8 Sch 8 CCA Bridge 25'!C24) -> Lease # 4 | D22: B8 | E22: ='T8 Sch 8 CCA Test 26'!AB22 -> 0 | M22: 0 | P22: 0 | R22: 0 | S22: 0 | T22: 0 | U22: 0 | V22: 0 | W22: 0 | X22: NA | AA22: 0 | AB22: 0
B23: =IF(ISBLANK('B8 Sch 8 CCA Bridge 25'!B25), "", 'B8 Sch 8 CCA Bridge 25'!B25) -> 14 | C23: =IF(ISBLANK('B8 Sch 8 CCA Bridge 25'!C25), "", 'B8 Sch 8 CCA Bridge 25'!C25) -> Limited Period Patents, Franchises, Concessions or Licences | D23: B8 | E23: ='T8 Sch 8 CCA Test 26'!AB23 -> 0 | M23: 0 | P23: 0 | R23: 0 | S23: 0 | T23: 0 | U23: 0 | V23: 0 | W23: 0 | X23: NA | AA23: 0 | AB23: 0
B24: =IF(ISBLANK('B8 Sch 8 CCA Bridge 25'!B26), "", 'B8 Sch 8 CCA Bridge 25'!B26) -> 14.1 | C24: Eligible Capital Property (acq'd pre Jan 1, 2017) | D24: B8 | E24: ='T8 Sch 8 CCA Test 26'!AB24 -> 6032844.426 | M24: 6032844.426 | P24: 0 | R24: =IF((M24-O24)<0,0,M24-O24) -> 6032844.426 | S24: =IF((K24-L24+I24-P24+Q24-J24)<0,0,(K24-L24+I24-P24+Q24-J24)) -> 0 | T24: 0 | V24: 0 | W24: 0 | X24: 0.07 | AA24: 422299.1098 | AB24: 5610545.316
B25: =IF(ISBLANK('B8 Sch 8 CCA Bridge 25'!B27), "", 'B8 Sch 8 CCA Bridge 25'!B27) -> 14.1 | C25: Eligible Capital Property (acq'd post Jan 1, 2017) | D25: B8 | E25: ='T8 Sch 8 CCA Test 26'!AB25 -> 47495329.67 | F25: 6078320.01 | M25: 53573649.68 | P25: 6078320.01 | Q25: =P25 -> 6078320.01 | R25: 53573649.68 | S25: 0 | T25: 6078320.01 | U25: 0 | V25: 0 | W25: 0 | X25: 0.05 | AA25: 2678682.484 | AB25: 50894967.2
B26: =IF(ISBLANK('B8 Sch 8 CCA Bridge 25'!B28), "", 'B8 Sch 8 CCA Bridge 25'!B28) -> 17 | C26: =IF(ISBLANK('B8 Sch 8 CCA Bridge 25'!C28), "", 'B8 Sch 8 CCA Bridge 25'!C28) -> Elec. Generation Equip. (Non-Bldng, acq'd post Feb 27/00); Roads, Lots, Storage | D26: B8 | E26: ='T8 Sch 8 CCA Test 26'!AB26 -> 1287699.684 | M26: 1287699.684 | P26: 0 | Q26: 0 | R26: 1287699.684 | S26: 0 | T26: 0 | U26: 0 | V26: 0 | W26: 0 | X26: 0.08 | AA26: 103015.9748 | AB26: 1184683.71
B27: =IF(ISBLANK('B8 Sch 8 CCA Bridge 25'!B29), "", 'B8 Sch 8 CCA Bridge 25'!B29) -> 42 | C27: =IF(ISBLANK('B8 Sch 8 CCA Bridge 25'!C29), "", 'B8 Sch 8 CCA Bridge 25'!C29) -> Fibre Optic Cable | D27: B8 | E27: ='T8 Sch 8 CCA Test 26'!AB27 -> 1758519.485 | F27: 1019233.29 | M27: 2777752.775 | P27: 1019233.29 | Q27: 1019233.29 | R27: 2777752.775 | S27: 0 | T27: 1019233.29 | U27: 0 | V27: 0 | W27: 0 | X27: 0.12 | AA27: 333330.333 | AB27: 2444422.442
B28: =IF(ISBLANK('B8 Sch 8 CCA Bridge 25'!B30), "", 'B8 Sch 8 CCA Bridge 25'!B30) -> 43.1 | C28: =IF(ISBLANK('B8 Sch 8 CCA Bridge 25'!C30), "", 'B8 Sch 8 CCA Bridge 25'!C30) -> Certain Clean Energy/Energy-Efficient Generation Equipment | D28: B8 | E28: ='T8 Sch 8 CCA Test 26'!AB28 -> 144167.7314 | M28: 144167.7314 | P28: 0 | Q28: 0 | R28: 144167.7314 | S28: 0 | T28: 0 | U28: 0 | V28: 0 | W28: 0 | X28: 0.3 | AA28: =(E28*0.3)+(F28*0.55) -> 43250.31942 | AB28: 100917.412
B29: =IF(ISBLANK('B8 Sch 8 CCA Bridge 25'!B31), "", 'B8 Sch 8 CCA Bridge 25'!B31) -> 43.2 | C29: =IF(ISBLANK('B8 Sch 8 CCA Bridge 25'!C31), "", 'B8 Sch 8 CCA Bridge 25'!C31) -> Certain Clean Energy/Energy-Efficient Generation Equipment | D29: B8 | E29: ='T8 Sch 8 CCA Test 26'!AB29 -> 49529.75 | M29: 49529.75 | P29: 0 | R29: 49529.75 | S29: 0 | T29: 0 | U29: 0.5 | V29: 0 | W29: 0 | X29: 0.5 | AA29: 24764.875 | AB29: 24764.875
B30: =IF(ISBLANK('B8 Sch 8 CCA Bridge 25'!B32), "", 'B8 Sch 8 CCA Bridge 25'!B32) -> 45 | C30: =IF(ISBLANK('B8 Sch 8 CCA Bridge 25'!C32), "", 'B8 Sch 8 CCA Bridge 25'!C32) -> Computers & System Software (acq'd post Mar 22/04 and pre Mar 19/07) | D30: B8 | E30: ='T8 Sch 8 CCA Test 26'!AB30 -> 19.965 | M30: 19.965 | P30: 0 | R30: 19.965 | S30: 0 | T30: 0 | V30: 0 | W30: 0 | X30: 0.45 | AA30: 8.98425 | AB30: 10.98075
B31: =IF(ISBLANK('B8 Sch 8 CCA Bridge 25'!B33), "", 'B8 Sch 8 CCA Bridge 25'!B33) -> 46 | C31: =IF(ISBLANK('B8 Sch 8 CCA Bridge 25'!C33), "", 'B8 Sch 8 CCA Bridge 25'!C33) -> Data Network Infrastructure Equipment (acq'd post Mar 22/04) | D31: B8 | E31: ='T8 Sch 8 CCA Test 26'!AB31 -> 0 | M31: 0 | P31: 0 | R31: 0 | S31: 0 | T31: 0 | U31: 0 | V31: 0 | W31: 0 | X31: 0.3 | AA31: 0 | AB31: 0
B32: =IF(ISBLANK('B8 Sch 8 CCA Bridge 25'!B34), "", 'B8 Sch 8 CCA Bridge 25'!B34) -> 47 | C32: =IF(ISBLANK('B8 Sch 8 CCA Bridge 25'!C34), "", 'B8 Sch 8 CCA Bridge 25'!C34) -> Distribution System (acq'd post Feb 22/05) | D32: B8 | E32: ='T8 Sch 8 CCA Test 26'!AB32 -> 793448429.2 | F32: 210403084.9 | M32: 1003851514 | P32: 210403084.9 | Q32: =P32 -> 210403084.9 | R32: 1003851514 | S32: 0 | T32: 210403084.9 | U32: 0 | V32: 0 | W32: 0 | X32: 0.08 | AA32: 80308121.13 | AB32: 923543393
B33: =IF(ISBLANK('B8 Sch 8 CCA Bridge 25'!B35), "", 'B8 Sch 8 CCA Bridge 25'!B35) -> 50 | C33: =IF(ISBLANK('B8 Sch 8 CCA Bridge 25'!C35), "", 'B8 Sch 8 CCA Bridge 25'!C35) -> General Purpose Computer Hardware & Software (acq'd post Mar 18/07) | D33: B8 | E33: ='T8 Sch 8 CCA Test 26'!AB33 -> 2546672.035 | F33: 8665661.13 | M33: 11212333.17 | P33: 8665661.13 | Q33: 8665661.13 | R33: 11212333.17 | S33: 0 | T33: 8665661.13 | U33: 0 | V33: 0 | W33: 0 | X33: 0.55 | AA33: 6166783.241 | AB33: 5045549.924
B34: =IF(ISBLANK('B8 Sch 8 CCA Bridge 25'!B36), "", 'B8 Sch 8 CCA Bridge 25'!B36) -> 95 | C34: =IF(ISBLANK('B8 Sch 8 CCA Bridge 25'!C36), "", 'B8 Sch 8 CCA Bridge 25'!C36) -> CWIP | D34: B8 | E34: ='T8 Sch 8 CCA Test 26'!AB34 -> 0 | M34: 0 | P34: 0 | R34: 0 | S34: 0 | T34: 0 | U34: 0 | V34: 0 | W34: 0 | X34: 0 | AA34: 0 | AB34: 0
B35: =IF(ISBLANK('B8 Sch 8 CCA Bridge 25'!B37), "", 'B8 Sch 8 CCA Bridge 25'!B37) ->  | C35: =IF(ISBLANK('B8 Sch 8 CCA Bridge 25'!C37), "", 'B8 Sch 8 CCA Bridge 25'!C37) ->  | D35: B8 | M35: 0 | P35: 0 | R35: 0 | S35: 0 | T35: 0 | V35: 0 | W35: 0 | AA35: 0 | AB35: 0
B36: =IF(ISBLANK('B8 Sch 8 CCA Bridge 25'!B38), "", 'B8 Sch 8 CCA Bridge 25'!B38) ->  | C36: =IF(ISBLANK('B8 Sch 8 CCA Bridge 25'!C38), "", 'B8 Sch 8 CCA Bridge 25'!C38) ->  | D36: B8 | M36: 0 | P36: 0 | R36: 0 | S36: 0 | T36: 0 | V36: 0 | W36: 0 | AA36: 0 | AB36: 0
B37: =IF(ISBLANK('B8 Sch 8 CCA Bridge 25'!B39), "", 'B8 Sch 8 CCA Bridge 25'!B39) ->  | C37: =IF(ISBLANK('B8 Sch 8 CCA Bridge 25'!C39), "", 'B8 Sch 8 CCA Bridge 25'!C39) ->  | D37: B8 | M37: 0 | P37: 0 | R37: 0 | S37: 0 | T37: 0 | V37: 0 | W37: 0 | AA37: 0 | AB37: 0
B38: =IF(ISBLANK('B8 Sch 8 CCA Bridge 25'!B40), "", 'B8 Sch 8 CCA Bridge 25'!B40) ->  | C38: =IF(ISBLANK('B8 Sch 8 CCA Bridge 25'!C40), "", 'B8 Sch 8 CCA Bridge 25'!C40) ->  | D38: B8 | M38: 0 | P38: 0 | R38: 0 | S38: 0 | T38: 0 | V38: 0 | W38: 0 | AA38: 0 | AB38: 0
B39: =IF(ISBLANK('B8 Sch 8 CCA Bridge 25'!B41), "", 'B8 Sch 8 CCA Bridge 25'!B41) ->  | C39: =IF(ISBLANK('B8 Sch 8 CCA Bridge 25'!C41), "", 'B8 Sch 8 CCA Bridge 25'!C41) ->  | D39: B8 | M39: 0 | P39: 0 | R39: 0 | S39: 0 | T39: 0 | V39: 0 | W39: 0 | AA39: 0 | AB39: 0
B40: =IF(ISBLANK('B8 Sch 8 CCA Bridge 25'!B42), "", 'B8 Sch 8 CCA Bridge 25'!B42) ->  | C40: =IF(ISBLANK('B8 Sch 8 CCA Bridge 25'!C42), "", 'B8 Sch 8 CCA Bridge 25'!C42) ->  | D40: B8 | M40: 0 | P40: 0 | R40: 0 | S40: 0 | T40: 0 | V40: 0 | W40: 0 | AA40: 0 | AB40: 0
B41: =IF(ISBLANK('B8 Sch 8 CCA Bridge 25'!B43), "", 'B8 Sch 8 CCA Bridge 25'!B43) ->  | C41: =IF(ISBLANK('B8 Sch 8 CCA Bridge 25'!C43), "", 'B8 Sch 8 CCA Bridge 25'!C43) ->  | D41: B8 | M41: 0 | P41: 0 | R41: 0 | S41: 0 | T41: 0 | V41: 0 | W41: 0 | AA41: 0 | AB41: =IF(M41<0,0,M41-Z41-AA41) -> 0
B42: =IF(ISBLANK('B8 Sch 8 CCA Bridge 25'!B44), "", 'B8 Sch 8 CCA Bridge 25'!B44) ->  | C42: =IF(ISBLANK('B8 Sch 8 CCA Bridge 25'!C44), "", 'B8 Sch 8 CCA Bridge 25'!C44) ->  | D42: B8 | M42: =IFERROR(E42+F42+H42-K42,"") -> 0 | P42: 0 | R42: 0 | S42: 0 | T42: 0 | V42: 0 | W42: 0 | AA42: 0 | AB42: 0
C43: TOTALS | E43: =SUM(E10:E42) -> 1094028377 | F43: =SUM(F10:F42) -> 261257915 | G43: =SUM(G10:G42) -> 0 | H43: =SUM(H10:H42) -> 0 | I43: =SUM(I10:I42) -> 0 | J43: 0 | K43: =SUM(K10:K42) -> 132000 | L43: =SUM(L10:L42) -> 0 | M43: =SUM(M10:M42) -> 1355154292 | N43: 0 | O43: 0 | P43: 261257915 | Q43: =SUM(Q10:Q42) -> 261257915 | R43: 1355154292 | S43: 132000 | T43: 261125915 | V43: =SUM(V10:V42) -> 0 | W43: 0 | Y43: =SUM(Y10:Y42) -> 0 | Z43: =SUM(Z10:Z42) -> 0 | AA43: =SUM(AA10:AA42) -> 115778748.5 | AB43: =SUM(AB10:AB42) -> 1239375544
B45: For additional details and guidance on calculating amounts in Schedule 8, refer to the notes to the Canada Revenue Agency published Schedule 8 - Capital Cost Allowance (CCA) (2018 and later tax years):
B46: https://www.canada.ca/content/dam/cra-arc/formspubs/pbg/t2sch8/t2sch8-19e.pdf
B50: 1. Please note that Subsection 1100(2) of the Income Tax Regulations provide undepreciated capital cost adjustment factors of eligible zero-emission vehicles and equipment under Class 53, Class 54, Class 55 and Class 56,
B51: please assess the applicability of these adjustments and incorporate them in the PILs model as applicable.

Sheet C3 Sch 8 CCA Test 28
A5: Modified PILS TAX MODEL for 2026 – 2030 Test Years
B7: Schedule 8 CCA - Test Year 2028
B9: (1) Class | C9: Class Description | D9: Working Paper Reference | E9: (2) Undepreciated capital cost (UCC) at the beginning of the test year | F9: (3) Cost of acquisitions during the year (new property must be available for use, except CWIP) | G9: (4) Cost of acquisitions from column 3 that are designated immediate expensing property (DIEP) | H9: (5) Adjustments and transfers (enter amounts that will reduce the UCC as negatives) | I9: (6) 50% rule (1/2 of the amount, if any, by which the net cost of acquisitions exceeds proceeds of dispositions in column 8) | J9: (7) Amount from column 5 that is repaid during the year for a property, subsequent to its disposition | K9: (8) Proceeds of dispositions | L9: (9) Proceeds of dispositions of the DIEP (enter amount from column 8 that relates to the DIEP reported in column 4) | M9: (10) UCC (column 2 plus column 3 plus or minus column 5 minus column 8) | N9: (11) UCC of the DIEP (enter the UCC amount that relates to the DIEP reported in column 4) | O9: (12) Immediate expensing | P9: (13) Cost of acquisitions on remainder of Class (column 3 minus column 4 plus column 11 minus column 12) | Q9: (14) Cost of acquisitions from column 13 that are accelerated investment incentive properties (AIIP) or properties included in Classes 54 to 56 | R9: (15) Remaining UCC (column 10 minus column 12) (if negative, enter "0") | S9: (16) Proceeds of disposition available to reduce the UCC of AIIP and property included in Classes 54 to 56 (column 8 minus column 9 plus column 6 minus column 13 plus column 14 minus column 7) (if negative, enter "0") | T9: (17) Net capital cost additions of AIIP and property included in Classes 54 to 56 acquired during the year (column 14 minus column 16) (if negative, enter "0") | U9: Relevant factor1 | V9: (18) UCC adjustment for AIIP and property included in Classes 54 to 56 acquired during the year (column 17 multiplied by the relevant factor) | W9: (19) UCC adjustment for non-AIIP and property included in Classes 54 to 56 (0.5 multiplied by the result of column 13 minus column 14 minus column 6 plus column 7 minus column 8 plus column 9) (if negative, enter "0") | X9: (20) CCA Rate % | Y9: (21) Recapture of CCA | Z9: (22) Terminal Loss | AA9: (23) CCA (for declining balance method, the result of column 15 plus column 18 minus column 19, multiplied by column 20 or a lower amount, plus column 12)) | AB9: (24) UCC at the end of the test year (column 6 plus column 15 minus column 23)
B10: =IF(ISBLANK('B8 Sch 8 CCA Bridge 25'!B12), "", 'B8 Sch 8 CCA Bridge 25'!B12) -> 1 | C10: =IF(ISBLANK('B8 Sch 8 CCA Bridge 25'!C12), "", 'B8 Sch 8 CCA Bridge 25'!C12) -> Buildings, Distribution System (acq'd post 1987) | D10: B8 | E10: ='C2 Sch 8 CCA Test 27'!AB10 -> 109500332.2 | I10: =(F10-K10)/2 -> 0 | M10: =IFERROR(E10+F10-I10-K10,0) -> 109500332.2 | P10: =+F10-G10+N10-O10 -> 0 | R10: =IF((M10-O10)<0,0,M10-O10) -> 109500332.2 | S10: =IF((K10-L10+I10-P10+Q10-J10)<0,0,(K10-L10+I10-P10+Q10-J10)) -> 0 | T10: =IF((Q10-S10)<0,0,(Q10-S10)) -> 0 | U10: 0 | V10: =T10*U10 -> 0 | X10: 0.04 | AA10: =IF(OR(R10<=0,Z10>0),0,(R10+V10-W10)*X10) -> 4380013.288 | AB10: =I10+R10-AA10 -> 105120318.9
B11: =IF(ISBLANK('B8 Sch 8 CCA Bridge 25'!B13), "", 'B8 Sch 8 CCA Bridge 25'!B13) -> 1b | C11: =IF(ISBLANK('B8 Sch 8 CCA Bridge 25'!C13), "", 'B8 Sch 8 CCA Bridge 25'!C13) -> Non-Residential Buildings [Reg. 1100(1)(a.1) election] | D11: B8 | E11: ='C2 Sch 8 CCA Test 27'!AB11 -> 87097048.63 | F11: 11361086.28 | I11: =(F11-K11)/2 -> 5680543.14 | M11: =IFERROR(E11+F11-I11-K11,0) -> 92777591.77 | P11: 11361086.28 | R11: =IF((M11-O11)<0,0,M11-O11) -> 92777591.77 | S11: =IF((K11-L11+I11-P11+Q11-J11)<0,0,(K11-L11+I11-P11+Q11-J11)) -> 0 | T11: =IF((Q11-S11)<0,0,(Q11-S11)) -> 0 | U11: 0 | V11: =T11*U11 -> 0 | X11: 0.06 | AA11: =IF(OR(R11<=0,Z11>0),0,(R11+V11-W11)*X11) -> 5566655.506 | AB11: =I11+R11-AA11 -> 92891479.41
B12: =IF(ISBLANK('B8 Sch 8 CCA Bridge 25'!B14), "", 'B8 Sch 8 CCA Bridge 25'!B14) -> 2 | C12: =IF(ISBLANK('B8 Sch 8 CCA Bridge 25'!C14), "", 'B8 Sch 8 CCA Bridge 25'!C14) -> Distribution System (acq'd pre 1988) | D12: B8 | E12: ='C2 Sch 8 CCA Test 27'!AB12 -> 28407953.74 | I12: 0 | M12: 28407953.74 | P12: 0 | R12: 28407953.74 | S12: 0 | T12: 0 | V12: 0 | X12: 0.06 | AA12: =IF(OR(R12<=0,Z12>0),0,(R12+V12-W12)*X12) -> 1704477.225 | AB12: 26703476.52
B13: =IF(ISBLANK('B8 Sch 8 CCA Bridge 25'!B15), "", 'B8 Sch 8 CCA Bridge 25'!B15) -> 3 | C13: =IF(ISBLANK('B8 Sch 8 CCA Bridge 25'!C15), "", 'B8 Sch 8 CCA Bridge 25'!C15) -> Buildings (acq'd pre 1988) | D13: B8 | E13: ='C2 Sch 8 CCA Test 27'!AB13 -> 3525269.645 | I13: 0 | M13: 3525269.645 | P13: 0 | R13: 3525269.645 | S13: 0 | T13: 0 | V13: 0 | X13: 0.05 | AA13: 176263.4822 | AB13: 3349006.163
B14: =IF(ISBLANK('B8 Sch 8 CCA Bridge 25'!B16), "", 'B8 Sch 8 CCA Bridge 25'!B16) -> 6 | C14: =IF(ISBLANK('B8 Sch 8 CCA Bridge 25'!C16), "", 'B8 Sch 8 CCA Bridge 25'!C16) -> Certain Buildings; Fences | D14: B8 | E14: ='C2 Sch 8 CCA Test 27'!AB14 -> 0 | I14: 0 | M14: 0 | P14: 0 | R14: 0 | S14: 0 | T14: 0 | U14: 0 | V14: 0 | X14: 0.1 | AA14: 0 | AB14: 0
B15: =IF(ISBLANK('B8 Sch 8 CCA Bridge 25'!B17), "", 'B8 Sch 8 CCA Bridge 25'!B17) -> 8 | C15: =IF(ISBLANK('B8 Sch 8 CCA Bridge 25'!C17), "", 'B8 Sch 8 CCA Bridge 25'!C17) -> General Office Equipment, Furniture, Fixtures | D15: B8 | E15: ='C2 Sch 8 CCA Test 27'!AB15 -> 5721403.371 | F15: 1097051.55 | I15: 548525.775 | M15: 6269929.146 | P15: 1097051.55 | R15: 6269929.146 | S15: 0 | T15: 0 | U15: 0 | V15: 0 | X15: 0.2 | AA15: 1253985.829 | AB15: 5564469.091
B16: =IF(ISBLANK('B8 Sch 8 CCA Bridge 25'!B18), "", 'B8 Sch 8 CCA Bridge 25'!B18) -> 10 | C16: =IF(ISBLANK('B8 Sch 8 CCA Bridge 25'!C18), "", 'B8 Sch 8 CCA Bridge 25'!C18) -> Motor Vehicles, Fleet | D16: B8 | E16: ='C2 Sch 8 CCA Test 27'!AB16 -> 16274281.52 | F16: 9174432.99 | I16: 4521216.495 | K16: 132000 | M16: 20795498.01 | P16: 9174432.99 | R16: 20795498.01 | S16: 0 | T16: 0 | U16: 0 | V16: 0 | X16: 0.3 | AA16: =IF(OR(R16<=0,Z16>0),0,(R16+V16-W16)*X16) -> 6238649.404 | AB16: 19078065.1
B17: =IF(ISBLANK('B8 Sch 8 CCA Bridge 25'!B19), "", 'B8 Sch 8 CCA Bridge 25'!B19) -> 10.1 | C17: =IF(ISBLANK('B8 Sch 8 CCA Bridge 25'!C19), "", 'B8 Sch 8 CCA Bridge 25'!C19) -> Certain Automobiles | D17: B8 | E17: ='C2 Sch 8 CCA Test 27'!AB17 -> 0 | I17: 0 | M17: 0 | P17: 0 | R17: 0 | S17: 0 | T17: 0 | U17: 0 | V17: 0 | X17: 0.3 | AA17: 0 | AB17: 0
B18: =IF(ISBLANK('B8 Sch 8 CCA Bridge 25'!B20), "", 'B8 Sch 8 CCA Bridge 25'!B20) -> 12 | C18: =IF(ISBLANK('B8 Sch 8 CCA Bridge 25'!C20), "", 'B8 Sch 8 CCA Bridge 25'!C20) -> Computer Application Software (Non-Systems) | D18: B8 | E18: ='C2 Sch 8 CCA Test 27'!AB18 -> 0 | F18: 3777019.876 | I18: 1888509.938 | M18: 1888509.938 | P18: 3777019.876 | R18: 1888509.938 | S18: 0 | T18: 0 | U18: 0 | V18: 0 | X18: 1 | AA18: 1888509.938 | AB18: 1888509.938
B19: 13 1 | C19: =IF(ISBLANK('B8 Sch 8 CCA Bridge 25'!C21), "", 'B8 Sch 8 CCA Bridge 25'!C21) -> Lease # 1 | D19: B8 | E19: ='C2 Sch 8 CCA Test 27'!AB19 -> 0 | I19: 0 | M19: 0 | P19: 0 | R19: 0 | S19: 0 | T19: 0 | U19: 0 | V19: 0 | X19: NA | AA19: 0 | AB19: 0
B20: 13 2 | C20: =IF(ISBLANK('B8 Sch 8 CCA Bridge 25'!C22), "", 'B8 Sch 8 CCA Bridge 25'!C22) -> Lease # 2 | D20: B8 | E20: ='C2 Sch 8 CCA Test 27'!AB20 -> 0 | I20: 0 | M20: 0 | P20: 0 | R20: 0 | S20: 0 | T20: 0 | U20: 0 | V20: 0 | X20: NA | AA20: 0 | AB20: 0
B21: 13 3 | C21: =IF(ISBLANK('B8 Sch 8 CCA Bridge 25'!C23), "", 'B8 Sch 8 CCA Bridge 25'!C23) -> Lease # 3 | D21: B8 | E21: ='C2 Sch 8 CCA Test 27'!AB21 -> 0 | I21: 0 | M21: 0 | P21: 0 | R21: 0 | S21: 0 | T21: 0 | U21: 0 | V21: 0 | X21: NA | AA21: 0 | AB21: 0
B22: 13 4 | C22: =IF(ISBLANK('B8 Sch 8 CCA Bridge 25'!C24), "", 'B8 Sch 8 CCA Bridge 25'!C24) -> Lease # 4 | D22: B8 | E22: ='C2 Sch 8 CCA Test 27'!AB22 -> 0 | I22: 0 | M22: 0 | P22: 0 | R22: 0 | S22: 0 | T22: 0 | U22: 0 | V22: 0 | X22: NA | AA22: 0 | AB22: 0
B23: =IF(ISBLANK('B8 Sch 8 CCA Bridge 25'!B25), "", 'B8 Sch 8 CCA Bridge 25'!B25) -> 14 | C23: =IF(ISBLANK('B8 Sch 8 CCA Bridge 25'!C25), "", 'B8 Sch 8 CCA Bridge 25'!C25) -> Limited Period Patents, Franchises, Concessions or Licences | D23: B8 | E23: ='C2 Sch 8 CCA Test 27'!AB23 -> 0 | I23: 0 | M23: 0 | P23: 0 | R23: 0 | S23: 0 | T23: 0 | U23: 0 | V23: 0 | X23: NA | AA23: 0 | AB23: 0
B24: =IF(ISBLANK('B8 Sch 8 CCA Bridge 25'!B26), "", 'B8 Sch 8 CCA Bridge 25'!B26) -> 14.1 | C24: Eligible Capital Property (acq'd pre Jan 1, 2017) | D24: B8 | E24: ='C2 Sch 8 CCA Test 27'!AB24 -> 5610545.316 | I24: 0 | M24: 5610545.316 | P24: 0 | R24: 5610545.316 | S24: =IF((K24-L24+I24-P24+Q24-J24)<0,0,(K24-L24+I24-P24+Q24-J24)) -> 0 | T24: 0 | V24: 0 | X24: 0.07 | AA24: 392738.1721 | AB24: 5217807.144
B25: =IF(ISBLANK('B8 Sch 8 CCA Bridge 25'!B27), "", 'B8 Sch 8 CCA Bridge 25'!B27) -> 14.1 | C25: Eligible Capital Property (acq'd post Jan 1, 2017) | D25: B8 | E25: ='C2 Sch 8 CCA Test 27'!AB25 -> 50894967.2 | F25: 31365345.96 | I25: 15682672.98 | M25: 66577640.18 | P25: 31365345.96 | R25: 66577640.18 | S25: 0 | T25: 0 | U25: 0 | V25: 0 | X25: 0.05 | AA25: =IF(OR(R25<=0,Z25>0),0,(R25+V25-W25)*X25) -> 3328882.009 | AB25: 78931431.15
B26: =IF(ISBLANK('B8 Sch 8 CCA Bridge 25'!B28), "", 'B8 Sch 8 CCA Bridge 25'!B28) -> 17 | C26: =IF(ISBLANK('B8 Sch 8 CCA Bridge 25'!C28), "", 'B8 Sch 8 CCA Bridge 25'!C28) -> Elec. Generation Equip. (Non-Bldng, acq'd post Feb 27/00); Roads, Lots, Storage | D26: B8 | E26: ='C2 Sch 8 CCA Test 27'!AB26 -> 1184683.71 | I26: 0 | M26: 1184683.71 | P26: 0 | R26: 1184683.71 | S26: 0 | T26: 0 | U26: 0 | V26: 0 | X26: 0.08 | AA26: 94774.69677 | AB26: 1089909.013
B27: =IF(ISBLANK('B8 Sch 8 CCA Bridge 25'!B29), "", 'B8 Sch 8 CCA Bridge 25'!B29) -> 42 | C27: =IF(ISBLANK('B8 Sch 8 CCA Bridge 25'!C29), "", 'B8 Sch 8 CCA Bridge 25'!C29) -> Fibre Optic Cable | D27: B8 | E27: ='C2 Sch 8 CCA Test 27'!AB27 -> 2444422.442 | F27: 4803271.27 | I27: 2401635.635 | M27: 4846058.077 | P27: 4803271.27 | R27: 4846058.077 | S27: 0 | T27: 0 | U27: 0 | V27: 0 | X27: 0.12 | AA27: 581526.9693 | AB27: 6666166.743
B28: =IF(ISBLANK('B8 Sch 8 CCA Bridge 25'!B30), "", 'B8 Sch 8 CCA Bridge 25'!B30) -> 43.1 | C28: =IF(ISBLANK('B8 Sch 8 CCA Bridge 25'!C30), "", 'B8 Sch 8 CCA Bridge 25'!C30) -> Certain Clean Energy/Energy-Efficient Generation Equipment | D28: B8 | E28: ='C2 Sch 8 CCA Test 27'!AB28 -> 100917.412 | I28: 0 | M28: 100917.412 | P28: 0 | R28: 100917.412 | S28: 0 | T28: 0 | U28: 0 | V28: 0 | X28: 0.3 | AA28: 30275.22359 | AB28: 70642.18839
B29: =IF(ISBLANK('B8 Sch 8 CCA Bridge 25'!B31), "", 'B8 Sch 8 CCA Bridge 25'!B31) -> 43.2 | C29: =IF(ISBLANK('B8 Sch 8 CCA Bridge 25'!C31), "", 'B8 Sch 8 CCA Bridge 25'!C31) -> Certain Clean Energy/Energy-Efficient Generation Equipment | D29: B8 | E29: ='C2 Sch 8 CCA Test 27'!AB29 -> 24764.875 | I29: 0 | M29: 24764.875 | P29: 0 | R29: 24764.875 | S29: 0 | T29: 0 | U29: 0 | V29: 0 | X29: 0.5 | AA29: 12382.4375 | AB29: 12382.4375
B30: =IF(ISBLANK('B8 Sch 8 CCA Bridge 25'!B32), "", 'B8 Sch 8 CCA Bridge 25'!B32) -> 45 | C30: =IF(ISBLANK('B8 Sch 8 CCA Bridge 25'!C32), "", 'B8 Sch 8 CCA Bridge 25'!C32) -> Computers & System Software (acq'd post Mar 22/04 and pre Mar 19/07) | D30: B8 | E30: ='C2 Sch 8 CCA Test 27'!AB30 -> 10.98075 | I30: 0 | M30: 10.98075 | P30: 0 | R30: 10.98075 | S30: 0 | T30: 0 | V30: 0 | X30: 0.45 | AA30: 4.9413375 | AB30: 6.0394125
B31: =IF(ISBLANK('B8 Sch 8 CCA Bridge 25'!B33), "", 'B8 Sch 8 CCA Bridge 25'!B33) -> 46 | C31: =IF(ISBLANK('B8 Sch 8 CCA Bridge 25'!C33), "", 'B8 Sch 8 CCA Bridge 25'!C33) -> Data Network Infrastructure Equipment (acq'd post Mar 22/04) | D31: B8 | E31: ='C2 Sch 8 CCA Test 27'!AB31 -> 0 | I31: 0 | M31: 0 | P31: 0 | R31: 0 | S31: 0 | T31: 0 | U31: 0 | V31: 0 | X31: 0.3 | AA31: 0 | AB31: 0
B32: =IF(ISBLANK('B8 Sch 8 CCA Bridge 25'!B34), "", 'B8 Sch 8 CCA Bridge 25'!B34) -> 47 | C32: =IF(ISBLANK('B8 Sch 8 CCA Bridge 25'!C34), "", 'B8 Sch 8 CCA Bridge 25'!C34) -> Distribution System (acq'd post Feb 22/05) | D32: B8 | E32: ='C2 Sch 8 CCA Test 27'!AB32 -> 923543393 | F32: 175981787.7 | I32: 87990893.85 | M32: 1011534287 | P32: 175981787.7 | R32: 1011534287 | S32: 0 | T32: 0 | U32: 0 | V32: 0 | X32: 0.08 | AA32: 80922742.95 | AB32: 1018602438
B33: =IF(ISBLANK('B8 Sch 8 CCA Bridge 25'!B35), "", 'B8 Sch 8 CCA Bridge 25'!B35) -> 50 | C33: =IF(ISBLANK('B8 Sch 8 CCA Bridge 25'!C35), "", 'B8 Sch 8 CCA Bridge 25'!C35) -> General Purpose Computer Hardware & Software (acq'd post Mar 18/07) | D33: B8 | E33: ='C2 Sch 8 CCA Test 27'!AB33 -> 5045549.924 | F33: 1501972.42 | I33: 750986.21 | M33: 5796536.134 | P33: 1501972.42 | R33: 5796536.134 | S33: 0 | T33: 0 | U33: 0 | V33: 0 | X33: 0.55 | AA33: 3188094.874 | AB33: 3359427.47
B34: =IF(ISBLANK('B8 Sch 8 CCA Bridge 25'!B36), "", 'B8 Sch 8 CCA Bridge 25'!B36) -> 95 | C34: =IF(ISBLANK('B8 Sch 8 CCA Bridge 25'!C36), "", 'B8 Sch 8 CCA Bridge 25'!C36) -> CWIP | D34: B8 | I34: 0 | M34: 0 | P34: 0 | R34: 0 | S34: 0 | T34: 0 | U34: 0 | V34: 0 | X34: 0 | AA34: 0 | AB34: 0
B35: =IF(ISBLANK('B8 Sch 8 CCA Bridge 25'!B37), "", 'B8 Sch 8 CCA Bridge 25'!B37) ->  | C35: =IF(ISBLANK('B8 Sch 8 CCA Bridge 25'!C37), "", 'B8 Sch 8 CCA Bridge 25'!C37) ->  | D35: B8 | I35: 0 | M35: 0 | P35: 0 | R35: 0 | S35: 0 | T35: 0 | V35: 0 | AA35: 0 | AB35: 0
B36: =IF(ISBLANK('B8 Sch 8 CCA Bridge 25'!B38), "", 'B8 Sch 8 CCA Bridge 25'!B38) ->  | C36: =IF(ISBLANK('B8 Sch 8 CCA Bridge 25'!C38), "", 'B8 Sch 8 CCA Bridge 25'!C38) ->  | D36: B8 | I36: 0 | M36: 0 | P36: 0 | R36: 0 | S36: 0 | T36: 0 | V36: 0 | AA36: 0 | AB36: 0
B37: =IF(ISBLANK('B8 Sch 8 CCA Bridge 25'!B39), "", 'B8 Sch 8 CCA Bridge 25'!B39) ->  | C37: =IF(ISBLANK('B8 Sch 8 CCA Bridge 25'!C39), "", 'B8 Sch 8 CCA Bridge 25'!C39) ->  | D37: B8 | I37: 0 | M37: 0 | P37: 0 | R37: 0 | S37: 0 | T37: 0 | V37: 0 | AA37: 0 | AB37: 0
B38: =IF(ISBLANK('B8 Sch 8 CCA Bridge 25'!B40), "", 'B8 Sch 8 CCA Bridge 25'!B40) ->  | C38: =IF(ISBLANK('B8 Sch 8 CCA Bridge 25'!C40), "", 'B8 Sch 8 CCA Bridge 25'!C40) ->  | D38: B8 | I38: 0 | M38: 0 | P38: 0 | R38: 0 | S38: 0 | T38: 0 | V38: 0 | AA38: 0 | AB38: 0
B39: =IF(ISBLANK('B8 Sch 8 CCA Bridge 25'!B41), "", 'B8 Sch 8 CCA Bridge 25'!B41) ->  | C39: =IF(ISBLANK('B8 Sch 8 CCA Bridge 25'!C41), "", 'B8 Sch 8 CCA Bridge 25'!C41) ->  | D39: B8 | I39: 0 | M39: 0 | P39: 0 | R39: 0 | S39: 0 | T39: 0 | V39: 0 | AA39: 0 | AB39: 0
B40: =IF(ISBLANK('B8 Sch 8 CCA Bridge 25'!B42), "", 'B8 Sch 8 CCA Bridge 25'!B42) ->  | C40: =IF(ISBLANK('B8 Sch 8 CCA Bridge 25'!C42), "", 'B8 Sch 8 CCA Bridge 25'!C42) ->  | D40: B8 | I40: 0 | M40: 0 | P40: 0 | R40: 0 | S40: 0 | T40: 0 | V40: 0 | AA40: 0 | AB40: 0
B41: =IF(ISBLANK('B8 Sch 8 CCA Bridge 25'!B43), "", 'B8 Sch 8 CCA Bridge 25'!B43) ->  | C41: =IF(ISBLANK('B8 Sch 8 CCA Bridge 25'!C43), "", 'B8 Sch 8 CCA Bridge 25'!C43) ->  | D41: B8 | I41: 0 | M41: 0 | P41: 0 | R41: 0 | S41: 0 | T41: 0 | V41: 0 | AA41: 0 | AB41: 0
B42: =IF(ISBLANK('B8 Sch 8 CCA Bridge 25'!B44), "", 'B8 Sch 8 CCA Bridge 25'!B44) ->  | C42: =IF(ISBLANK('B8 Sch 8 CCA Bridge 25'!C44), "", 'B8 Sch 8 CCA Bridge 25'!C44) ->  | D42: B8 | M42: =IFERROR(E42+F42*0.5+H42-K42,"") -> 0 | P42: =+F42-G42+N42-O42 -> 0 | R42: 0 | S42: 0 | T42: 0 | V42: 0 | W42: =IF((0.5*(P42-Q42-I42+J42-K42+L42))<0,0,(0.5*(P42-Q42-I42+J42-K42+L42))) -> 0 | AA42: 0 | AB42: =IF(M42<0,0,M42-Z42-AA42) -> 0
C43: TOTALS | E43: =SUM(E10:E42) -> 1239375544 | F43: =SUM(F10:F42) -> 239061968 | G43: =SUM(G10:G42) -> 0 | H43: =SUM(H10:H42) -> 0 | I43: =SUM(I10:I42) -> 119464984 | J43: 0 | K43: =SUM(K10:K42) -> 132000 | L43: =SUM(L10:L42) -> 0 | M43: =SUM(M10:M42) -> 1358840528 | N43: 0 | O43: 0 | P43: 239061968 | Q43: =SUM(Q10:Q42) -> 0 | R43: 1358840528 | S43: 0 | T43: 0 | V43: =SUM(V10:V42) -> 0 | W43: 0 | Y43: =SUM(Y10:Y42) -> 0 | Z43: =SUM(Z10:Z42) -> 0 | AA43: =SUM(AA10:AA42) -> 109759976.9 | AB43: =SUM(AB10:AB42) -> 1368545535
B45: For additional details and guidance on calculating amounts in Schedule 8, refer to the notes to the Canada Revenue Agency published Schedule 8 - Capital Cost Allowance (CCA) (2018 and later tax years):
B46: https://www.canada.ca/content/dam/cra-arc/formspubs/pbg/t2sch8/t2sch8-19e.pdf
B50: 1. Please note that Subsection 1100(2) of the Income Tax Regulations provide undepreciated capital cost adjustment factors of eligible zero-emission vehicles and equipment under Class 53, Class 54, Class 55 and Class 56,
B51: please assess the applicability of these adjustments and incorporate them in the PILs model as applicable.

Sheet C4 Sch 8 CCA Test 29
A6: Modified PILS TAX MODEL for 2026 – 2030 Test Years
B8: Schedule 8 CCA - Test Year 2029
B10: (1) Class | C10: Class Description | D10: Working Paper Reference | E10: (2) Undepreciated capital cost (UCC) at the beginning of the test year | F10: (3) Cost of acquisitions during the year (new property must be available for use, except CWIP) | G10: (4) Cost of acquisitions from column 3 that are designated immediate expensing property (DIEP) | H10: (5) Adjustments and transfers (enter amounts that will reduce the UCC as negatives) | I10: (6) 50% rule (1/2 of the amount, if any, by which the net cost of acquisitions exceeds proceeds of dispositions in column 8) | J10: (7) Amount from column 5 that is repaid during the year for a property, subsequent to its disposition | K10: (8) Proceeds of dispositions | L10: (9) Proceeds of dispositions of the DIEP (enter amount from column 8 that relates to the DIEP reported in column 4) | M10: (10) UCC (column 2 plus column 3 plus or minus column 5 minus column 6 minus column 8) | N10: (11) UCC of the DIEP (enter the UCC amount that relates to the DIEP reported in column 4) | O10: (12) Immediate expensing | P10: (13) Cost of acquisitions on remainder of Class (column 3 minus column 4 plus column 11 minus column 12) | Q10: (14) Cost of acquisitions from column 13 that are accelerated investment incentive properties (AIIP) or properties included in Classes 54 to 56 | R10: (15) Reduced undepreciated capital cost (column 2 plus column 3 plus column 5 minus column 6 minus column 8) | S10: (16) Proceeds of disposition available to reduce the UCC of AIIP and property included in Classes 54 to 56 (column 8 minus column 9 plus column 6 minus column 13 plus column 14 minus column 7) (if negative, enter "0") | T10: (17) Net capital cost additions of AIIP and property included in Classes 54 to 56 acquired during the year (column 14 minus column 16) (if negative, enter "0") | U10: Relevant factor1 | V10: (18) UCC adjustment for AIIP and property included in Classes 54 to 56 acquired during the year (column 17 multiplied by the relevant factor) | W10: (19) UCC adjustment for non-AIIP and property included in Classes 54 to 56 (0.5 multiplied by the result of column 13 minus column 14 minus column 6 plus column 7 minus column 8 plus column 9) (if negative, enter "0") | X10: (20) CCA Rate % | Y10: (21) Recapture of CCA | Z10: (22) Terminal Loss | AA10: (23) CCA (for declining balance method, the result of column 15 plus column 18 minus column 19, multiplied by column 20 or a lower amount, plus column 12)) | AB10: (24) UCC at the end of the test year (column 6 plus column 15 minus column 23)
B11: =IF(ISBLANK('B8 Sch 8 CCA Bridge 25'!B12), "", 'B8 Sch 8 CCA Bridge 25'!B12) -> 1 | C11: =IF(ISBLANK('B8 Sch 8 CCA Bridge 25'!C12), "", 'B8 Sch 8 CCA Bridge 25'!C12) -> Buildings, Distribution System (acq'd post 1987) | D11: B8 | E11: ='C3 Sch 8 CCA Test 28'!AB10 -> 105120318.9 | I11: =(F11-K11)/2 -> 0 | M11: =IFERROR(E11+F11+H11-K11-I11,"") -> 105120318.9 | P11: =+F11-G11+N11-O11 -> 0 | R11: =E11+F11+H11-I11-K11 -> 105120318.9 | S11: =IF((K11-L11+I11-P11+Q11-J11)<0,0,(K11-L11+I11-P11+Q11-J11)) -> 0 | T11: =IF((Q11-S11)<0,0,(Q11-S11)) -> 0 | U11: 0 | V11: =T11*U11 -> 0 | W11: 0 | X11: 0.04 | AA11: =IF(OR(R11<=0,Z11>0),0,(R11+V11-W11)*X11) -> 4204812.757 | AB11: =I11+R11-AA11 -> 100915506.2
B12: =IF(ISBLANK('B8 Sch 8 CCA Bridge 25'!B13), "", 'B8 Sch 8 CCA Bridge 25'!B13) -> 1b | C12: =IF(ISBLANK('B8 Sch 8 CCA Bridge 25'!C13), "", 'B8 Sch 8 CCA Bridge 25'!C13) -> Non-Residential Buildings [Reg. 1100(1)(a.1) election] | D12: B8 | E12: ='C3 Sch 8 CCA Test 28'!AB11 -> 92891479.41 | F12: 6715343.14 | I12: =(F12-K12)/2 -> 3357671.57 | M12: =IFERROR(E12+F12+H12-K12-I12,"") -> 96249150.98 | P12: 6715343.14 | R12: =E12+F12+H12-I12-K12 -> 96249150.98 | S12: =IF((K12-L12+I12-P12+Q12-J12)<0,0,(K12-L12+I12-P12+Q12-J12)) -> 0 | T12: =IF((Q12-S12)<0,0,(Q12-S12)) -> 0 | U12: 0 | V12: =T12*U12 -> 0 | W12: 0 | X12: 0.06 | AA12: =IF(OR(R12<=0,Z12>0),0,(R12+V12-W12)*X12) -> 5774949.059 | AB12: =I12+R12-AA12 -> 93831873.49
B13: =IF(ISBLANK('B8 Sch 8 CCA Bridge 25'!B14), "", 'B8 Sch 8 CCA Bridge 25'!B14) -> 2 | C13: =IF(ISBLANK('B8 Sch 8 CCA Bridge 25'!C14), "", 'B8 Sch 8 CCA Bridge 25'!C14) -> Distribution System (acq'd pre 1988) | D13: B8 | E13: ='C3 Sch 8 CCA Test 28'!AB12 -> 26703476.52 | I13: 0 | M13: 26703476.52 | P13: 0 | R13: 26703476.52 | S13: 0 | T13: 0 | V13: 0 | W13: 0 | X13: 0.06 | AA13: =IF(OR(R13<=0,Z13>0),0,(R13+V13-W13)*X13) -> 1602208.591 | AB13: 25101267.93
B14: =IF(ISBLANK('B8 Sch 8 CCA Bridge 25'!B15), "", 'B8 Sch 8 CCA Bridge 25'!B15) -> 3 | C14: =IF(ISBLANK('B8 Sch 8 CCA Bridge 25'!C15), "", 'B8 Sch 8 CCA Bridge 25'!C15) -> Buildings (acq'd pre 1988) | D14: B8 | E14: ='C3 Sch 8 CCA Test 28'!AB13 -> 3349006.163 | I14: 0 | M14: 3349006.163 | P14: 0 | R14: 3349006.163 | S14: 0 | T14: 0 | V14: 0 | W14: 0 | X14: 0.05 | AA14: 167450.3081 | AB14: 3181555.854
B15: =IF(ISBLANK('B8 Sch 8 CCA Bridge 25'!B16), "", 'B8 Sch 8 CCA Bridge 25'!B16) -> 6 | C15: =IF(ISBLANK('B8 Sch 8 CCA Bridge 25'!C16), "", 'B8 Sch 8 CCA Bridge 25'!C16) -> Certain Buildings; Fences | D15: B8 | E15: ='C3 Sch 8 CCA Test 28'!AB14 -> 0 | I15: 0 | M15: 0 | P15: 0 | R15: 0 | S15: 0 | T15: 0 | U15: 0 | V15: 0 | W15: 0 | X15: 0.1 | AA15: 0 | AB15: 0
B16: =IF(ISBLANK('B8 Sch 8 CCA Bridge 25'!B17), "", 'B8 Sch 8 CCA Bridge 25'!B17) -> 8 | C16: =IF(ISBLANK('B8 Sch 8 CCA Bridge 25'!C17), "", 'B8 Sch 8 CCA Bridge 25'!C17) -> General Office Equipment, Furniture, Fixtures | D16: B8 | E16: ='C3 Sch 8 CCA Test 28'!AB15 -> 5564469.091 | F16: 2531219.89 | I16: 1265609.945 | M16: 6830079.036 | P16: 2531219.89 | R16: 6830079.036 | S16: 0 | T16: 0 | U16: 0 | V16: 0 | W16: 0 | X16: 0.2 | AA16: 1366015.807 | AB16: 6729673.174
B17: =IF(ISBLANK('B8 Sch 8 CCA Bridge 25'!B18), "", 'B8 Sch 8 CCA Bridge 25'!B18) -> 10 | C17: =IF(ISBLANK('B8 Sch 8 CCA Bridge 25'!C18), "", 'B8 Sch 8 CCA Bridge 25'!C18) -> Motor Vehicles, Fleet | D17: B8 | E17: ='C3 Sch 8 CCA Test 28'!AB16 -> 19078065.1 | F17: 2482643.25 | I17: 1175321.625 | K17: 132000 | M17: 20253386.73 | P17: 2482643.25 | R17: 20253386.73 | S17: 0 | T17: 0 | U17: 0 | V17: 0 | W17: 0 | X17: 0.3 | AA17: =IF(OR(R17<=0,Z17>0),0,(R17+V17-W17)*X17) -> 6076016.019 | AB17: 15352692.34
B18: =IF(ISBLANK('B8 Sch 8 CCA Bridge 25'!B19), "", 'B8 Sch 8 CCA Bridge 25'!B19) -> 10.1 | C18: =IF(ISBLANK('B8 Sch 8 CCA Bridge 25'!C19), "", 'B8 Sch 8 CCA Bridge 25'!C19) -> Certain Automobiles | D18: B8 | E18: ='C3 Sch 8 CCA Test 28'!AB17 -> 0 | I18: 0 | M18: 0 | P18: 0 | R18: 0 | S18: 0 | T18: 0 | U18: 0 | V18: 0 | W18: 0 | X18: 0.3 | AA18: 0 | AB18: 0
B19: =IF(ISBLANK('B8 Sch 8 CCA Bridge 25'!B20), "", 'B8 Sch 8 CCA Bridge 25'!B20) -> 12 | C19: =IF(ISBLANK('B8 Sch 8 CCA Bridge 25'!C20), "", 'B8 Sch 8 CCA Bridge 25'!C20) -> Computer Application Software (Non-Systems) | D19: B8 | E19: ='C3 Sch 8 CCA Test 28'!AB18 -> 1888509.938 | F19: 2201165.829 | I19: 1100582.914 | M19: 2989092.852 | P19: 2201165.829 | R19: 2989092.852 | S19: 0 | T19: 0 | U19: 0 | V19: 0 | W19: 0 | X19: 1 | AA19: 2989092.852 | AB19: 1100582.914
B20: 13 1 | C20: =IF(ISBLANK('B8 Sch 8 CCA Bridge 25'!C21), "", 'B8 Sch 8 CCA Bridge 25'!C21) -> Lease # 1 | D20: B8 | E20: ='C3 Sch 8 CCA Test 28'!AB19 -> 0 | I20: 0 | M20: 0 | P20: 0 | R20: 0 | S20: 0 | T20: 0 | U20: 0 | V20: 0 | W20: 0 | X20: NA | AA20: 0 | AB20: 0
B21: 13 2 | C21: =IF(ISBLANK('B8 Sch 8 CCA Bridge 25'!C22), "", 'B8 Sch 8 CCA Bridge 25'!C22) -> Lease # 2 | D21: B8 | E21: ='C3 Sch 8 CCA Test 28'!AB20 -> 0 | I21: 0 | M21: 0 | P21: 0 | R21: 0 | S21: 0 | T21: 0 | U21: 0 | V21: 0 | W21: 0 | X21: NA | AA21: 0 | AB21: 0
B22: 13 3 | C22: =IF(ISBLANK('B8 Sch 8 CCA Bridge 25'!C23), "", 'B8 Sch 8 CCA Bridge 25'!C23) -> Lease # 3 | D22: B8 | E22: ='C3 Sch 8 CCA Test 28'!AB21 -> 0 | I22: 0 | M22: 0 | P22: 0 | R22: 0 | S22: 0 | T22: 0 | U22: 0 | V22: 0 | W22: 0 | X22: NA | AA22: 0 | AB22: 0
B23: 13 4 | C23: =IF(ISBLANK('B8 Sch 8 CCA Bridge 25'!C24), "", 'B8 Sch 8 CCA Bridge 25'!C24) -> Lease # 4 | D23: B8 | E23: ='C3 Sch 8 CCA Test 28'!AB22 -> 0 | I23: 0 | M23: 0 | P23: 0 | R23: 0 | S23: 0 | T23: 0 | U23: 0 | V23: 0 | W23: 0 | X23: NA | AA23: 0 | AB23: 0
B24: =IF(ISBLANK('B8 Sch 8 CCA Bridge 25'!B25), "", 'B8 Sch 8 CCA Bridge 25'!B25) -> 14 | C24: =IF(ISBLANK('B8 Sch 8 CCA Bridge 25'!C25), "", 'B8 Sch 8 CCA Bridge 25'!C25) -> Limited Period Patents, Franchises, Concessions or Licences | D24: B8 | E24: ='C3 Sch 8 CCA Test 28'!AB23 -> 0 | I24: 0 | M24: 0 | P24: 0 | R24: 0 | S24: 0 | T24: 0 | U24: 0 | V24: 0 | W24: 0 | X24: NA | AA24: 0 | AB24: 0
B25: =IF(ISBLANK('B8 Sch 8 CCA Bridge 25'!B26), "", 'B8 Sch 8 CCA Bridge 25'!B26) -> 14.1 | C25: Eligible Capital Property (acq'd pre Jan 1, 2017) | D25: B8 | E25: ='C3 Sch 8 CCA Test 28'!AB24 -> 5217807.144 | I25: 0 | M25: 5217807.144 | P25: 0 | R25: 5217807.144 | S25: =IF((K25-L25+I25-P25+Q25-J25)<0,0,(K25-L25+I25-P25+Q25-J25)) -> 0 | T25: 0 | V25: 0 | W25: 0 | X25: 0.07 | AA25: 365246.5001 | AB25: 4852560.644
B26: =IF(ISBLANK('B8 Sch 8 CCA Bridge 25'!B27), "", 'B8 Sch 8 CCA Bridge 25'!B27) -> 14.1 | C26: Eligible Capital Property (acq'd post Jan 1, 2017) | D26: B8 | E26: ='C3 Sch 8 CCA Test 28'!AB25 -> 78931431.15 | F26: 19641379.6 | I26: 9820689.8 | M26: 88752120.95 | P26: 19641379.6 | R26: 88752120.95 | S26: 0 | T26: 0 | U26: 0 | V26: 0 | W26: 0 | X26: 0.05 | AA26: =IF(OR(R26<=0,Z26>0),0,(R26+V26-W26)*X26) -> 4437606.047 | AB26: 94135204.7
B27: =IF(ISBLANK('B8 Sch 8 CCA Bridge 25'!B28), "", 'B8 Sch 8 CCA Bridge 25'!B28) -> 17 | C27: =IF(ISBLANK('B8 Sch 8 CCA Bridge 25'!C28), "", 'B8 Sch 8 CCA Bridge 25'!C28) -> Elec. Generation Equip. (Non-Bldng, acq'd post Feb 27/00); Roads, Lots, Storage | D27: B8 | E27: ='C3 Sch 8 CCA Test 28'!AB26 -> 1089909.013 | I27: 0 | M27: 1089909.013 | P27: 0 | R27: 1089909.013 | S27: 0 | T27: 0 | U27: 0 | V27: 0 | W27: 0 | X27: 0.08 | AA27: 87192.72103 | AB27: 1002716.292
B28: =IF(ISBLANK('B8 Sch 8 CCA Bridge 25'!B29), "", 'B8 Sch 8 CCA Bridge 25'!B29) -> 42 | C28: =IF(ISBLANK('B8 Sch 8 CCA Bridge 25'!C29), "", 'B8 Sch 8 CCA Bridge 25'!C29) -> Fibre Optic Cable | D28: B8 | E28: ='C3 Sch 8 CCA Test 28'!AB27 -> 6666166.743 | F28: 1494275.17 | I28: 747137.585 | M28: 7413304.328 | P28: 1494275.17 | R28: 7413304.328 | S28: 0 | T28: 0 | U28: 0 | V28: 0 | W28: 0 | X28: 0.12 | AA28: 889596.5193 | AB28: 7270845.394
B29: =IF(ISBLANK('B8 Sch 8 CCA Bridge 25'!B30), "", 'B8 Sch 8 CCA Bridge 25'!B30) -> 43.1 | C29: =IF(ISBLANK('B8 Sch 8 CCA Bridge 25'!C30), "", 'B8 Sch 8 CCA Bridge 25'!C30) -> Certain Clean Energy/Energy-Efficient Generation Equipment | D29: B8 | E29: ='C3 Sch 8 CCA Test 28'!AB28 -> 70642.18839 | I29: 0 | M29: 70642.18839 | P29: 0 | R29: 70642.18839 | S29: 0 | T29: 0 | U29: 0 | V29: 0 | W29: 0 | X29: 0.3 | AA29: 21192.65652 | AB29: 49449.53187
B30: =IF(ISBLANK('B8 Sch 8 CCA Bridge 25'!B31), "", 'B8 Sch 8 CCA Bridge 25'!B31) -> 43.2 | C30: =IF(ISBLANK('B8 Sch 8 CCA Bridge 25'!C31), "", 'B8 Sch 8 CCA Bridge 25'!C31) -> Certain Clean Energy/Energy-Efficient Generation Equipment | D30: B8 | E30: ='C3 Sch 8 CCA Test 28'!AB29 -> 12382.4375 | I30: 0 | M30: 12382.4375 | P30: 0 | R30: 12382.4375 | S30: 0 | T30: 0 | U30: 0 | V30: 0 | W30: 0 | X30: 0.5 | AA30: 6191.21875 | AB30: 6191.21875
B31: =IF(ISBLANK('B8 Sch 8 CCA Bridge 25'!B32), "", 'B8 Sch 8 CCA Bridge 25'!B32) -> 45 | C31: =IF(ISBLANK('B8 Sch 8 CCA Bridge 25'!C32), "", 'B8 Sch 8 CCA Bridge 25'!C32) -> Computers & System Software (acq'd post Mar 22/04 and pre Mar 19/07) | D31: B8 | E31: ='C3 Sch 8 CCA Test 28'!AB30 -> 6.0394125 | I31: 0 | M31: 6.0394125 | P31: 0 | R31: 6.0394125 | S31: 0 | T31: 0 | V31: 0 | W31: 0 | X31: 0.45 | AA31: 2.717735625 | AB31: 3.321676875
B32: =IF(ISBLANK('B8 Sch 8 CCA Bridge 25'!B33), "", 'B8 Sch 8 CCA Bridge 25'!B33) -> 46 | C32: =IF(ISBLANK('B8 Sch 8 CCA Bridge 25'!C33), "", 'B8 Sch 8 CCA Bridge 25'!C33) -> Data Network Infrastructure Equipment (acq'd post Mar 22/04) | D32: B8 | E32: ='C3 Sch 8 CCA Test 28'!AB31 -> 0 | I32: 0 | M32: 0 | P32: 0 | R32: 0 | S32: 0 | T32: 0 | U32: 0 | V32: 0 | W32: 0 | X32: 0.3 | AA32: 0 | AB32: 0
B33: =IF(ISBLANK('B8 Sch 8 CCA Bridge 25'!B34), "", 'B8 Sch 8 CCA Bridge 25'!B34) -> 47 | C33: =IF(ISBLANK('B8 Sch 8 CCA Bridge 25'!C34), "", 'B8 Sch 8 CCA Bridge 25'!C34) -> Distribution System (acq'd post Feb 22/05) | D33: B8 | E33: ='C3 Sch 8 CCA Test 28'!AB32 -> 1018602438 | F33: 142931775.8 | I33: 71465887.88 | M33: 1090068326 | P33: 142931775.8 | R33: 1090068326 | S33: 0 | T33: 0 | U33: 0 | V33: 0 | W33: 0 | X33: 0.08 | AA33: 87205466.05 | AB33: 1074328747
B34: =IF(ISBLANK('B8 Sch 8 CCA Bridge 25'!B35), "", 'B8 Sch 8 CCA Bridge 25'!B35) -> 50 | C34: =IF(ISBLANK('B8 Sch 8 CCA Bridge 25'!C35), "", 'B8 Sch 8 CCA Bridge 25'!C35) -> General Purpose Computer Hardware & Software (acq'd post Mar 18/07) | D34: B8 | E34: ='C3 Sch 8 CCA Test 28'!AB33 -> 3359427.47 | F34: 2800438.57 | I34: 1400219.285 | M34: 4759646.755 | P34: 2800438.57 | R34: 4759646.755 | S34: 0 | T34: 0 | U34: 0 | V34: 0 | W34: 0 | X34: 0.55 | AA34: 2617805.715 | AB34: 3542060.325
B35: =IF(ISBLANK('B8 Sch 8 CCA Bridge 25'!B36), "", 'B8 Sch 8 CCA Bridge 25'!B36) -> 95 | C35: =IF(ISBLANK('B8 Sch 8 CCA Bridge 25'!C36), "", 'B8 Sch 8 CCA Bridge 25'!C36) -> CWIP | D35: B8 | E35: ='C3 Sch 8 CCA Test 28'!AB34 -> 0 | I35: 0 | M35: 0 | P35: 0 | R35: 0 | S35: 0 | T35: 0 | U35: 0 | V35: 0 | W35: 0 | X35: 0 | AA35: 0 | AB35: 0
B36: =IF(ISBLANK('B8 Sch 8 CCA Bridge 25'!B37), "", 'B8 Sch 8 CCA Bridge 25'!B37) ->  | C36: =IF(ISBLANK('B8 Sch 8 CCA Bridge 25'!C37), "", 'B8 Sch 8 CCA Bridge 25'!C37) ->  | D36: B8 | I36: 0 | M36: 0 | P36: 0 | R36: 0 | S36: 0 | T36: 0 | V36: 0 | W36: 0 | AA36: 0 | AB36: 0
B37: =IF(ISBLANK('B8 Sch 8 CCA Bridge 25'!B38), "", 'B8 Sch 8 CCA Bridge 25'!B38) ->  | C37: =IF(ISBLANK('B8 Sch 8 CCA Bridge 25'!C38), "", 'B8 Sch 8 CCA Bridge 25'!C38) ->  | D37: B8 | I37: 0 | M37: 0 | P37: 0 | R37: 0 | S37: 0 | T37: 0 | V37: 0 | W37: 0 | AA37: 0 | AB37: 0
B38: =IF(ISBLANK('B8 Sch 8 CCA Bridge 25'!B39), "", 'B8 Sch 8 CCA Bridge 25'!B39) ->  | C38: =IF(ISBLANK('B8 Sch 8 CCA Bridge 25'!C39), "", 'B8 Sch 8 CCA Bridge 25'!C39) ->  | D38: B8 | I38: 0 | M38: 0 | P38: 0 | R38: 0 | S38: 0 | T38: 0 | V38: 0 | W38: 0 | AA38: 0 | AB38: 0
B39: =IF(ISBLANK('B8 Sch 8 CCA Bridge 25'!B40), "", 'B8 Sch 8 CCA Bridge 25'!B40) ->  | C39: =IF(ISBLANK('B8 Sch 8 CCA Bridge 25'!C40), "", 'B8 Sch 8 CCA Bridge 25'!C40) ->  | D39: B8 | I39: 0 | M39: 0 | P39: 0 | R39: 0 | S39: 0 | T39: 0 | V39: 0 | W39: 0 | AA39: 0 | AB39: 0
B40: =IF(ISBLANK('B8 Sch 8 CCA Bridge 25'!B41), "", 'B8 Sch 8 CCA Bridge 25'!B41) ->  | C40: =IF(ISBLANK('B8 Sch 8 CCA Bridge 25'!C41), "", 'B8 Sch 8 CCA Bridge 25'!C41) ->  | D40: B8 | I40: 0 | M40: 0 | P40: 0 | R40: 0 | S40: 0 | T40: 0 | V40: 0 | W40: 0 | AA40: 0 | AB40: 0
B41: =IF(ISBLANK('B8 Sch 8 CCA Bridge 25'!B42), "", 'B8 Sch 8 CCA Bridge 25'!B42) ->  | C41: =IF(ISBLANK('B8 Sch 8 CCA Bridge 25'!C42), "", 'B8 Sch 8 CCA Bridge 25'!C42) ->  | D41: B8 | I41: 0 | M41: 0 | P41: 0 | R41: 0 | S41: 0 | T41: 0 | V41: 0 | W41: 0 | AA41: 0 | AB41: 0
B42: =IF(ISBLANK('B8 Sch 8 CCA Bridge 25'!B43), "", 'B8 Sch 8 CCA Bridge 25'!B43) ->  | C42: =IF(ISBLANK('B8 Sch 8 CCA Bridge 25'!C43), "", 'B8 Sch 8 CCA Bridge 25'!C43) ->  | D42: B8 | I42: 0 | M42: 0 | P42: 0 | R42: 0 | S42: 0 | T42: 0 | V42: 0 | W42: =IF((0.5*(P42-Q42-I42+J42-K42+L42))<0,0,(0.5*(P42-Q42-I42+J42-K42+L42))) -> 0 | AA42: 0 | AB42: 0
B43: =IF(ISBLANK('B8 Sch 8 CCA Bridge 25'!B44), "", 'B8 Sch 8 CCA Bridge 25'!B44) ->  | C43: =IF(ISBLANK('B8 Sch 8 CCA Bridge 25'!C44), "", 'B8 Sch 8 CCA Bridge 25'!C44) ->  | D43: B8 | M43: =IFERROR(E43+F43*0.5+H43-K43,"") -> 0 | P43: 0 | R43: =IF((M43-O43)<0,0,M43-O43) -> 0 | S43: 0 | T43: 0 | V43: 0 | W43: 0 | AA43: 0 | AB43: =IF(M43<0,0,M43-Z43-AA43) -> 0
C44: TOTALS | E44: =SUM(E11:E43) -> 1368545535 | F44: =SUM(F11:F43) -> 180798241.2 | G44: =SUM(G11:G43) -> 0 | H44: =SUM(H11:H43) -> 0 | I44: =SUM(I11:I43) -> 90333120.6 | J44: 0 | K44: =SUM(K11:K43) -> 132000 | L44: =SUM(L11:L43) -> 0 | M44: =SUM(M11:M43) -> 1458878656 | N44: 0 | O44: 0 | P44: 180798241.2 | Q44: =SUM(Q11:Q43) -> 0 | R44: 1458878656 | S44: 0 | T44: 0 | V44: =SUM(V11:V43) -> 0 | W44: 0 | Y44: =SUM(Y11:Y43) -> 0 | Z44: =SUM(Z11:Z43) -> 0 | AA44: =SUM(AA11:AA43) -> 117810845.5 | AB44: =SUM(AB11:AB43) -> 1431400931
B46: For additional details and guidance on calculating amounts in Schedule 8, refer to the notes to the Canada Revenue Agency published Schedule 8 - Capital Cost Allowance (CCA) (2018 and later tax years):
B47: https://www.canada.ca/content/dam/cra-arc/formspubs/pbg/t2sch8/t2sch8-19e.pdf
B51: 1. Please note that Subsection 1100(2) of the Income Tax Regulations provide undepreciated capital cost adjustment factors of eligible zero-emission vehicles and equipment under Class 53, Class 54, Class 55 and Class 56,
B52: please assess the applicability of these adjustments and incorporate them in the PILs model as applicable.

Sheet C5 Sch 8 CCA Test 30
A7: Modified PILS TAX MODEL for 2026 – 2030 Test Years
B9: Schedule 8 CCA - Test Year 2030
B11: (1) Class | C11: Class Description | D11: Working Paper Reference | E11: (2) Undepreciated capital cost (UCC) at the beginning of the test year | F11: (3) Cost of acquisitions during the year (new property must be available for use, except CWIP) | G11: (4) Cost of acquisitions from column 3 that are designated immediate expensing property (DIEP) | H11: (5) Adjustments and transfers (enter amounts that will reduce the UCC as negatives) | I11: (6) 50% rule (1/2 of the amount, if any, by which the net cost of acquisitions exceeds proceeds of dispositions in column 8) | J11: (7) Amount from column 5 that is repaid during the year for a property, subsequent to its disposition | K11: (8) Proceeds of dispositions | L11: (9) Proceeds of dispositions of the DIEP (enter amount from column 8 that relates to the DIEP reported in column 4) | M11: (10) UCC (column 2 plus column 3 plus or minus column 5 minus column 6 minus column 8) | N11: (11) UCC of the DIEP (enter the UCC amount that relates to the DIEP reported in column 4) | O11: (12) Immediate expensing | P11: (13) Cost of acquisitions on remainder of Class (column 3 minus column 4 plus column 11 minus column 12) | Q11: (14) Cost of acquisitions from column 13 that are accelerated investment incentive properties (AIIP) or properties included in Classes 54 to 56 | R11: (15) Reduced undepreciated capital cost (column 2 plus column 3 plus column 5 minus column 6 minus column 8) | S11: (16) Proceeds of disposition available to reduce the UCC of AIIP and property included in Classes 54 to 56 (column 8 minus column 9 plus column 6 minus column 13 plus column 14 minus column 7) (if negative, enter "0") | T11: (17) Net capital cost additions of AIIP and property included in Classes 54 to 56 acquired during the year (column 14 minus column 16) (if negative, enter "0") | U11: Relevant factor1 | V11: (18) UCC adjustment for AIIP and property included in Classes 54 to 56 acquired during the year (column 17 multiplied by the relevant factor) | W11: (19) UCC adjustment for non-AIIP and property included in Classes 54 to 56 (0.5 multiplied by the result of column 13 minus column 14 minus column 6 plus column 7 minus column 8 plus column 9) (if negative, enter "0") | X11: (20) CCA Rate % | Y11: (21) Recapture of CCA | Z11: (22) Terminal Loss | AA11: (23) CCA (for declining balance method, the result of column 15 plus column 18 minus column 19, multiplied by column 20 or a lower amount, plus column 12)) | AB11: (24) UCC at the end of the test year (column 6 plus column 15 minus column 23)
B12: =IF(ISBLANK('B8 Sch 8 CCA Bridge 25'!B12), "", 'B8 Sch 8 CCA Bridge 25'!B12) -> 1 | C12: =IF(ISBLANK('B8 Sch 8 CCA Bridge 25'!C12), "", 'B8 Sch 8 CCA Bridge 25'!C12) -> Buildings, Distribution System (acq'd post 1987) | D12: B8 | E12: ='C4 Sch 8 CCA Test 29'!AB11 -> 100915506.2 | I12: =(F12-K12)/2 -> 0 | M12: =IFERROR(E12+F12+H12-K12-I12,"") -> 100915506.2 | P12: =+F12-G12+N12-O12 -> 0 | R12: =E12+F12+H12-I12-K12 -> 100915506.2 | S12: =IF((K12-L12+I12-P12+Q12-J12)<0,0,(K12-L12+I12-P12+Q12-J12)) -> 0 | T12: =IF((Q12-S12)<0,0,(Q12-S12)) -> 0 | U12: 0 | V12: =T12*U12 -> 0 | W12: 0 | X12: 0.04 | AA12: =IF(OR(R12<=0,Z12>0),0,(R12+V12-W12)*X12) -> 4036620.247 | AB12: =I12+R12-AA12 -> 96878885.92
B13: =IF(ISBLANK('B8 Sch 8 CCA Bridge 25'!B13), "", 'B8 Sch 8 CCA Bridge 25'!B13) -> 1b | C13: =IF(ISBLANK('B8 Sch 8 CCA Bridge 25'!C13), "", 'B8 Sch 8 CCA Bridge 25'!C13) -> Non-Residential Buildings [Reg. 1100(1)(a.1) election] | D13: B8 | E13: ='C4 Sch 8 CCA Test 29'!AB12 -> 93831873.49 | F13: 8480204.19 | I13: =(F13-K13)/2 -> 4240102.095 | M13: =IFERROR(E13+F13+H13-K13-I13,"") -> 98071975.58 | P13: 8480204.19 | R13: =E13+F13+H13-I13-K13 -> 98071975.58 | S13: =IF((K13-L13+I13-P13+Q13-J13)<0,0,(K13-L13+I13-P13+Q13-J13)) -> 0 | T13: =IF((Q13-S13)<0,0,(Q13-S13)) -> 0 | U13: 0 | V13: =T13*U13 -> 0 | W13: 0 | X13: 0.06 | AA13: =IF(OR(R13<=0,Z13>0),0,(R13+V13-W13)*X13) -> 5884318.535 | AB13: =I13+R13-AA13 -> 96427759.14
B14: =IF(ISBLANK('B8 Sch 8 CCA Bridge 25'!B14), "", 'B8 Sch 8 CCA Bridge 25'!B14) -> 2 | C14: =IF(ISBLANK('B8 Sch 8 CCA Bridge 25'!C14), "", 'B8 Sch 8 CCA Bridge 25'!C14) -> Distribution System (acq'd pre 1988) | D14: B8 | E14: ='C4 Sch 8 CCA Test 29'!AB13 -> 25101267.93 | I14: 0 | M14: 25101267.93 | P14: 0 | R14: 25101267.93 | S14: 0 | T14: 0 | V14: 0 | W14: 0 | X14: 0.06 | AA14: =IF(OR(R14<=0,Z14>0),0,(R14+V14-W14)*X14) -> 1506076.076 | AB14: 23595191.85
B15: =IF(ISBLANK('B8 Sch 8 CCA Bridge 25'!B15), "", 'B8 Sch 8 CCA Bridge 25'!B15) -> 3 | C15: =IF(ISBLANK('B8 Sch 8 CCA Bridge 25'!C15), "", 'B8 Sch 8 CCA Bridge 25'!C15) -> Buildings (acq'd pre 1988) | D15: B8 | E15: ='C4 Sch 8 CCA Test 29'!AB14 -> 3181555.854 | I15: 0 | M15: 3181555.854 | P15: 0 | R15: 3181555.854 | S15: 0 | T15: 0 | V15: 0 | W15: 0 | X15: 0.05 | AA15: 159077.7927 | AB15: 3022478.062
B16: =IF(ISBLANK('B8 Sch 8 CCA Bridge 25'!B16), "", 'B8 Sch 8 CCA Bridge 25'!B16) -> 6 | C16: =IF(ISBLANK('B8 Sch 8 CCA Bridge 25'!C16), "", 'B8 Sch 8 CCA Bridge 25'!C16) -> Certain Buildings; Fences | D16: B8 | E16: ='C4 Sch 8 CCA Test 29'!AB15 -> 0 | I16: 0 | M16: 0 | P16: 0 | R16: 0 | S16: 0 | T16: 0 | U16: 0 | V16: 0 | W16: 0 | X16: 0.1 | AA16: 0 | AB16: 0
B17: =IF(ISBLANK('B8 Sch 8 CCA Bridge 25'!B17), "", 'B8 Sch 8 CCA Bridge 25'!B17) -> 8 | C17: =IF(ISBLANK('B8 Sch 8 CCA Bridge 25'!C17), "", 'B8 Sch 8 CCA Bridge 25'!C17) -> General Office Equipment, Furniture, Fixtures | D17: B8 | E17: ='C4 Sch 8 CCA Test 29'!AB16 -> 6729673.174 | F17: 1284112.77 | I17: 642056.385 | M17: 7371729.559 | P17: 1284112.77 | R17: 7371729.559 | S17: 0 | T17: 0 | U17: 0 | V17: 0 | W17: 0 | X17: 0.2 | AA17: 1474345.912 | AB17: 6539440.032
B18: =IF(ISBLANK('B8 Sch 8 CCA Bridge 25'!B18), "", 'B8 Sch 8 CCA Bridge 25'!B18) -> 10 | C18: =IF(ISBLANK('B8 Sch 8 CCA Bridge 25'!C18), "", 'B8 Sch 8 CCA Bridge 25'!C18) -> Motor Vehicles, Fleet | D18: B8 | E18: ='C4 Sch 8 CCA Test 29'!AB17 -> 15352692.34 | F18: 111139.36 | I18: =IF((F18-K18)>0,(F18-K18)/2,0) -> 0 | K18: 132000 | M18: 15331831.7 | P18: 111139.36 | R18: 15331831.7 | S18: 20860.64 | T18: 0 | U18: 0 | V18: 0 | W18: 0 | X18: 0.3 | AA18: =IF(OR(R18<=0,Z18>0),0,(R18+V18-W18)*X18) -> 4599549.509 | AB18: 10732282.19
B19: =IF(ISBLANK('B8 Sch 8 CCA Bridge 25'!B19), "", 'B8 Sch 8 CCA Bridge 25'!B19) -> 10.1 | C19: =IF(ISBLANK('B8 Sch 8 CCA Bridge 25'!C19), "", 'B8 Sch 8 CCA Bridge 25'!C19) -> Certain Automobiles | D19: B8 | E19: ='C4 Sch 8 CCA Test 29'!AB18 -> 0 | I19: 0 | M19: 0 | P19: 0 | R19: 0 | S19: 0 | T19: 0 | U19: 0 | V19: 0 | W19: 0 | X19: 0.3 | AA19: 0 | AB19: 0
B20: =IF(ISBLANK('B8 Sch 8 CCA Bridge 25'!B20), "", 'B8 Sch 8 CCA Bridge 25'!B20) -> 12 | C20: =IF(ISBLANK('B8 Sch 8 CCA Bridge 25'!C20), "", 'B8 Sch 8 CCA Bridge 25'!C20) -> Computer Application Software (Non-Systems) | D20: B8 | E20: ='C4 Sch 8 CCA Test 29'!AB19 -> 1100582.914 | F20: 1295631.795 | I20: 647815.8973 | M20: 1748398.812 | P20: 1295631.795 | R20: 1748398.812 | S20: 0 | T20: 0 | U20: 0 | V20: 0 | W20: 0 | X20: 1 | AA20: 1748398.812 | AB20: 647815.8973
B21: 13 1 | C21: =IF(ISBLANK('B8 Sch 8 CCA Bridge 25'!C21), "", 'B8 Sch 8 CCA Bridge 25'!C21) -> Lease # 1 | D21: B8 | E21: ='C4 Sch 8 CCA Test 29'!AB20 -> 0 | I21: 0 | M21: 0 | P21: 0 | R21: 0 | S21: 0 | T21: 0 | U21: 0 | V21: 0 | W21: 0 | X21: NA | AA21: 0 | AB21: 0
B22: 13 2 | C22: =IF(ISBLANK('B8 Sch 8 CCA Bridge 25'!C22), "", 'B8 Sch 8 CCA Bridge 25'!C22) -> Lease # 2 | D22: B8 | E22: ='C4 Sch 8 CCA Test 29'!AB21 -> 0 | I22: 0 | M22: 0 | P22: 0 | R22: 0 | S22: 0 | T22: 0 | U22: 0 | V22: 0 | W22: 0 | X22: NA | AA22: 0 | AB22: 0
B23: 13 3 | C23: =IF(ISBLANK('B8 Sch 8 CCA Bridge 25'!C23), "", 'B8 Sch 8 CCA Bridge 25'!C23) -> Lease # 3 | D23: B8 | E23: ='C4 Sch 8 CCA Test 29'!AB22 -> 0 | I23: 0 | M23: 0 | P23: 0 | R23: 0 | S23: 0 | T23: 0 | U23: 0 | V23: 0 | W23: 0 | X23: NA | AA23: 0 | AB23: 0
B24: 13 4 | C24: =IF(ISBLANK('B8 Sch 8 CCA Bridge 25'!C24), "", 'B8 Sch 8 CCA Bridge 25'!C24) -> Lease # 4 | D24: B8 | E24: ='C4 Sch 8 CCA Test 29'!AB23 -> 0 | I24: 0 | M24: 0 | P24: 0 | R24: 0 | S24: 0 | T24: 0 | U24: 0 | V24: 0 | W24: 0 | X24: NA | AA24: 0 | AB24: 0
B25: =IF(ISBLANK('B8 Sch 8 CCA Bridge 25'!B25), "", 'B8 Sch 8 CCA Bridge 25'!B25) -> 14 | C25: =IF(ISBLANK('B8 Sch 8 CCA Bridge 25'!C25), "", 'B8 Sch 8 CCA Bridge 25'!C25) -> Limited Period Patents, Franchises, Concessions or Licences | D25: B8 | E25: ='C4 Sch 8 CCA Test 29'!AB24 -> 0 | I25: 0 | M25: 0 | P25: 0 | R25: 0 | S25: 0 | T25: 0 | U25: 0 | V25: 0 | W25: 0 | X25: NA | AA25: 0 | AB25: 0
B26: =IF(ISBLANK('B8 Sch 8 CCA Bridge 25'!B26), "", 'B8 Sch 8 CCA Bridge 25'!B26) -> 14.1 | C26: Eligible Capital Property (acq'd pre Jan 1, 2017) | D26: B8 | E26: ='C4 Sch 8 CCA Test 29'!AB25 -> 4852560.644 | I26: 0 | M26: 4852560.644 | P26: 0 | R26: 4852560.644 | S26: =IF((K26-L26+I26-P26+Q26-J26)<0,0,(K26-L26+I26-P26+Q26-J26)) -> 0 | T26: 0 | V26: 0 | W26: 0 | X26: 0.07 | AA26: 339679.2451 | AB26: 4512881.399
B27: =IF(ISBLANK('B8 Sch 8 CCA Bridge 25'!B27), "", 'B8 Sch 8 CCA Bridge 25'!B27) -> 14.1 | C27: Eligible Capital Property (acq'd post Jan 1, 2017) | D27: B8 | E27: ='C4 Sch 8 CCA Test 29'!AB26 -> 94135204.7 | F27: 783027.99 | I27: 391513.995 | M27: 94526718.7 | P27: 783027.99 | R27: 94526718.7 | S27: 0 | T27: 0 | U27: 0 | V27: 0 | W27: 0 | X27: 0.05 | AA27: =IF(OR(R27<=0,Z27>0),0,(R27+V27-W27)*X27) -> 4726335.935 | AB27: 90191896.76
B28: =IF(ISBLANK('B8 Sch 8 CCA Bridge 25'!B28), "", 'B8 Sch 8 CCA Bridge 25'!B28) -> 17 | C28: =IF(ISBLANK('B8 Sch 8 CCA Bridge 25'!C28), "", 'B8 Sch 8 CCA Bridge 25'!C28) -> Elec. Generation Equip. (Non-Bldng, acq'd post Feb 27/00); Roads, Lots, Storage | D28: B8 | E28: ='C4 Sch 8 CCA Test 29'!AB27 -> 1002716.292 | I28: 0 | M28: 1002716.292 | P28: 0 | R28: 1002716.292 | S28: 0 | T28: 0 | U28: 0 | V28: 0 | W28: 0 | X28: 0.08 | AA28: 80217.30335 | AB28: 922498.9885
B29: =IF(ISBLANK('B8 Sch 8 CCA Bridge 25'!B29), "", 'B8 Sch 8 CCA Bridge 25'!B29) -> 42 | C29: =IF(ISBLANK('B8 Sch 8 CCA Bridge 25'!C29), "", 'B8 Sch 8 CCA Bridge 25'!C29) -> Fibre Optic Cable | D29: B8 | E29: ='C4 Sch 8 CCA Test 29'!AB28 -> 7270845.394 | F29: 1389611.61 | I29: 694805.805 | M29: 7965651.199 | P29: 1389611.61 | R29: 7965651.199 | S29: 0 | T29: 0 | U29: 0 | V29: 0 | W29: 0 | X29: 0.12 | AA29: 955878.1438 | AB29: 7704578.86
B30: =IF(ISBLANK('B8 Sch 8 CCA Bridge 25'!B30), "", 'B8 Sch 8 CCA Bridge 25'!B30) -> 43.1 | C30: =IF(ISBLANK('B8 Sch 8 CCA Bridge 25'!C30), "", 'B8 Sch 8 CCA Bridge 25'!C30) -> Certain Clean Energy/Energy-Efficient Generation Equipment | D30: B8 | E30: ='C4 Sch 8 CCA Test 29'!AB29 -> 49449.53187 | I30: 0 | M30: 49449.53187 | P30: 0 | R30: 49449.53187 | S30: 0 | T30: 0 | U30: 0 | V30: 0 | W30: 0 | X30: 0.3 | AA30: 14834.85956 | AB30: 34614.67231
B31: =IF(ISBLANK('B8 Sch 8 CCA Bridge 25'!B31), "", 'B8 Sch 8 CCA Bridge 25'!B31) -> 43.2 | C31: =IF(ISBLANK('B8 Sch 8 CCA Bridge 25'!C31), "", 'B8 Sch 8 CCA Bridge 25'!C31) -> Certain Clean Energy/Energy-Efficient Generation Equipment | D31: B8 | E31: ='C4 Sch 8 CCA Test 29'!AB30 -> 6191.21875 | I31: 0 | M31: 6191.21875 | P31: 0 | R31: 6191.21875 | S31: 0 | T31: 0 | U31: 0 | V31: 0 | W31: 0 | X31: 0.5 | AA31: 3095.609375 | AB31: 3095.609375
B32: =IF(ISBLANK('B8 Sch 8 CCA Bridge 25'!B32), "", 'B8 Sch 8 CCA Bridge 25'!B32) -> 45 | C32: =IF(ISBLANK('B8 Sch 8 CCA Bridge 25'!C32), "", 'B8 Sch 8 CCA Bridge 25'!C32) -> Computers & System Software (acq'd post Mar 22/04 and pre Mar 19/07) | D32: B8 | E32: ='C4 Sch 8 CCA Test 29'!AB31 -> 3.321676875 | I32: 0 | M32: 3.321676875 | P32: 0 | R32: 3.321676875 | S32: 0 | T32: 0 | V32: 0 | W32: 0 | X32: 0.45 | AA32: 1.494754594 | AB32: 1.826922281
B33: =IF(ISBLANK('B8 Sch 8 CCA Bridge 25'!B33), "", 'B8 Sch 8 CCA Bridge 25'!B33) -> 46 | C33: =IF(ISBLANK('B8 Sch 8 CCA Bridge 25'!C33), "", 'B8 Sch 8 CCA Bridge 25'!C33) -> Data Network Infrastructure Equipment (acq'd post Mar 22/04) | D33: B8 | E33: ='C4 Sch 8 CCA Test 29'!AB32 -> 0 | I33: 0 | M33: 0 | P33: 0 | R33: 0 | S33: 0 | T33: 0 | U33: 0 | V33: 0 | W33: 0 | X33: 0.3 | AA33: 0 | AB33: 0
B34: =IF(ISBLANK('B8 Sch 8 CCA Bridge 25'!B34), "", 'B8 Sch 8 CCA Bridge 25'!B34) -> 47 | C34: =IF(ISBLANK('B8 Sch 8 CCA Bridge 25'!C34), "", 'B8 Sch 8 CCA Bridge 25'!C34) -> Distribution System (acq'd post Feb 22/05) | D34: B8 | E34: ='C4 Sch 8 CCA Test 29'!AB33 -> 1074328747 | F34: 158760076.5 | I34: 79380038.25 | M34: 1153708786 | P34: 158760076.5 | R34: 1153708786 | S34: 0 | T34: 0 | U34: 0 | V34: 0 | W34: 0 | X34: 0.08 | AA34: 92296702.86 | AB34: 1140792121
B35: =IF(ISBLANK('B8 Sch 8 CCA Bridge 25'!B35), "", 'B8 Sch 8 CCA Bridge 25'!B35) -> 50 | C35: =IF(ISBLANK('B8 Sch 8 CCA Bridge 25'!C35), "", 'B8 Sch 8 CCA Bridge 25'!C35) -> General Purpose Computer Hardware & Software (acq'd post Mar 18/07) | D35: B8 | E35: ='C4 Sch 8 CCA Test 29'!AB34 -> 3542060.325 | F35: 2249468.97 | I35: 1124734.485 | M35: 4666794.81 | P35: 2249468.97 | R35: 4666794.81 | S35: 0 | T35: 0 | U35: 0 | V35: 0 | W35: 0 | X35: 0.55 | AA35: 2566737.145 | AB35: 3224792.149
B36: =IF(ISBLANK('B8 Sch 8 CCA Bridge 25'!B36), "", 'B8 Sch 8 CCA Bridge 25'!B36) -> 95 | C36: =IF(ISBLANK('B8 Sch 8 CCA Bridge 25'!C36), "", 'B8 Sch 8 CCA Bridge 25'!C36) -> CWIP | D36: B8 | E36: ='C4 Sch 8 CCA Test 29'!AB35 -> 0 | P36: 0 | R36: 0 | S36: 0 | T36: 0 | U36: 0 | V36: 0 | W36: 0 | X36: 0 | AA36: 0 | AB36: 0
B37: =IF(ISBLANK('B8 Sch 8 CCA Bridge 25'!B37), "", 'B8 Sch 8 CCA Bridge 25'!B37) ->  | C37: =IF(ISBLANK('B8 Sch 8 CCA Bridge 25'!C37), "", 'B8 Sch 8 CCA Bridge 25'!C37) ->  | D37: B8 | P37: 0 | R37: 0 | S37: 0 | T37: 0 | V37: 0 | W37: 0 | AA37: 0 | AB37: 0
B38: =IF(ISBLANK('B8 Sch 8 CCA Bridge 25'!B38), "", 'B8 Sch 8 CCA Bridge 25'!B38) ->  | C38: =IF(ISBLANK('B8 Sch 8 CCA Bridge 25'!C38), "", 'B8 Sch 8 CCA Bridge 25'!C38) ->  | D38: B8 | P38: 0 | R38: 0 | S38: 0 | T38: 0 | V38: 0 | W38: 0 | AA38: 0 | AB38: 0
B39: =IF(ISBLANK('B8 Sch 8 CCA Bridge 25'!B39), "", 'B8 Sch 8 CCA Bridge 25'!B39) ->  | C39: =IF(ISBLANK('B8 Sch 8 CCA Bridge 25'!C39), "", 'B8 Sch 8 CCA Bridge 25'!C39) ->  | D39: B8 | P39: 0 | R39: 0 | S39: 0 | T39: 0 | V39: 0 | W39: 0 | AA39: 0 | AB39: 0
B40: =IF(ISBLANK('B8 Sch 8 CCA Bridge 25'!B40), "", 'B8 Sch 8 CCA Bridge 25'!B40) ->  | C40: =IF(ISBLANK('B8 Sch 8 CCA Bridge 25'!C40), "", 'B8 Sch 8 CCA Bridge 25'!C40) ->  | D40: B8 | P40: 0 | R40: 0 | S40: 0 | T40: 0 | V40: 0 | W40: 0 | AA40: 0 | AB40: 0
B41: =IF(ISBLANK('B8 Sch 8 CCA Bridge 25'!B41), "", 'B8 Sch 8 CCA Bridge 25'!B41) ->  | C41: =IF(ISBLANK('B8 Sch 8 CCA Bridge 25'!C41), "", 'B8 Sch 8 CCA Bridge 25'!C41) ->  | D41: B8 | P41: 0 | R41: 0 | S41: 0 | T41: 0 | V41: 0 | W41: 0 | AA41: 0 | AB41: 0
B42: =IF(ISBLANK('B8 Sch 8 CCA Bridge 25'!B42), "", 'B8 Sch 8 CCA Bridge 25'!B42) ->  | C42: =IF(ISBLANK('B8 Sch 8 CCA Bridge 25'!C42), "", 'B8 Sch 8 CCA Bridge 25'!C42) ->  | D42: B8 | P42: 0 | R42: 0 | S42: 0 | T42: 0 | V42: 0 | W42: 0 | AA42: 0 | AB42: 0
B43: =IF(ISBLANK('B8 Sch 8 CCA Bridge 25'!B43), "", 'B8 Sch 8 CCA Bridge 25'!B43) ->  | C43: =IF(ISBLANK('B8 Sch 8 CCA Bridge 25'!C43), "", 'B8 Sch 8 CCA Bridge 25'!C43) ->  | D43: B8 | P43: 0 | R43: 0 | S43: 0 | T43: 0 | V43: 0 | W43: =IF((0.5*(P43-Q43-I43+J43-K43+L43))<0,0,(0.5*(P43-Q43-I43+J43-K43+L43))) -> 0 | AA43: 0 | AB43: 0
B44: =IF(ISBLANK('B8 Sch 8 CCA Bridge 25'!B44), "", 'B8 Sch 8 CCA Bridge 25'!B44) ->  | C44: =IF(ISBLANK('B8 Sch 8 CCA Bridge 25'!C44), "", 'B8 Sch 8 CCA Bridge 25'!C44) ->  | D44: B8 | P44: 0 | R44: =IF((M44-O44)<0,0,M44-O44) -> 0 | S44: 0 | T44: 0 | V44: 0 | W44: 0 | AA44: 0 | AB44: =IF(M44<0,0,M44-Z44-AA44) -> 0
C45: TOTALS | E45: =SUM(E12:E44) -> 1431400931 | F45: =SUM(F12:F44) -> 174353273.2 | G45: =SUM(G12:G44) -> 0 | H45: =SUM(H12:H44) -> 0 | I45: =SUM(I12:I44) -> 87121066.91 | J45: 0 | K45: =SUM(K12:K44) -> 132000 | L45: =SUM(L12:L44) -> 0 | M45: =SUM(M12:M44) -> 1518501137 | N45: 0 | O45: 0 | P45: 174353273.2 | Q45: =SUM(Q12:Q44) -> 0 | R45: 1518501137 | S45: 20860.64 | T45: 0 | V45: =SUM(V12:V44) -> 0 | W45: 0 | Y45: =SUM(Y12:Y44) -> 0 | Z45: =SUM(Z12:Z44) -> 0 | AA45: =SUM(AA12:AA44) -> 120391869.5 | AB45: =SUM(AB12:AB44) -> 1485230334
B47: For additional details and guidance on calculating amounts in Schedule 8, refer to the notes to the Canada Revenue Agency published Schedule 8 - Capital Cost Allowance (CCA) (2018 and later tax years):
B48: https://www.canada.ca/content/dam/cra-arc/formspubs/pbg/t2sch8/t2sch8-19e.pdf
B52: 1. Please note that Subsection 1100(2) of the Income Tax Regulations provide undepreciated capital cost adjustment factors of eligible zero-emission vehicles and equipment under Class 53, Class 54, Class 55 and Class 56,
B53: please assess the applicability of these adjustments and incorporate them in the PILs model as applicable.
